Workbook

Sheet Table S1
A1: Title: Mutations in a Zea mays alanyl-tRNA synthetase condition an albino phenotype and suggest retrograde signaling affects replication-dependent histone transcription
A2: Journal: Plant Cell Reports
A3: Authors: A. Dhingra, I. Adhikari, and C.D. Rock. Texas Tech University Department of Biological Sciences. Email: chris.rock@ttu.edu
A5: Table S1: gDNA and RNA libraries quality control parameters.
C7: Sample Name | D7: library details | E7: Total raw reads | F7: Number of reads mapped to B73 ref genome | G7: % reads mapped to B73 ref genome | H7: Coverage
C8: alb | D8: alb-605F MT genomic library | E8: 579,472,222 | F8: 573,098,028 | G8: =(F8/E8)*100 -> 98.90000008 | H8: 76x
C9: WT | D9: WT genomic library | E9: 605,054,393 | F9: 603,239,230 | G9: =(F9/E9)*100 -> 99.70000003 | H9: 79x
D12: Coverage = read length X number of reads/genome length
D13: Read length - 2X150
D14: Maize genome size = 2.4 Gb
C17: Relative abundance analysis (sense reads only) of chloroplast rrn operon 117nt leader upstream of 16S; 16S, 23S, tRNA-alanine/trnA, versus cytoplasmic 18S and 28S rRNA expressions from raw RNAseq data, compared to Kendrick et al. (2022) raw RNAseq data (oligo dT selected, 1x 100 bp) of four photosynthetic mutants that vary by chlorotic severity
A18: avg | B18: ratio total/nuclear | C18: SRR# | D18: sample | E18: raw reads | F18: total rrn 5'leader 117nt | G18: 5' leader-like in nucleus, 84nt | H18: normalized RP10M rrn leader | I18: 16S chloroplast | J18: 23S chloroplast | K18: trnA_cp096 | L18: 18S cytoplasmic | M18: 28S cytoplasmic | N18: ratio ct/cytoplasmic rRNAs | O18: avg ratio plastid-to-cytosolic rRNAs | P18: avg RP10M rrn leader | Q18: genotype | R18: phenotype (Kendrick et al. 2022)
A19: =AVERAGE(B19:B23) -> 14.40 | B19: =F19/G19 -> 10.50 | C19: SRR18735323 | D19: Wild type sibling of ppr5 | E19: 23,760,843 | F19: 84 | G19: 8 | H19: =F19/E19*10000000 -> 35.4 | I19: 332292 | J19: 895087 | K19: 1860 | L19: 1023291 | M19: 2831009 | N19: =SUM(I19:J19)/SUM(L19:M19) -> 0.32 | O19: =AVERAGE(N19:N23) -> 0.460 | P19: =AVERAGE(H19:H23) -> 51.6 | Q19: WT
B20: =F20/G20 -> 20.80 | C20: SRR18735300 | D20: Wild type sibling of ptac12-2 | E20: 22,254,590 | F20: 104 | G20: 5 | H20: 46.7 | I20: 303815 | J20: 633731 | K20: 2206 | L20: 748152 | M20: 864815 | N20: =SUM(I20:J20)/SUM(L20:M20) -> 0.58
B21: 8.89 | C21: SRR18735318 | D21: Wild type | E21: 21,295,414 | F21: 240 | G21: 27 | H21: 112.7 | I21: 954637 | J21: 1757411 | K21: 4375 | L21: 4350317 | M21: 2112513 | N21: 0.42
B22: 17.00 | C22: SRR18735319 | D22: Wild type sibling of murE-2 | E22: 21,439,401 | F22: 51 | G22: 3 | H22: 23.8 | I22: 503429 | J22: 1091706 | K22: 1369 | L22: 1181203 | M22: 1764904 | N22: 0.54
B23: 14.83 | C23: SRR18735304 | D23: Wild type sibling of tha1 | E23: 22,485,114 | F23: 89 | G23: 6 | H23: 39.6 | I23: 346253 | J23: 758704 | K23: 2039 | L23: 1041843 | M23: 1480733 | N23: 0.44
C24: SRR18735320 | D24: murE-2 rep3 | E24: 20,810,120 | F24: 0 | G24: 0 | H24: 0.0 | I24: 2094 | J24: 9094 | K24: 548 | L24: 1829634 | M24: 1787763 | N24: 0.00 | O24: =AVERAGE(N24:N26) -> 0.003 | P24: =AVERAGE(H24:H26) -> 0.3 | Q24: murE-2 | R24: null allele albino; deficient for plastid ribosomes and pigment, protein, and rRNA; deficiencies are most severe of four mutants
C25: SRR18735321 | D25: murE-2 rep 2 | E25: 21,209,546 | F25: 2 | G25: 0 | H25: 0.9 | I25: 1034 | J25: 5727 | K25: 286 | L25: 874092 | M25: 1442826 | N25: 0.00
C26: SRR18735322 | D26: murE-2 rep 1 | E26: 20,294,026 | F26: 0 | G26: 0 | H26: 0.0 | I26: 567 | J26: 2385 | K26: 84 | L26: 655576 | M26: 775406 | N26: 0.00
C27: SRR18735324 | D27: ppr5 rep3 | E27: 20,439,215 | F27: 1 | G27: 0 | H27: 0.5 | I27: 6434 | J27: 11827 | K27: 192 | L27: 2576453 | M27: 1440373 | N27: 0.00 | O27: =AVERAGE(N27:N29) -> 0.007 | P27: =AVERAGE(H27:H29) -> 0.6 | Q27: ppr5-1 | R27: null allele albino; lacks chloroplast ribosomes and plastid-encoded RNA polymerase (PEP) responsible for transcribing plastid rRNAs and tRNAs
C28: SRR18735298 | D28: ppr5 rep 2 | E28: 24,318,934 | F28: 0 | G28: 0 | H28: 0.0 | I28: 3479 | J28: 8773 | K28: 109 | L28: 619426 | M28: 832283 | N28: 0.01
C29: SRR18735299 | D29: ppr5 rep 1 | E29: 22,538,277 | F29: 3 | G29: 0 | H29: 1.3 | I29: 3335 | J29: 11462 | K29: 160 | L29: 782467 | M29: 904678 | N29: 0.01
A30: =AVERAGE(B30:B32) -> 9.31 | B30: 6.47 | C30: SRR18735301 | D30: ptac12-2 rep3 | E30: 20,704,939 | F30: 220 | G30: 34 | H30: 106.3 | I30: 138062 | J30: 205577 | K30: 2632 | L30: 4171280 | M30: 1480495 | N30: 0.06 | O30: =AVERAGE(N30:N32) -> 0.121 | P30: =AVERAGE(H30:H32) -> 95.0 | Q30: ptac12 | R30: chlorotic; stimulates PEP activity; deficient for plastid ribosomes, although the pigment, protein, and rRNA deficiencies are less severe
B31: 11.18 | C31: SRR18735302 | D31: ptac12-2 rep 2 | E31: 23,810,492 | F31: 190 | G31: 17 | H31: 79.8 | I31: 93149 | J31: 200680 | K31: 1475 | L31: 860316 | M31: 913655 | N31: 0.17
B32: 10.27 | C32: SRR18735303 | D32: ptac12-2 rep 1 | E32: 11,422,883 | F32: 113 | G32: 11 | H32: 98.9 | I32: 48294 | J32: 103461 | K32: 1006 | L32: 506102 | M32: 607358 | N32: 0.14
A33: =AVERAGE(B33:B35) -> 13.46 | B33: 7.00 | C33: SRR18735314 | D33: tha1 rep3 | E33: 28,360,050 | F33: 217 | G33: 31 | H33: 76.5 | I33: 386293 | J33: 553461 | K33: 3404 | L33: 3901183 | M33: 1934375 | N33: 0.16 | O33: =AVERAGE(N33:N35) -> 0.363 | P33: =AVERAGE(H33:H35) -> 87.9 | Q33: tha1 | R33: pale green; reduced levels of photosystems and cytochrome b6f complex due to defective secA homologue required for thylakoid targeting
B34: 19.10 | C34: SRR18735325 | D34: tha1 rep 2 | E34: 20,054,097 | F34: 191 | G34: 10 | H34: 95.2 | I34: 199807 | J34: 438335 | K34: 2556 | L34: 577011 | M34: 707231 | N34: 0.50
B35: 14.29 | C35: SRR18735326 | D35: tha1 rep 1 | E35: 21,745,152 | F35: 200 | G35: 14 | H35: 92.0 | I35: 201668 | J35: 429496 | K35: 2682 | L35: 688930 | M35: 771179 | N35: 0.43
B36: this study, total RNA extracts, 2x 50 bp:
A37: =AVERAGE(B37:B39) -> 96.00 | C37: SRR26841634_1.fastq | D37: WT rep1 | E37: 23,417,262 | F37: 62 | G37: 0 | H37: =F37/E37*10000000 -> 26.5 | I37: 496,100 | J37: 908,747 | K37: 139 | L37: 619,332 | M37: 553,263 | N37: =SUM(F37:J37)/SUM(L37:M37) -> 1.20 | O37: =AVERAGE(N37:N39) -> 1.047 | P37: =AVERAGE(H37:H39) -> 39.5 | Q37: w.t. sib
B38: 79.00 | C38: SRR26841635_1.fastq | D38: WT rep2 | E38: 15,819,589 | F38: 79 | G38: 1 | H38: 49.9 | I38: 362,768 | J38: 901,105 | K38: 90 | L38: 632,268 | M38: 586,114 | N38: 1.04
B39: 113.00 | C39: SRR26841636_1.fastq | D39: WT rep3 | E39: 26,803,268 | F39: 113 | G39: 1 | H39: 42.2 | I39: 274,505 | J39: 714,137 | K39: 105 | L39: 564,398 | M39: 526,479 | N39: 0.91
A40: =AVERAGE(B40:B42) -> 146.50 | C40: SRR26841637_1.fastq | D40: alb 605F rep1 | E40: 25,030,395 | F40: 177 | G40: 0 | H40: 70.7 | I40: 1,829,960 | J40: 3,357,298 | K40: 71 | L40: 1,753,516 | M40: 1,618,582 | N40: 1.54 | O40: =AVERAGE(N40:N42) -> 1.416 | P40: =AVERAGE(H40:H42) -> 71.1 | Q40: alb-605F
C41: SRR26841638_1.fastq | D41: alb 605F rep2 | E41: 29,174,933 | F41: 188 | G41: 0 | H41: 64.4 | I41: 806,642 | J41: 1,397,791 | K41: 134 | L41: 856,061 | M41: 685,397 | N41: 1.43
B42: 146.50 | C42: SRR26841639_1.fastq | D42: alb 605F rep3 | E42: 37,483,332 | F42: 293 | G42: 2 | H42: 78.2 | I42: 1,391,359 | J42: 2,355,683 | K42: 182 | L42: 1,571,692 | M42: 1,357,995 | N42: 1.28

Sheet Table S2
A1: Table S2: Gene level RNA-seq analysis of alb-605F vs. WT-hybrid relative.
A2: yellow highlight: plastid encoded gene | F2: blue highlight: mitochondria encoded gene | J2: red highlight: organelle gene up regulated in albino
A3: Transcript id | B3: baseMean | C3: log2FoldChange | D3: lfcSE | E3: stat | F3: pvalue | G3: padj | H3: bin notation | I3: Bin, Ensemble44.X2 | J3: Name | K3: Description
A4: Zm00001d032070_T001 | B4: 280 | C4: 4.86 | D4: 0.2719516505 | E4: 17.88529829 | F4: 1.53529356e-71 | G4: 1.507364841e-69 | H4: see Table 2 | I4: '12.1.3' | J4: '.Chromatin organisation.histones.histone (H2B)' | K4: 'histone (H2B) (original description: pep chromosome:B73_RefGen_v4:1:211247689:211248141:1 gene:Zm00001d032070 transcript:Zm00001d032070_T001 gene_biotype:protein_coding transcript_biotype:protein_coding description:Histone H2B )'
A5: Zm00001d012276_T001 | B5: 404 | C5: 4.14 | D5: 0.2395426864 | E5: 17.27448146 | F5: 7.322861805e-67 | G5: 6.364252736e-65 | H5: see Table 2 | I5: '12.1.4' | J5: '.Chromatin organisation.histones.histone (H3)' | K5: 'histone (H3) (original description: pep chromosome:B73_RefGen_v4:8:171739920:171740516:-1 gene:Zm00001d012276 transcript:Zm00001d012276_T001 gene_biotype:protein_coding transcript_biotype:protein_coding description:Histone H3.2)'
A6: Zm00001d047787_T001 | B6: 1513 | C6: 3.36 | D6: 0.2112682691 | E6: 15.90104074 | F6: 6.232075508e-57 | G6: 3.863752503e-55 | H6: see Table 2 | I6: '12.1.2' | J6: '.Chromatin organisation.histones.histone (H2A)' | K6: 'histone (H2A) (original description: pep chromosome:B73_RefGen_v4:9:141785644:141786727:1 gene:Zm00001d047787 transcript:Zm00001d047787_T001 gene_biotype:protein_coding transcript_biotype:protein_coding gene_symbol:histone2A1 description:Histone H2A )'
A7: Zm00001d042930_T001 | B7: 326 | C7: 4.90 | D7: 0.311136765 | E7: 15.73385389 | F7: 8.864730366e-56 | G7: 5.225649558e-54 | H7: see Table 2 | I7: '12.1.3' | J7: '.Chromatin organisation.histones.histone (H2B)' | K7: 'histone (H2B) (original description: pep chromosome:B73_RefGen_v4:3:184418117:184418903:1 gene:Zm00001d042930 transcript:Zm00001d042930_T001 gene_biotype:protein_coding transcript_biotype:protein_coding gene_symbol:histone 2B4 description: histone 2B4)'
A8: Zm00001d019045_T001 | B8: 188 | C8: 5.03 | D8: 0.3680955745 | E8: 13.65950017 | F8: 1.771958255e-42 | G8: 6.476991503e-41 | H8: see Table 2 | I8: '12.1.2' | J8: '.Chromatin organisation.histones.histone (H2A)' | K8: 'histone (H2A) (original description: pep chromosome:B73_RefGen_v4:7:14093201:14093758:1 gene:Zm00001d019045 transcript:Zm00001d019045_T001 gene_biotype:protein_coding transcript_biotype:protein_coding description:Histone H2A )'
A9: Zm00001d048491_T001 | B9: 331 | C9: 4.21 | D9: 0.3175129862 | E9: 13.25438238 | F9: 4.256063314e-40 | G9: 1.41542397e-38 | H9: see Table 2 | I9: '12.1.3' | J9: '.Chromatin organisation.histones.histone (H2B)' | K9: 'histone (H2B) (original description: pep chromosome:B73_RefGen_v4:9:157090097:157090813:-1 gene:Zm00001d048491 transcript:Zm00001d048491_T001 gene_biotype:protein_coding transcript_biotype:protein_coding description:Histone H2B )'
A10: Zm00001d023901_T001 | B10: 144 | C10: 4.63 | D10: 0.3628593386 | E10: 12.76485123 | F10: 2.576424099e-37 | G10: 7.625102063e-36 | H10: see Table 2 | I10: '12.1.2' | J10: '.Chromatin organisation.histones.histone (H2A)' | K10: 'histone (H2A) (original description: pep chromosome:B73_RefGen_v4:10:27251530:27252715:1 gene:Zm00001d023901 transcript:Zm00001d023901_T001 gene_biotype:protein_coding transcript_biotype:protein_coding description:Histone H2A )'
A11: Zm00001d021300_T001 | B11: 250 | C11: 3.71 | D11: 0.2939714212 | E11: 12.62859358 | F11: 1.46879978e-36 | G11: 4.233763855e-35 | H11: see Table 2 | I11: '12.1.2' | J11: '.Chromatin organisation.histones.histone (H2A)' | K11: 'histone (H2A) (original description: pep chromosome:B73_RefGen_v4:7:148227448:148227942:-1 gene:Zm00001d021300 transcript:Zm00001d021300_T001 gene_biotype:protein_coding transcript_biotype:protein_coding description:Histone H2A )'
A12: Zm00001d012423_T001 | B12: 390 | C12: 3.91 | D12: 0.3138327182 | E12: 12.45856243 | F12: 1.256145378e-35 | G12: 3.528860751e-34 | H12: see Table 2 | I12: '12.1.3' | J12: '.Chromatin organisation.histones.histone (H2B)' | K12: 'histone (H2B) (original description: pep chromosome:B73_RefGen_v4:8:174293032:174293445:1 gene:Zm00001d012423 transcript:Zm00001d012423_T001 gene_biotype:protein_coding transcript_biotype:protein_coding description:Histone H2B )'
A13: Zm00001d042730_T001 | B13: 217 | C13: 3.91 | D13: 0.3203077549 | E13: 12.19902374 | F13: 3.145728324e-34 | G13: 8.249149197e-33 | H13: see Table 2 | I13: '12.1.4' | J13: '.Chromatin organisation.histones.histone (H3)' | K13: 'histone (H3) (original description: pep chromosome:B73_RefGen_v4:3:178426779:178427336:-1 gene:Zm00001d042730 transcript:Zm00001d042730_T001 gene_biotype:protein_coding transcript_biotype:protein_coding description:Histone H3 )'
A14: Zm00001d025381_T001 | B14: 137 | C14: 4.48 | D14: 0.3694800284 | E14: 12.12921293 | F14: 7.395682594e-34 | G14: 1.907976793e-32 | H14: see Table 2 | I14: '12.1.4' | J14: '.Chromatin organisation.histones.histone (H3)' | K14: 'histone (H3) (original description: pep chromosome:B73_RefGen_v4:10:116549727:116550628:1 gene:Zm00001d025381 transcript:Zm00001d025381_T001 gene_biotype:protein_coding transcript_biotype:protein_coding description:Histone H3.2)'
A15: Zm00001d002546_T001 | B15: 128 | C15: 5.29 | D15: 0.458962713 | E15: 11.51584799 | F15: 1.097743077e-30 | G15: 2.469020728e-29 | H15: see Table 2 | I15: '12.1.5' | J15: '.Chromatin organisation.histones.histone (H4)' | K15: 'histone (H4) (original description: pep chromosome:B73_RefGen_v4:2:15134464:15135291:1 gene:Zm00001d002546 transcript:Zm00001d002546_T001 gene_biotype:protein_coding transcript_biotype:protein_coding gene_symbol:H4C7 description:Histone H4 )'
A16: Zm00001d050100_T001 | B16: 112 | C16: 5.27 | D16: 0.4657300727 | E16: 11.32474172 | F16: 9.897014923e-30 | G16: 2.139049048e-28 | H16: see Table 2 | I16: '12.1.3' | J16: '.Chromatin organisation.histones.histone (H2B)' | K16: 'histone (H2B) (original description: pep chromosome:B73_RefGen_v4:4:65618139:65618591:-1 gene:Zm00001d050100 transcript:Zm00001d050100_T001 gene_biotype:protein_coding transcript_biotype:protein_coding gene_symbol:histone2b2 description:Histone H2B.2 )'
A17: Zm00001d021706_T001 | B17: 340 | C17: 2.70 | D17: 0.2484913194 | E17: 10.86946844 | F17: 1.611369003e-27 | G17: 3.14906604e-26 | H17: see Table 2 | I17: '12.1.2' | J17: '.Chromatin organisation.histones.histone (H2A)' | K17: 'histone (H2A) (original description: pep chromosome:B73_RefGen_v4:7:160893540:160894808:1 gene:Zm00001d021706 transcript:Zm00001d021706_T001 gene_biotype:protein_coding transcript_biotype:protein_coding description:Histone H2A )'
A18: Zm00001d013067_T002 | B18: 359 | C18: 2.21 | D18: 0.2085409817 | E18: 10.58971285 | F18: 3.326105962e-26 | G18: 6.12953813e-25 | H18: see Table 2 | I18: '12.1.1' | J18: '.Chromatin organisation.histones.linker histone (H1)' | K18: 'linker histone (H1) (original description: pep chromosome:B73_RefGen_v4:5:4209561:4210876:-1 gene:Zm00001d013067 transcript:Zm00001d013067_T001 gene_biotype:protein_coding transcript_biotype:protein_coding description:Histone H1 )'
A19: Zm00001d025913_T001 | B19: 391 | C19: 2.74 | D19: 0.2613244228 | E19: 10.49378896 | F19: 9.225307989e-26 | G19: 1.660728629e-24 | H19: see Table 2 | I19: '12.1.3' | J19: '.Chromatin organisation.histones.histone (H2B)' | K19: 'histone (H2B) (original description: pep chromosome:B73_RefGen_v4:10:133665354:133665806:-1 gene:Zm00001d025913 transcript:Zm00001d025913_T001 gene_biotype:protein_coding transcript_biotype:protein_coding description:Histone H2B )'
A20: Zm00001d039733_T001 | B20: 98 | C20: 2.95 | D20: 0.2883469847 | E20: 10.24079074 | F20: 1.301681131e-24 | G20: 2.203970635e-23 | H20: see Table 2 | I20: '12.1.5' | J20: '.Chromatin organisation.histones.histone (H4)' | K20: 'histone (H4) (original description: pep chromosome:B73_RefGen_v4:3:13212197:13212828:-1 gene:Zm00001d039733 transcript:Zm00001d039733_T001 gene_biotype:protein_coding transcript_biotype:protein_coding gene_symbol:H4C7 description:Histone H4 )'
A21: Zm00001d051478_T001 | B21: 148 | C21: 7.07 | D21: 0.6963288813 | E21: 10.15942501 | F21: 3.008453921e-24 | G21: 4.982394585e-23 | H21: see Table 2 | I21: '12.1.5' | J21: '.Chromatin organisation.histones.histone (H4)' | K21: 'histone (H4) (original description: pep chromosome:B73_RefGen_v4:4:160007880:160008267:-1 gene:Zm00001d051478 transcript:Zm00001d051478_T001 gene_biotype:protein_coding transcript_biotype:protein_coding gene_symbol:H4C7 description:Histone H4 )'
A22: Zm00001d039821_T001 | B22: 438 | C22: 1.99 | D22: 0.2075097765 | E22: 9.605597595 | F22: 7.571741701e-22 | G22: 1.101194608e-20 | H22: see Table 2 | I22: '12.1.3' | J22: '.Chromatin organisation.histones.histone (H2B)' | K22: 'histone (H2B) (original description: pep chromosome:B73_RefGen_v4:3:15909790:15910239:1 gene:Zm00001d039821 transcript:Zm00001d039821_T001 gene_biotype:protein_coding transcript_biotype:protein_coding description:Histone H2B )'
A23: Zm00001d034479_T001 | B23: 354 | C23: 2.13 | D23: 0.2215708867 | E23: 9.598885766 | F23: 8.08132876e-22 | G23: 1.171751938e-20 | H23: see Table 2 | I23: '12.1.1' | J23: '.Chromatin organisation.histones.linker histone (H1)' | K23: 'linker histone (H1) (original description: pep chromosome:B73_RefGen_v4:1:294118392:294119816:1 gene:Zm00001d034479 transcript:Zm00001d034479_T001 gene_biotype:protein_coding transcript_biotype:protein_coding gene_symbol:histone one (H1) description: histone one (H1))'
A24: Zm00001d020585_T001 | B24: 136 | C24: 4.39 | D24: 0.4682910144 | E24: 9.377011953 | F24: 6.786881216e-21 | G24: 9.350489077e-20 | H24: see Table 2 | I24: '12.1.5' | J24: '.Chromatin organisation.histones.histone (H4)' | K24: 'histone (H4) (original description: pep chromosome:B73_RefGen_v4:7:123712201:123712512:1 gene:Zm00001d020585 transcript:Zm00001d020585_T001 gene_biotype:protein_coding transcript_biotype:protein_coding gene_symbol:H4C7 description:Histone H4 )'
A25: Zm00001d006547_T001 | B25: 165 | C25: 2.78 | D25: 0.30287513 | E25: 9.162817418 | F25: 5.055970802e-20 | G25: 6.620168961e-19 | H25: see Table 2 | I25: '12.1.2' | J25: '.Chromatin organisation.histones.histone (H2A)' | K25: 'histone (H2A) (original description: pep chromosome:B73_RefGen_v4:2:210775108:210776396:1 gene:Zm00001d006547 transcript:Zm00001d006547_T001 gene_biotype:protein_coding transcript_biotype:protein_coding description:Histone H2A )'
A26: Zm00001d012837_T001 | B26: 52 | C26: 4.57 | D26: 0.506586761 | E26: 9.022801344 | F26: 1.833398414e-19 | G26: 2.300854394e-18 | H26: see Table 2 | I26: '12.1.2' | J26: '.Chromatin organisation.histones.histone (H2A)' | K26: 'histone (H2A) (original description: pep chromosome:B73_RefGen_v4:5:975110:975562:1 gene:Zm00001d012837 transcript:Zm00001d012837_T001 gene_biotype:protein_coding transcript_biotype:protein_coding description:Histone H2A )'
A27: Zm00001d013066_T002 | B27: 132 | C27: 2.86 | D27: 0.3263954796 | E27: 8.752273691 | F27: 2.090965424e-18 | G27: 2.45113294e-17 | H27: see Table 2 | I27: '12.1.1' | J27: '.Chromatin organisation.histones.linker histone (H1)' | K27: 'linker histone (H1) (original description: pep chromosome:B73_RefGen_v4:5:4147250:4148511:1 gene:Zm00001d013066 transcript:Zm00001d013066_T008 gene_biotype:protein_coding transcript_biotype:protein_coding description:Histone H1 )'
A28: Zm00001d003725_T001 | B28: 62 | C28: 6.29 | D28: 0.7280190691 | E28: 8.637904558 | F28: 5.725341567e-18 | G28: 6.515067281e-17 | H28: see Table 2 | I28: '12.1.4' | J28: '.Chromatin organisation.histones.histone (H3)' | K28: 'histone (H3) (original description: pep chromosome:B73_RefGen_v4:2:56544752:56545162:-1 gene:Zm00001d003725 transcript:Zm00001d003725_T001 gene_biotype:protein_coding transcript_biotype:protein_coding gene_symbol:H3C2 description:Histone H3.2 )'
A29: Zm00001d021422_T001 | B29: 185 | C29: 2.90 | D29: 0.3445103891 | E29: 8.409946647 | F29: 4.101972684e-17 | G29: 4.412918781e-16 | H29: see Table 2 | I29: '12.1.5' | J29: '.Chromatin organisation.histones.histone (H4)' | K29: 'histone (H4) (original description: pep chromosome:B73_RefGen_v4:7:151786254:151786667:1 gene:Zm00001d021422 transcript:Zm00001d021422_T001 gene_biotype:protein_coding transcript_biotype:protein_coding description:Histone H4 )'
A30: Zm00001d027394_T001 | B30: 82 | C30: 3.61 | D30: 0.4458243166 | E30: 8.097801707 | F30: 5.596118665e-16 | G30: 5.583889894e-15 | H30: see Table 2 | I30: '12.1.5' | J30: '.Chromatin organisation.histones.histone (H4)' | K30: 'histone (H4) (original description: pep chromosome:B73_RefGen_v4:1:4340135:4340790:1 gene:Zm00001d027394 transcript:Zm00001d027394_T001 gene_biotype:protein_coding transcript_biotype:protein_coding gene_symbol:H4C7 description:Histone H4 )'
A31: Zm00001d013300_T001 | B31: 826 | C31: 1.46 | D31: 0.1846159304 | E31: 7.928884027 | F31: 2.211239225e-15 | G31: 2.120357293e-14 | H31: see Table 2 | I31: '12.1.2' | J31: '.Chromatin organisation.histones.histone (H2A)' | K31: 'histone (H2A) (original description: pep chromosome:B73_RefGen_v4:5:8016323:8018368:-1 gene:Zm00001d013300 transcript:Zm00001d013300_T001 gene_biotype:protein_coding transcript_biotype:protein_coding description:Histone H2A )'
A32: Zm00001d002601_T001 | B32: 695 | C32: 1.76 | D32: 0.2228134194 | E32: 7.887399077 | F32: 3.085494943e-15 | G32: 2.926489714e-14 | H32: see Table 2 | I32: '12.1.1' | J32: '.Chromatin organisation.histones.linker histone (H1)' | K32: 'linker histone (H1) (original description: pep chromosome:B73_RefGen_v4:2:16461905:16462911:-1 gene:Zm00001d002601 transcript:Zm00001d002601_T001 gene_biotype:protein_coding transcript_biotype:protein_coding description:histone H1-3)'
A33: Zm00001d006213_T001 | B33: 294 | C33: 2.70 | D33: 0.3643624592 | E33: 7.40771333 | F33: 1.284956851e-13 | G33: 1.068642779e-12 | H33: see Table 2 | I33: '12.1.2' | J33: '.Chromatin organisation.histones.histone (H2A)' | K33: 'histone (H2A) (original description: pep chromosome:B73_RefGen_v4:2:201970912:201971385:-1 gene:Zm00001d006213 transcript:Zm00001d006213_T001 gene_biotype:protein_coding transcript_biotype:protein_coding description:Probable histone H2A.4)'
A34: Zm00001d026015_T001 | B34: 52 | C34: 6.78 | D34: 0.9811962438 | E34: 6.911679133 | F34: 4.789502264e-12 | G34: 3.505842535e-11 | H34: see Table 2 | I34: '12.1.5' | J34: '.Chromatin organisation.histones.histone (H4)' | K34: 'histone (H4) (original description: pep chromosome:B73_RefGen_v4:10:136050474:136050785:-1 gene:Zm00001d026015 transcript:Zm00001d026015_T001 gene_biotype:protein_coding transcript_biotype:protein_coding gene_symbol:H4C7 description:Histone H4 )'
A35: Zm00001d005791_T001 | B35: 86 | C35: 3.95 | D35: 0.5712799102 | E35: 6.906172538 | F35: 4.979043621e-12 | G35: 3.637179986e-11 | H35: see Table 2 | I35: '12.1.5' | J35: '.Chromatin organisation.histones.histone (H4)' | K35: 'histone (H4) (original description: pep chromosome:B73_RefGen_v4:2:188810174:188810485:1 gene:Zm00001d005791 transcript:Zm00001d005791_T001 gene_biotype:protein_coding transcript_biotype:protein_coding gene_symbol:H4C7 description:Histone H4 )'
A36: Zm00001d003730_T001 | B36: 65 | C36: 7.67 | D36: 1.117723449 | E36: 6.859663135 | F36: 6.902311598e-12 | G36: 4.9826549e-11 | H36: see Table 2 | I36: '12.1.4' | J36: '.Chromatin organisation.histones.histone (H3)' | K36: 'histone (H3) (original description: pep chromosome:B73_RefGen_v4:2:56683263:56683892:-1 gene:Zm00001d003730 transcript:Zm00001d003730_T003 gene_biotype:protein_coding transcript_biotype:protein_coding gene_symbol:H3C2 description:Histone H3.2 )'
A37: Zm00001d045268_T001 | B37: 41 | C37: 5.25 | D37: 0.7832803729 | E37: 6.702935015 | F37: 2.042743255e-11 | G37: 1.414967378e-10 | H37: see Table 2 | I37: '12.1.4' | J37: '.Chromatin organisation.histones.histone (H3)' | K37: 'histone (H3) (original description: pep chromosome:B73_RefGen_v4:9:17495380:17496111:1 gene:Zm00001d045268 transcript:Zm00001d045268_T001 gene_biotype:protein_coding transcript_biotype:protein_coding gene_symbol:H3C2 description:Histone H3.2 )'
A38: Zm00001d007084_T001 | B38: 401 | C38: 1.61 | D38: 0.2400095761 | E38: 6.687261945 | F38: 2.273846675e-11 | G38: 1.567123797e-10 | H38: see Table 2 | I38: '12.1.3' | J38: '.Chromatin organisation.histones.histone (H2B)' | K38: 'histone (H2B) (original description: pep chromosome:B73_RefGen_v4:2:221914642:221915449:1 gene:Zm00001d007084 transcript:Zm00001d007084_T001 gene_biotype:protein_coding transcript_biotype:protein_coding description:Histone H2B )'
A39: Zm00001d020580_T001 | B39: 488 | C39: 1.74 | D39: 0.2619630519 | E39: 6.643464737 | F39: 3.0639381e-11 | G39: 2.08714912e-10 | H39: see Table 2 | I39: '12.1.3' | J39: '.Chromatin organisation.histones.histone (H2B)' | K39: 'histone (H2B) (original description: pep chromosome:B73_RefGen_v4:7:123664001:123664456:1 gene:Zm00001d020580 transcript:Zm00001d020580_T001 gene_biotype:protein_coding transcript_biotype:protein_coding gene_symbol:histone2b1 description:Histone H2B.1 )'
A40: Zm00001d005789_T001 | B40: 131 | C40: 2.53 | D40: 0.3818566987 | E40: 6.624833677 | F40: 3.476393838e-11 | G40: 2.355840319e-10 | H40: see Table 2 | I40: '12.1.3' | J40: '.Chromatin organisation.histones.histone (H2B)' | K40: 'histone (H2B) (original description: pep chromosome:B73_RefGen_v4:2:188710662:188711219:1 gene:Zm00001d005789 transcript:Zm00001d005789_T001 gene_biotype:protein_coding transcript_biotype:protein_coding gene_symbol:histone 2B3 description: histone 2B3)'
A41: Zm00001d016723_T001 | B41: 47 | C41: 9.02 | D41: 1.382916422 | E41: 6.524231432 | F41: 6.835110281e-11 | G41: 4.518051872e-10 | H41: see Table 2 | I41: '12.1.4' | J41: '.Chromatin organisation.histones.histone (H3)' | K41: 'histone (H3) (original description: pep chromosome:B73_RefGen_v4:5:174196062:174196472:1 gene:Zm00001d016723 transcript:Zm00001d016723_T001 gene_biotype:protein_coding transcript_biotype:protein_coding description:Histone H3 )'
A42: Zm00001d002543_T001 | B42: 56 | C42: 8.31 | D42: 1.304348731 | E42: 6.371951735 | F42: 1.866376277e-10 | G42: 1.186258205e-09 | H42: see Table 2 | I42: '12.1.5' | J42: '.Chromatin organisation.histones.histone (H4)' | K42: 'histone (H4) (original description: pep chromosome:B73_RefGen_v4:2:15068321:15068632:-1 gene:Zm00001d002543 transcript:Zm00001d002543_T001 gene_biotype:protein_coding transcript_biotype:protein_coding gene_symbol:H4C7 description:Histone H4 )'
A43: Zm00001d051591_T001 | B43: 307 | C43: 4.87 | D43: 0.8010276092 | E43: 6.080393268 | F43: 1.198881339e-09 | G43: 7.061861613e-09 | H43: see Table 2 | I43: '12.1.3' | J43: '.Chromatin organisation.histones.histone (H2B)' | K43: 'histone (H2B) (original description: pep chromosome:B73_RefGen_v4:4:163976517:163976981:1 gene:Zm00001d051591 transcript:Zm00001d051591_T001 gene_biotype:protein_coding transcript_biotype:protein_coding gene_symbol:histone 2B5 description: histone 2B5)'
A44: Zm00001d036036_T001 | B44: 413 | C44: 2.10 | D44: 0.3526266996 | E44: 5.950185517 | F44: 2.678387296e-09 | G44: 1.523915494e-08 | H44: see Table 2 | I44: '12.1.4' | J44: '.Chromatin organisation.histones.histone (H3)' | K44: 'histone (H3) (original description: pep chromosome:B73_RefGen_v4:6:67784534:67785534:-1 gene:Zm00001d036036 transcript:Zm00001d036036_T001 gene_biotype:protein_coding transcript_biotype:protein_coding description:Histone H3 )'
A45: Zm00001d042954_T001 | B45: 30 | C45: 8.38 | D45: 1.414601888 | E45: 5.923600608 | F45: 3.149678831e-09 | G45: 1.776604136e-08 | H45: see Table 2 | I45: '12.1.5' | J45: '.Chromatin organisation.histones.histone (H4)' | K45: 'histone (H4) (original description: pep chromosome:B73_RefGen_v4:3:184749677:184749988:-1 gene:Zm00001d042954 transcript:Zm00001d042954_T001 gene_biotype:protein_coding transcript_biotype:protein_coding gene_symbol:H4C7 description:Histone H4 )'
A46: Zm00001d027760_T001 | B46: 28 | C46: 3.57 | D46: 0.6053446942 | E46: 5.900873342 | F46: 3.61582415e-09 | G46: 2.024847446e-08 | H46: see Table 2 | I46: '12.1.2' | J46: '.Chromatin organisation.histones.histone (H2A)' | K46: 'histone (H2A) (original description: pep chromosome:B73_RefGen_v4:1:13023613:13024482:1 gene:Zm00001d027760 transcript:Zm00001d027760_T001 gene_biotype:protein_coding transcript_biotype:protein_coding description:Histone H2A )'
A47: Zm00001d033822_T001 | B47: 25 | C47: 6.27 | D47: 1.124689231 | E47: 5.575332725 | F47: 2.470572038e-08 | G47: 1.272760491e-07 | H47: see Table 2 | I47: '12.1.2' | J47: '.Chromatin organisation.histones.histone (H2A)' | K47: 'histone (H2A) (original description: pep chromosome:B73_RefGen_v4:1:274809375:274810292:1 gene:Zm00001d033822 transcript:Zm00001d033822_T001 gene_biotype:protein_coding transcript_biotype:protein_coding description:Probable histone H2AXa)'
A48: Zm00001d039790_T001 | B48: 26 | C48: 6.36 | D48: 1.173628949 | E48: 5.419199705 | F48: 5.98664148e-08 | G48: 2.953991689e-07 | H48: see Table 2 | I48: '12.1.4' | J48: '.Chromatin organisation.histones.histone (H3)' | K48: 'histone (H3) (original description: pep chromosome:B73_RefGen_v4:3:14754274:14754684:-1 gene:Zm00001d039790 transcript:Zm00001d039790_T001 gene_biotype:protein_coding transcript_biotype:protein_coding gene_symbol:H3C2 description:Histone H3.2 )'
A49: Zm00001d050697_T001 | B49: 21 | C49: 4.17 | D49: 0.7702218538 | E49: 5.416926344 | F49: 6.063230322e-08 | G49: 2.99126988e-07 | H49: see Table 2 | I49: '12.1.4' | J49: '.Chromatin organisation.histones.histone (H3)' | K49: 'histone (H3) (original description: pep chromosome:B73_RefGen_v4:4:116465391:116465801:1 gene:Zm00001d050697 transcript:Zm00001d050697_T001 gene_biotype:protein_coding transcript_biotype:protein_coding gene_symbol:H3C2 description:Histone H3.2 )'
A50: Zm00001d012439_T001 | B50: 36 | C50: 4.99 | D50: 0.9338505082 | E50: 5.34835017 | F50: 8.875961095e-08 | G50: 4.302911575e-07 | H50: see Table 2 | I50: '12.1.5' | J50: '.Chromatin organisation.histones.histone (H4)' | K50: 'histone (H4) (original description: pep chromosome:B73_RefGen_v4:8:174489288:174489599:-1 gene:Zm00001d012439 transcript:Zm00001d012439_T001 gene_biotype:protein_coding transcript_biotype:protein_coding gene_symbol:H4C7 description:Histone H4 )'
A51: Zm00001d021707_T001 | B51: 351 | C51: 1.01 | D51: 0.1950311474 | E51: 5.197099538 | F51: 2.024219881e-07 | G51: 9.345327124e-07 | H51: see Table 2 | I51: '12.1.2' | J51: '.Chromatin organisation.histones.histone (H2A)' | K51: 'histone (H2A) (original description: pep chromosome:B73_RefGen_v4:7:160896082:160897190:1 gene:Zm00001d021707 transcript:Zm00001d021707_T001 gene_biotype:protein_coding transcript_biotype:protein_coding description:Histone H2A )'
A52: Zm00001d010575_T001 | B52: 17 | C52: 7.53 | D52: 1.47818288 | E52: 5.091816773 | F52: 3.546487442e-07 | G52: 1.590115403e-06 | H52: see Table 2 | I52: '12.1.5' | J52: '.Chromatin organisation.histones.histone (H4)' | K52: 'histone (H4) (original description: pep chromosome:B73_RefGen_v4:8:120733570:120733881:1 gene:Zm00001d010575 transcript:Zm00001d010575_T001 gene_biotype:protein_coding transcript_biotype:protein_coding gene_symbol:H4C7 description:Histone H4 )'
A53: Zm00001d006548_T001 | B53: 456 | C53: 1.79 | D53: 0.3535262016 | E53: 5.050023746 | F53: 4.417551468e-07 | G53: 1.960501436e-06 | H53: see Table 2 | I53: '12.1.2' | J53: '.Chromatin organisation.histones.histone (H2A)' | K53: 'histone (H2A) (original description: pep chromosome:B73_RefGen_v4:2:210777888:210778967:1 gene:Zm00001d006548 transcript:Zm00001d006548_T001 gene_biotype:protein_coding transcript_biotype:protein_coding description:Histone H2A )'
A54: Zm00001d020584_T001 | B54: 38 | C54: 2.16 | D54: 0.4273097007 | E54: 5.049515372 | F54: 4.42932297e-07 | G54: 1.965119276e-06 | H54: see Table 2 | I54: '12.1.5' | J54: '.Chromatin organisation.histones.histone (H4)' | K54: 'histone (H4) (original description: pep chromosome:B73_RefGen_v4:7:123703834:123704145:1 gene:Zm00001d020584 transcript:Zm00001d020584_T001 gene_biotype:protein_coding transcript_biotype:protein_coding gene_symbol:H4C7 description:Histone H4 )'
A55: Zm00001d018981_T002 | B55: 461 | C55: 1.26 | D55: 0.2605183173 | E55: 4.84465376 | F55: 1.268326633e-06 | G55: 5.335763712e-06 | H55: see Table 2 | I55: '12.1.1' | J55: '.Chromatin organisation.histones.linker histone (H1)' | K55: 'linker histone (H1) (original description: pep chromosome:B73_RefGen_v4:7:11773227:11774574:1 gene:Zm00001d018981 transcript:Zm00001d018981_T002 gene_biotype:protein_coding transcript_biotype:protein_coding gene_symbol:histone1a description: histone1a)'
A56: Zm00001d008669_T001 | B56: 19 | C56: 4.09 | D56: 0.8803104859 | E56: 4.646863889 | F56: 3.370193738e-06 | G56: 1.336140618e-05 | H56: see Table 2 | I56: '12.1.5' | J56: '.Chromatin organisation.histones.histone (H4)' | K56: 'histone (H4) (original description: pep chromosome:B73_RefGen_v4:8:16558205:16558516:1 gene:Zm00001d008669 transcript:Zm00001d008669_T001 gene_biotype:protein_coding transcript_biotype:protein_coding gene_symbol:H4C7 description:Histone H4 )'
A57: Zm00001d044247_T001 | B57: 350 | C57: 1.05 | D57: 0.2580554668 | E57: 4.052182067 | F57: 5.074215259e-05 | G57: 0.0001700884996 | H57: see Table 2 | I57: '12.1.3' | J57: '.Chromatin organisation.histones.histone (H2B)' | K57: 'histone (H2B) (original description: pep chromosome:B73_RefGen_v4:3:223001191:223001980:-1 gene:Zm00001d044247 transcript:Zm00001d044247_T001 gene_biotype:protein_coding transcript_biotype:protein_coding description: thioredoxin h homolog3)'
A58: Zm00001d009350_T001 | B58: 6 | C58: 5.98 | D58: 1.49218336 | E58: 4.010188758 | F58: 6.06702267e-05 | G58: 0.0002009983856 | H58: see Table 2 | I58: '12.1.2' | J58: '.Chromatin organisation.histones.histone (H2A)' | K58: 'histone (H2A) (original description: pep chromosome:B73_RefGen_v4:8:57956287:57956634:-1 gene:Zm00001d009350 transcript:Zm00001d009350_T001 gene_biotype:protein_coding transcript_biotype:protein_coding description:Histone H2A variant 1)'
A59: Zm00001d011236_T001 | B59: 181 | C59: 1.42 | D59: 0.3818148214 | E59: 3.725229093 | F59: 0.0001951379201 | G59: 0.0005951582429 | H59: see Table 2 | I59: '12.1.3' | J59: '.Chromatin organisation.histones.histone (H2B)' | K59: 'histone (H2B) (original description: pep chromosome:B73_RefGen_v4:8:144142073:144142525:-1 gene:Zm00001d011236 transcript:Zm00001d011236_T001 gene_biotype:protein_coding transcript_biotype:protein_coding description:Histone H2B )'
A60: Zm00001d013392_T001 | B60: 77 | C60: 1.13 | D60: 0.3179855338 | E60: 3.561967472 | F60: 0.0003680859973 | G60: 0.001070217292 | H60: see Table 2 | I60: '12.1.2' | J60: '.Chromatin organisation.histones.histone (H2A)' | K60: 'histone (H2A) (original description: pep chromosome:B73_RefGen_v4:5:10304542:10305596:-1 gene:Zm00001d013392 transcript:Zm00001d013392_T001 gene_biotype:protein_coding transcript_biotype:protein_coding description:Histone H2A )'
A61: Zm00001d036250_T001 | B61: 6 | C61: 5.03 | D61: 1.501976699 | E61: 3.35069683 | F61: 0.0008060850003 | G61: 0.002206971277 | H61: see Table 2 | I61: '12.1.4' | J61: '.Chromatin organisation.histones.histone (H3)' | K61: 'histone (H3) (original description: pep chromosome:B73_RefGen_v4:6:79853753:79854163:1 gene:Zm00001d036250 transcript:Zm00001d036250_T001 gene_biotype:protein_coding transcript_biotype:protein_coding gene_symbol:H3C2 description:Histone H3-like 5)'
A62: Zm00001d021433_T002 | B62: 622 | C62: 3.48 | D62: 0.1854333981 | E62: 18.78786084 | F62: 9.492948784e-79 | G62: 1.157134143e-76 | H62: associated with overexpression of replication-dependent histones and genome instability in metazoans | I62: '35.1' | J62: 'not assigned.annotated' | K62: '(original description: pep chromosome:B73_RefGen_v4:7:152095520:152097341:-1 gene:Zm00001d021433 transcript:Zm00001d021433_T005 gene_biotype:protein_coding transcript_biotype:protein_coding gene_symbol:HMG-transcription factor 13 description:High mobility group B protein 2) & HMG1/2-like protein OS=Ipomoea nil (sp|p40619|hmgl_iponi : 93.6)'
A63: Zm00001d052749_T001 | B63: 167 | C63: 3.74 | D63: 0.2717923501 | E63: 13.74880918 | F63: 5.17747008e-43 | G63: 1.934289374e-41 | H63: associated with overexpression of replication-dependent histones and genome instability in metazoans | I63: '35.1' | J63: 'not assigned.annotated' | K63: '(original description: pep chromosome:B73_RefGen_v4:4:199665081:199666577:1 gene:Zm00001d052749 transcript:Zm00001d052749_T001 gene_biotype:protein_coding transcript_biotype:protein_coding gene_symbol:nucleosome/chromatin assembly factor D description: nucleosome/chromatin assembly factor D) & High mobility group B protein 7 OS=Arabidopsis thaliana (sp|q8ldf9|hmgb7_arath : 105.0)'
A64: Zm00001d016082_T001 | B64: 132 | C64: 4.36 | D64: 0.3693806496 | E64: 11.80660828 | F64: 3.608251139e-32 | G64: 8.715244377e-31 | H64: associated with overexpression of replication-dependent histones and genome instability in metazoans | I64: '35.1' | J64: 'not assigned.annotated' | K64: '(original description: pep chromosome:B73_RefGen_v4:5:143463525:143465976:1 gene:Zm00001d016082 transcript:Zm00001d016082_T001 gene_biotype:protein_coding transcript_biotype:protein_coding gene_symbol:HMG-transcription factor 9 description:High mobility group B protein 6) & High mobility group B protein 6 OS=Arabidopsis thaliana (sp|q9sup7|hmgb6_arath : 250.0)'
A65: Zm00001d035321_T001 | B65: 337 | C65: 2.28 | D65: 0.1915856437 | E65: 11.91242784 | F65: 1.019644444e-32 | G65: 2.513462873e-31 | H65: associated with overexpression of replication-dependent histones and genome instability in metazoans | I65: '35.2' | J65: 'not assigned.not annotated' | K65: 'no hits & (original description: pep chromosome:B73_RefGen_v4:6:21256645:21260184:1 gene:Zm00001d035321 transcript:Zm00001d035321_T001 gene_biotype:protein_coding transcript_biotype:protein_coding description:SWIB/MDM2 domain superfamily protein)'
A66: Zm00001d032239_T001 | B66: 254 | C66: 1.87 | D66: 0.2081875973 | E66: 8.98170713 | F66: 2.665976679e-19 | G66: 3.307121653e-18 | H66: associated with overexpression of replication-dependent histones and genome instability in metazoans | I66: '35.1' | J66: 'not assigned.annotated' | K66: '(original description: pep chromosome:B73_RefGen_v4:1:218500155:218501623:1 gene:Zm00001d032239 transcript:Zm00001d032239_T001 gene_biotype:protein_coding transcript_biotype:protein_coding gene_symbol:high mobility group family A 102 description: high mobility group family A 102) & HMG-Y-related protein A OS=Zea mays (sp|q9fys5|hmgya_maize : 141.0)'
A67: Zm00001d006306_T006 | B67: 64 | C67: -1.39 | D67: 0.3312447582 | E67: -4.205648643 | F67: 2.603344167e-05 | G67: 9.127410317e-05 | H67: associated with overexpression of replication-dependent histones and genome instability in metazoans | I67: '35.1' | J67: 'not assigned.annotated' | K67: '(original description: pep chromosome:B73_RefGen_v4:2:204114404:204115852:1 gene:Zm00001d006306 transcript:Zm00001d006306_T006 gene_biotype:protein_coding transcript_biotype:protein_coding gene_symbol:HMG-transcription factor 3 description:High mobility group B protein 2) & HMG1/2-like protein OS=Ipomoea nil (sp|p40619|hmgl_iponi : 124.0)'
A68: Zm00001d011130_T002 | B68: 683 | C68: 1.09 | D68: 0.1307282352 | E68: 8.334465439 | F68: 7.784910904e-17 | G68: 8.23643001e-16 | I68: '12.2.6' | J68: '.Chromatin organisation.histone chaperone activities.histone chaperone (NAP)' | K68: 'histone chaperone (NAP) (original description: pep chromosome:B73_RefGen_v4:8:139922121:139923373:1 gene:Zm00001d011130 transcript:Zm00001d011130_T006 gene_biotype:protein_coding transcript_biotype:protein_coding description:Nucleosome assembly protein 1;2)'
A69: Zm00001d038851_T001 | B69: 1315 | C69: 0.79 | D69: 0.1175121167 | E69: 6.73597865 | F69: 1.628301968e-11 | G69: 1.138584412e-10 | I69: '12.2.6' | J69: '.Chromatin organisation.histone chaperone activities.histone chaperone (NAP)' | K69: 'histone chaperone (NAP) (original description: pep chromosome:B73_RefGen_v4:6:165842393:165845801:-1 gene:Zm00001d038851 transcript:Zm00001d038851_T001 gene_biotype:protein_coding transcript_biotype:protein_coding description:Nucleosome assembly protein 1;2)'
A70: Zm00001d033247_T001 | B70: 221 | C70: -1.27 | D70: 0.1752391027 | E70: -7.236638664 | F70: 4.599413901e-13 | G70: 3.660064722e-12 | I70: '12.2.1.3' | J70: '.Chromatin organisation.histone chaperone activities.CAF1 histone chaperone complex.component CAF1c/MSI' | K70: 'component CAF1c/MSI of CAF1 histone chaperone complex (original description: pep chromosome:B73_RefGen_v4:1:255989021:256003077:1 gene:Zm00001d033247 transcript:Zm00001d033247_T005 gene_biotype:protein_coding transcript_biotype:protein_coding description: nucleosome/chromatin assembly factor C)'
A71: Zm00001d014998_T001 | B71: 2313 | C71: 0.35 | D71: 0.109528886 | E71: 3.160534694 | F71: 0.001574798491 | G71: 0.004075040764 | I71: '12.2.2.1' | J71: '.Chromatin organisation.histone chaperone activities.FACT histone chaperone complex.component SPT16' | K71: 'component SPT16 of FACT histone chaperone complex (original description: pep chromosome:B73_RefGen_v4:5:71503072:71509439:-1 gene:Zm00001d014998 transcript:Zm00001d014998_T001 gene_biotype:protein_coding transcript_biotype:protein_coding description:FACT complex subunit SPT16 )'
A72: Zm00001d038932_T001 | B72: 71 | C72: 1.13 | D72: 0.2710236662 | E72: 4.17631482 | F72: 2.962697163e-05 | G72: 0.0001029446905 | I72: '12.2.3' | J72: '.Chromatin organisation.histone chaperone activities.histone chaperone (ASF1)' | K72: 'histone chaperone (ASF1) (original description: pep chromosome:B73_RefGen_v4:6:167236940:167241191:1 gene:Zm00001d038932 transcript:Zm00001d038932_T001 gene_biotype:protein_coding transcript_biotype:protein_coding description:Probable histone chaperone ASF1A)'
A73: Zm00001d009493_T001 | B73: 16 | C73: 2.99 | D73: 0.6623656403 | E73: 4.513396284 | F73: 6.379765517e-06 | G73: 2.428887171e-05 | I73: '12.2.3' | J73: '.Chromatin organisation.histone chaperone activities.histone chaperone (ASF1)' | K73: 'histone chaperone (ASF1) (original description: pep chromosome:B73_RefGen_v4:8:67177148:67180676:1 gene:Zm00001d009493 transcript:Zm00001d009493_T001 gene_biotype:protein_coding transcript_biotype:protein_coding description:Probable histone chaperone ASF1A)'
A74: Zm00001d019789_T003 | B74: 593 | C74: -0.14 | D74: 0.124304686 | E74: -1.092803572 | F74: 0.2744800531 | G74: 0.3726974269 | I74: '12.2.4' | J74: '.Chromatin organisation.histone chaperone activities.histone chaperone (HIRA)' | K74: 'histone chaperone (HIRA) (original description: pep chromosome:B73_RefGen_v4:7:61633462:61644384:-1 gene:Zm00001d019789 transcript:Zm00001d019789_T008 gene_biotype:protein_coding transcript_biotype:protein_coding description:homolog of histone chaperone HIRA)'
A75: Zm00001d012166_T002 | B75: 58 | C75: 3.62 | D75: 0.4548305989 | E75: 7.951694504 | F75: 1.839774847e-15 | G75: 1.772431448e-14 | I75: '12.2.1.1' | J75: '.Chromatin organisation.histone chaperone activities.CAF1 histone chaperone complex.component CAF1a/FAS1' | K75: 'component CAF1a/FAS1 of CAF1 histone chaperone complex (original description: pep chromosome:B73_RefGen_v4:8:169364121:169370270:-1 gene:Zm00001d012166 transcript:Zm00001d012166_T003 gene_biotype:protein_coding transcript_biotype:protein_coding description:Faciata 1-like protein )'
A76: Zm00001d022614_T001 | B76: 119 | C76: 0.85 | D76: 0.2659009053 | E76: 3.212090082 | F76: 0.001317730499 | G76: 0.003464054945 | I76: '12.2.1.3' | J76: '.Chromatin organisation.histone chaperone activities.CAF1 histone chaperone complex.component CAF1c/MSI' | K76: 'component CAF1c/MSI of CAF1 histone chaperone complex (original description: pep chromosome:B73_RefGen_v4:7:181107306:181113347:-1 gene:Zm00001d022614 transcript:Zm00001d022614_T002 gene_biotype:protein_coding transcript_biotype:protein_coding description: nucleosome/chromatin assembly factor 104)'
A77: Zm00001d042528_T002 | B77: 73 | C77: 1.37 | D77: 0.2987184856 | E77: 4.596739159 | F77: 4.291543206e-06 | G77: 1.675781504e-05 | I77: '12.2.1.1' | J77: '.Chromatin organisation.histone chaperone activities.CAF1 histone chaperone complex.component CAF1a/FAS1' | K77: 'component CAF1a/FAS1 of CAF1 histone chaperone complex (original description: pep chromosome:B73_RefGen_v4:3:170873235:170878371:-1 gene:Zm00001d042528 transcript:Zm00001d042528_T008 gene_biotype:protein_coding transcript_biotype:protein_coding description:Chromatin assembly factor 1 subunit FAS1)'
A78: Zm00001d033158_T002 | B78: 181 | C78: 2.36 | D78: 0.2358751981 | E78: 9.99491868 | F78: 1.604188508e-23 | G78: 2.558075987e-22 | I78: '12.3.3.9.1' | J78: '.Chromatin organisation.histone modifications.histone lysine methylation.JmjC group histone demethylase activities.histone demethylase (KDM3)' | K78: 'histone demethylase (KDM3) (original description: pep chromosome:B73_RefGen_v4:1:252436182:252443402:1 gene:Zm00001d033158 transcript:Zm00001d033158_T001 gene_biotype:protein_coding transcript_biotype:protein_coding gene_symbol:JUMONJI-transcription factor 22 description:Transcription factor jumonji (jmjC) domain-containing protein)'
A79: Zm00001d019195_T001 | B79: 831 | C79: -0.95 | D79: 0.1424394556 | E79: -6.651213413 | F79: 2.906864202e-11 | G79: 1.985321996e-10 | I79: '12.3.3.7' | J79: '.Chromatin organisation.histone modifications.histone lysine methylation.class-V histone methyltransferase (Suvar)' | K79: 'class V/Su(var) histone methyltransferase component of histone lysine methylation/demethylation (original description: pep chromosome:B73_RefGen_v4:7:21140414:21142984:1 gene:Zm00001d019195 transcript:Zm00001d019195_T001 gene_biotype:protein_coding transcript_biotype:protein_coding description:Histone-lysine N-methyltransferase H3 lysine-9 specific SUVH3)'
A80: Zm00001d043135_T003 | B80: 429 | C80: 0.76 | D80: 0.1468370718 | E80: 5.149455001 | F80: 2.612444386e-07 | G80: 1.190246874e-06 | I80: '12.3.3.7' | J80: '.Chromatin organisation.histone modifications.histone lysine methylation.class-V histone methyltransferase (Suvar)' | K80: 'class V/Su(var) histone methyltransferase component of histone lysine methylation/demethylation (original description: pep chromosome:B73_RefGen_v4:3:189967776:189971654:-1 gene:Zm00001d043135 transcript:Zm00001d043135_T001 gene_biotype:protein_coding transcript_biotype:protein_coding gene_symbol:set domain gene113 description:Histone-lysine N-methyltransferase H3 lysine-9 specific SUVH3)'
A81: Zm00001d011802_T001 | B81: 35 | C81: 2.39 | D81: 0.4600545278 | E81: 5.186282807 | F81: 2.145329527e-07 | G81: 9.882256928e-07 | I81: '12.3.3.6' | J81: '.Chromatin organisation.histone modifications.histone lysine methylation.class IV histone methyltransferase' | K81: 'class IV histone methyltransferase component of histone lysine methylation/demethylation (original description: pep chromosome:B73_RefGen_v4:8:161757825:161764087:-1 gene:Zm00001d011802 transcript:Zm00001d011802_T001 gene_biotype:protein_coding transcript_biotype:protein_coding gene_symbol:PHD-transcription factor 42 description:Histone-lysine N-methyltransferase ATXR5)'
A82: Zm00001d053875_T001 | B82: 1018 | C82: 0.36 | D82: 0.1029017925 | E82: 3.48164849 | F82: 0.0004983373947 | G82: 0.001412554454 | I82: '12.3.3.1.2.2' | J82: '.Chromatin organisation.histone modifications.histone lysine methylation.PRC2 histone methylation complex.associated protein factors.PRC2-VRN-interacting PHD protein (VIN3|VRN5)' | K82: 'PRC2-VRN-interacting PHD protein (VIN3|VRN5) (original description: pep chromosome:B73_RefGen_v4:4:242702075:242707311:1 gene:Zm00001d053875 transcript:Zm00001d053875_T001 gene_biotype:protein_coding transcript_biotype:protein_coding description:VIN3-like protein 2)'
A83: Zm00001d044500_T001 | B83: 216 | C83: -1.22 | D83: 0.2044171917 | E83: -5.945022017 | F83: 2.76419699e-09 | G83: 1.568086271e-08 | I83: '12.3.3.1.2.5' | J83: '.Chromatin organisation.histone modifications.histone lysine methylation.PRC2 histone methylation complex.associated protein factors.histone H3 methylation reader (PWO)' | K83: 'histone H3 methylation reader (PWO) (original description: pep chromosome:B73_RefGen_v4:3:229925462:229929656:-1 gene:Zm00001d044500 transcript:Zm00001d044500_T001 gene_biotype:protein_coding transcript_biotype:protein_coding description:Tudor/PWWP/MBT superfamily protein)'
A84: Zm00001d024318_T009 | B84: 172 | C84: 1.17 | D84: 0.2231701379 | E84: 5.25093589 | F84: 1.513283472e-07 | G84: 7.113174125e-07 | I84: '12.3.3.1.2.2' | J84: '.Chromatin organisation.histone modifications.histone lysine methylation.PRC2 histone methylation complex.associated protein factors.PRC2-VRN-interacting PHD protein (VIN3|VRN5)' | K84: 'PRC2-VRN-interacting PHD protein (VIN3|VRN5) (original description: pep chromosome:B73_RefGen_v4:10:64146988:64156243:1 gene:Zm00001d024318 transcript:Zm00001d024318_T001 gene_biotype:protein_coding transcript_biotype:protein_coding description:VIN3-like protein 2)'
A85: Zm00001d036296_T004 | B85: 565 | C85: 1.85 | D85: 0.207754113 | E85: 8.912372194 | F85: 4.995212192e-19 | G85: 6.109577769e-18 | I85: '12.3.3.1.1.4' | J85: '.Chromatin organisation.histone modifications.histone lysine methylation.PRC2 histone methylation complex.VRN/FIS/EMF core subcomplexes.catalytic component CLF|SWN|MEA' | K85: 'catalytic component CLF|SWN|MEA of VRN/FIS/EMF core complexes (original description: pep chromosome:B73_RefGen_v4:6:82463752:82474084:-1 gene:Zm00001d036296 transcript:Zm00001d036296_T008 gene_biotype:protein_coding transcript_biotype:protein_coding gene_symbol:enhancer of zeste1 description:Histone-lysine N-methyltransferase EZ1 )'
A86: Zm00001d037313_T004 | B86: 1331 | C86: -0.18 | D86: 0.1181413218 | E86: -1.505299373 | F86: 0.1322471264 | G86: 0.2039805399 | I86: '12.3.3.9.4' | J86: '.Chromatin organisation.histone modifications.histone lysine methylation.JmjC group histone demethylase activities.histone demethylase (PKDM7)' | K86: 'histone demethylase (PKDM7) (original description: pep chromosome:B73_RefGen_v4:6:120401723:120407778:-1 gene:Zm00001d037313 transcript:Zm00001d037313_T028 gene_biotype:protein_coding transcript_biotype:protein_coding gene_symbol:JUMONJI-transcription factor 7 description:Putative lysine-specific demethylase JMJ16)'
A87: Zm00001d010944_T001 | B87: 141 | C87: -1.36 | D87: 0.2680683079 | E87: -5.091649776 | F87: 3.549613114e-07 | G87: 1.591268824e-06 | I87: '12.3.3.11' | J87: '.Chromatin organisation.histone modifications.histone lysine methylation.histone H3K9 methylation reader (AGDP1)' | K87: 'histone H3K9 methylation reader (AGDP1) (original description: pep chromosome:B73_RefGen_v4:8:134422478:134428729:-1 gene:Zm00001d010944 transcript:Zm00001d010944_T001 gene_biotype:protein_coding transcript_biotype:protein_coding description:DUF724 domain-containing protein 2)'
A88: Zm00001d047636_T002 | B88: 530 | C88: -0.43 | D88: 0.1276779659 | E88: -3.394549016 | F88: 0.0006874173365 | G88: 0.00190363251 | I88: '12.3.3.1.1.4' | J88: '.Chromatin organisation.histone modifications.histone lysine methylation.PRC2 histone methylation complex.VRN/FIS/EMF core subcomplexes.catalytic component CLF|SWN|MEA' | K88: 'catalytic component CLF|SWN|MEA of VRN/FIS/EMF core complexes (original description: pep chromosome:B73_RefGen_v4:9:137788189:137801220:1 gene:Zm00001d047636 transcript:Zm00001d047636_T005 gene_biotype:protein_coding transcript_biotype:protein_coding gene_symbol:enhancer of zeste2 description: enhancer of zeste2)'
A89: Zm00001d049457_T042 | B89: 1440 | C89: -0.80 | D89: 0.106843806 | E89: -7.520673341 | F89: 5.449484975e-14 | G89: 4.675375313e-13 | I89: '12.3.3.5' | J89: '.Chromatin organisation.histone modifications.histone lysine methylation.class-III histone methyltransferase (Trithorax)' | K89: 'class III/Trithorax histone methyltransferase component of histone lysine methylation/demethylation (original description: pep chromosome:B73_RefGen_v4:4:30893772:30905760:-1 gene:Zm00001d049457 transcript:Zm00001d049457_T041 gene_biotype:protein_coding transcript_biotype:protein_coding gene_symbol:set domain gene108 description:Histone-lysine N-methyltransferase ATXR3)'
A90: Zm00001d042974_T001 | B90: 96 | C90: 1.11 | D90: 0.2965418454 | E90: 3.741794631 | F90: 0.0001827108029 | G90: 0.0005601664357 | I90: '12.3.2.1.2' | J90: '.Chromatin organisation.histone modifications.histone deacetylation.HD1 histone deacetylase family.class-II histone deacetylase' | K90: 'class-II histone deacetylase (original description: pep chromosome:B73_RefGen_v4:3:185497140:185527206:-1 gene:Zm00001d042974 transcript:Zm00001d042974_T001 gene_biotype:protein_coding transcript_biotype:protein_coding description:Histone deacetylase 10 )'
A91: Zm00001d042447_T002 | B91: 19 | C91: 2.37 | D91: 0.5835702478 | E91: 4.061674133 | F91: 4.87220557e-05 | G91: 0.0001636221546 | I91: '12.3.3.9.6' | J91: '.Chromatin organisation.histone modifications.histone lysine methylation.JmjC group histone demethylase activities.histone demethylase (PKDM9)' | K91: 'histone demethylase (PKDM9) (original description: pep chromosome:B73_RefGen_v4:3:168081519:168087932:-1 gene:Zm00001d042447 transcript:Zm00001d042447_T002 gene_biotype:protein_coding transcript_biotype:protein_coding gene_symbol:JUMONJI-transcription factor 18 description:Lysine-specific demethylase REF6)'
A92: Zm00001d024225_T024 | B92: 1849 | C92: -0.60 | D92: 0.09860730842 | E92: -6.061790547 | F92: 1.346144452e-09 | G92: 7.898131238e-09 | I92: '12.3.3.5' | J92: '.Chromatin organisation.histone modifications.histone lysine methylation.class-III histone methyltransferase (Trithorax)' | K92: 'class III/Trithorax histone methyltransferase component of histone lysine methylation/demethylation (original description: pep chromosome:B73_RefGen_v4:10:58196867:58208183:1 gene:Zm00001d024225 transcript:Zm00001d024225_T025 gene_biotype:protein_coding transcript_biotype:protein_coding description:Histone-lysine N-methyltransferase ATXR3)'
A93: Zm00001d034036_T003 | B93: 461 | C93: 0.28 | D93: 0.1451016411 | E93: 1.960832864 | F93: 0.04989852304 | G93: 0.08936812429 | I93: '12.3.3.1.1.3' | J93: '.Chromatin organisation.histone modifications.histone lysine methylation.PRC2 histone methylation complex.VRN/FIS/EMF core subcomplexes.component EMF2|VRN2|FIS2' | K93: 'component EMF2|VRN2|FIS2 of VRN/FIS/EMF core complexes (original description: pep chromosome:B73_RefGen_v4:1:281962062:281971322:1 gene:Zm00001d034036 transcript:Zm00001d034036_T005 gene_biotype:protein_coding transcript_biotype:protein_coding description:Polycomb group protein EMBRYONIC FLOWER 2)'
A94: Zm00001d011956_T002 | B94: 194 | C94: 1.76 | D94: 0.2277335507 | E94: 7.738450204 | F94: 1.006359489e-14 | G94: 9.149792483e-14 | I94: '12.3.3.7' | J94: '.Chromatin organisation.histone modifications.histone lysine methylation.class-V histone methyltransferase (Suvar)' | K94: 'class V/Su(var) histone methyltransferase component of histone lysine methylation/demethylation (original description: pep chromosome:B73_RefGen_v4:8:165140548:165154811:-1 gene:Zm00001d011956 transcript:Zm00001d011956_T011 gene_biotype:protein_coding transcript_biotype:protein_coding gene_symbol:set domain gene118 description:Histone-lysine N-methyltransferase H3 lysine-9 specific SUVH4)'
A95: Zm00001d009396_T002 | B95: 200 | C95: 0.77 | D95: 0.1746723451 | E95: 4.431629287 | F95: 9.352370929e-06 | G95: 3.476413677e-05 | I95: '12.3.3.9.7' | J95: '.Chromatin organisation.histone modifications.histone lysine methylation.JmjC group histone demethylase activities.histone demethylase (PKDM11)' | K95: 'histone demethylase (PKDM11) (original description: pep chromosome:B73_RefGen_v4:8:62195436:62201240:1 gene:Zm00001d009396 transcript:Zm00001d009396_T002 gene_biotype:protein_coding transcript_biotype:protein_coding gene_symbol:JUMONJI-transcription factor 1 description:2-oxoglutarate (2OG) and Fe(II)-dependent oxygenase superfamily protein)'
A96: Zm00001d017700_T021 | B96: 601 | C96: 1.74 | D96: 0.240077315 | E96: 7.254571263 | F96: 4.029360907e-13 | G96: 3.226068055e-12 | I96: '12.3.3.9.5' | J96: '.Chromatin organisation.histone modifications.histone lysine methylation.JmjC group histone demethylase activities.histone demethylase (PKDM8)' | K96: 'histone demethylase (PKDM8) (original description: pep chromosome:B73_RefGen_v4:5:204553946:204561819:1 gene:Zm00001d017700 transcript:Zm00001d017700_T009 gene_biotype:protein_coding transcript_biotype:protein_coding gene_symbol:JUMONJI-transcription factor 15 description:Lysine-specific demethylase REF6)'
A97: Zm00001d028890_T002 | B97: 228 | C97: -1.15 | D97: 0.1979055306 | E97: -5.816863192 | F97: 5.99621769e-09 | G97: 3.273736843e-08 | I97: '12.3.3.1.1.4' | J97: '.Chromatin organisation.histone modifications.histone lysine methylation.PRC2 histone methylation complex.VRN/FIS/EMF core subcomplexes.catalytic component CLF|SWN|MEA' | K97: 'catalytic component CLF|SWN|MEA of VRN/FIS/EMF core complexes (original description: pep chromosome:B73_RefGen_v4:1:49813401:49823365:-1 gene:Zm00001d028890 transcript:Zm00001d028890_T014 gene_biotype:protein_coding transcript_biotype:protein_coding gene_symbol:enhancer of zeste3 description: enhancer of zeste3)'
A98: Zm00001d000166_T001 | B98: 401 | C98: -0.85 | D98: 0.1597041048 | E98: -5.325851161 | F98: 1.004813872e-07 | G98: 4.844223339e-07 | I98: '12.3.3.1.2.5' | J98: '.Chromatin organisation.histone modifications.histone lysine methylation.PRC2 histone methylation complex.associated protein factors.histone H3 methylation reader (PWO)' | K98: 'histone H3 methylation reader (PWO) (original description: pep contig:B73_RefGen_v4:B73V4_ctg50:84566:90647:-1 gene:Zm00001d000166 transcript:Zm00001d000166_T001 gene_biotype:protein_coding transcript_biotype:protein_coding description:Tudor/PWWP/MBT superfamily protein)'
A99: Zm00001d051126_T004 | B99: 22 | C99: -3.49 | D99: 0.6659444575 | E99: -5.235973066 | F99: 1.641178865e-07 | G99: 7.672971301e-07 | I99: '12.3.3.7' | J99: '.Chromatin organisation.histone modifications.histone lysine methylation.class-V histone methyltransferase (Suvar)' | K99: 'class V/Su(var) histone methyltransferase component of histone lysine methylation/demethylation (original description: pep chromosome:B73_RefGen_v4:4:144683071:144691088:1 gene:Zm00001d051126 transcript:Zm00001d051126_T001 gene_biotype:protein_coding transcript_biotype:protein_coding description:Putative SET-domain containing protein family )'
A100: Zm00001d052325_T001 | B100: 400 | C100: 1.05 | D100: 0.1374601311 | E100: 7.634895594 | F100: 2.260035006e-14 | G100: 1.996757587e-13 | I100: '12.4.4.3' | J100: '.Chromatin organisation.chromatin remodeling complexes.SWR1 histone variant exchanging complex.component SWC6' | K100: 'component SWC6 of SWR1 chromatin remodeling complex (original description: pep chromosome:B73_RefGen_v4:4:187128002:187130399:-1 gene:Zm00001d052325 transcript:Zm00001d052325_T001 gene_biotype:protein_coding transcript_biotype:protein_coding description:SWR1 complex subunit 6)'
A101: Zm00001d014977_T002 | B101: 3047 | C101: -0.49 | D101: 0.1091501792 | E101: -4.496275613 | F101: 6.915408556e-06 | G101: 2.617917593e-05 | I101: '12.4.1.1.3' | J101: '.Chromatin organisation.chromatin remodeling complexes.ATPase modules.Snf2-like group.chromatin remodeling factor (Snf2)' | K101: 'chromatin remodeling factor (Snf2) (original description: pep chromosome:B73_RefGen_v4:5:70823768:70830351:-1 gene:Zm00001d014977 transcript:Zm00001d014977_T009 gene_biotype:protein_coding transcript_biotype:protein_coding gene_symbol:brahma1 description: brahma1)'
A102: Zm00001d024677_T003 | B102: 174 | C102: -1.94 | D102: 0.222745595 | E102: -8.690641663 | F102: 3.603981096e-18 | G102: 4.153674847e-17 | I102: '12.4.1.3.3' | J102: '.Chromatin organisation.chromatin remodeling complexes.ATPase modules.Rad54-like group.chromatin remodeling factor (DRD1)' | K102: 'chromatin remodeling factor (DRD1) (original description: pep chromosome:B73_RefGen_v4:10:83366852:83371690:1 gene:Zm00001d024677 transcript:Zm00001d024677_T005 gene_biotype:protein_coding transcript_biotype:protein_coding description:Protein CHROMATIN REMODELING 35)'
A103: Zm00001d003284_T001 | B103: 245 | C103: 0.15 | D103: 0.1555993709 | E103: 0.9829724305 | F103: 0.3256210077 | G103: 0.4288001615 | I103: '12.4.2.1' | J103: '.Chromatin organisation.chromatin remodeling complexes.additional core components.component BAF255/170' | K103: 'component BAF255/170 of chromatin remodeling complex (original description: pep chromosome:B73_RefGen_v4:2:38748934:38756211:-1 gene:Zm00001d003284 transcript:Zm00001d003284_T001 gene_biotype:protein_coding transcript_biotype:protein_coding gene_symbol:MYB-related-transcription factor 93 description:SWI/SNF complex subunit SWI3A)'
A104: Zm00001d026366_T002 | B104: 29 | C104: -1.68 | D104: 0.4352365346 | E104: -3.868314373 | F104: 0.0001095903169 | G104: 0.0003476604152 | I104: '12.4.1.5.1' | J104: '.Chromatin organisation.chromatin remodeling complexes.ATPase modules.Rad5/16-like group.chromatin remodeling factor (Rad5)' | K104: 'chromatin remodeling factor (Rad5) (original description: pep chromosome:B73_RefGen_v4:10:144415209:144421773:-1 gene:Zm00001d026366 transcript:Zm00001d026366_T002 gene_biotype:protein_coding transcript_biotype:protein_coding description:Putative SNF2-domain/RING finger domain/helicase domain protein )'
A105: Zm00001d018151_T003 | B105: 19 | C105: 2.57 | D105: 0.5814704693 | E105: 4.412047111 | F105: 1.02397825e-05 | G105: 3.786705529e-05 | I105: '12.4.1.3.1' | J105: '.Chromatin organisation.chromatin remodeling complexes.ATPase modules.Rad54-like group.chromatin remodeling factor (Rad54)' | K105: 'chromatin remodeling factor (Rad54) (original description: pep chromosome:B73_RefGen_v4:5:215569988:215588200:-1 gene:Zm00001d018151 transcript:Zm00001d018151_T002 gene_biotype:protein_coding transcript_biotype:protein_coding description:Protein CHROMATIN REMODELING 25)'
A106: Zm00001d034597_T003 | B106: 421 | C106: 0.24 | D106: 0.1377990514 | E106: 1.761036536 | F106: 0.07823221926 | G106: 0.1313397287 | I106: '12.4.3.5' | J106: '.Chromatin organisation.chromatin remodeling complexes.INO80 chromatin remodeling complex.component IES2' | K106: 'component IES2 of INO80 chromatin remodeling complex (original description: pep chromosome:B73_RefGen_v4:1:297445077:297449538:-1 gene:Zm00001d034597 transcript:Zm00001d034597_T003 gene_biotype:protein_coding transcript_biotype:protein_coding description:PAPA-1-like conserved region family protein )'
A107: Zm00001d018152_T001 | B107: 91 | C107: -3.73 | D107: 0.5489008484 | E107: -6.798837794 | F107: 1.054664793e-11 | G107: 7.49679815e-11 | I107: '12.5.1.3' | J107: '.Chromatin organisation.DNA methylation.RNA-directed DNA methylation (RdDM) pathway.stabilization factor (SGS3)' | K107: 'SGS3 stabilization factor of DNA methylation pathway (original description: pep chromosome:B73_RefGen_v4:5:215594980:215596255:-1 gene:Zm00001d018152 transcript:Zm00001d018152_T001 gene_biotype:protein_coding transcript_biotype:protein_coding description:Protein SUPPRESSOR OF GENE SILENCING 3)'
A108: Zm00001d035256_T002 | B108: 651 | C108: -0.79 | D108: 0.1384744041 | E108: -5.674482461 | F108: 1.391085682e-08 | G108: 7.327845049e-08 | I108: '12.5.1.3' | J108: '.Chromatin organisation.DNA methylation.RNA-directed DNA methylation (RdDM) pathway.stabilization factor (SGS3)' | K108: 'SGS3 stabilization factor of DNA methylation pathway (original description: pep chromosome:B73_RefGen_v4:6:17759389:17765846:-1 gene:Zm00001d035256 transcript:Zm00001d035256_T003 gene_biotype:protein_coding transcript_biotype:protein_coding gene_symbol:ragged seedling1 description:Protein SUPPRESSOR OF GENE SILENCING 3 homolog )'
A109: Zm00001d004118_T003 | B109: 703 | C109: -0.52 | D109: 0.1135562055 | E109: -4.555093326 | F109: 5.236232554e-06 | G109: 2.018907678e-05 | I109: '12.5.1.2' | J109: '.Chromatin organisation.DNA methylation.RNA-directed DNA methylation (RdDM) pathway.auxiliary factor (MORC)' | K109: 'MORC-type auxiliary factor of DNA methylation pathway (original description: pep chromosome:B73_RefGen_v4:2:83750412:83754635:1 gene:Zm00001d004118 transcript:Zm00001d004118_T001 gene_biotype:protein_coding transcript_biotype:protein_coding description:Protein MICRORCHIDIA 7)'
A110: Zm00001d039815_T001 | B110: 14 | C110: -4.33 | D110: 0.9762567697 | E110: -4.434580579 | F110: 9.225171107e-06 | G110: 3.434457063e-05 | I110: '12.5.1.3' | J110: '.Chromatin organisation.DNA methylation.RNA-directed DNA methylation (RdDM) pathway.stabilization factor (SGS3)' | K110: 'SGS3 stabilization factor of DNA methylation pathway (original description: pep chromosome:B73_RefGen_v4:3:15591786:15594122:1 gene:Zm00001d039815 transcript:Zm00001d039815_T001 gene_biotype:protein_coding transcript_biotype:protein_coding description:Protein SUPPRESSOR OF GENE SILENCING 3)'
A111: Zm00001d022202_T001 | B111: 279 | C111: 0.47 | D111: 0.1495329268 | E111: 3.121676442 | F111: 0.001798244549 | G111: 0.004594846527 | I111: '12.3.1.2' | J111: '.Chromatin organisation.histone modifications.histone acetylation.histone acetyltransferase (HAM/HAG5|6)' | K111: 'histone acetyltransferase (HAM/HAG5|6) (original description: pep chromosome:B73_RefGen_v4:7:172755429:172761354:-1 gene:Zm00001d022202 transcript:Zm00001d022202_T002 gene_biotype:protein_coding transcript_biotype:protein_coding gene_symbol:protein phosphatase homolog2 description: protein phosphatase homolog2)'
A112: Zm00001d027326_T001 | B112: 1091 | C112: 0.77 | D112: 0.1453229058 | E112: 5.277298258 | F112: 1.311024096e-07 | G112: 6.223470326e-07 | H112: ACTIN-RELATED PROTEIN 4-like, ARP4; Identified as subunit shared by NuA4, INO80, SWR1, BRM-, SYD-, and MINU1/2-associated SWI/SNF chromatin remodeling complexes(PMID:36471048) | I112: '12.4.6.1' | J112: '.Chromatin organisation.chromatin remodeling complexes.SWR1/NuA4-shared subcomplex.component ARP4' | K112: 'component ARP4 of SWR1 chromatin remodeling complex (original description: pep chromosome:B73_RefGen_v4:1:2977014:2997162:-1 gene:Zm00001d027326 transcript:Zm00001d027326_T001 gene_biotype:protein_coding transcript_biotype:protein_coding gene_symbol:actin related protein like4 description:Actin-related protein 4)'
A113: Zm00001d013873_T001 | B113: 400 | C113: 1.20 | D113: 0.1619235704 | E113: 7.441422046 | F113: 9.960715646e-14 | G113: 8.371016856e-13 | H113: ACTIN-RELATED PROTEIN 4-like, ARP4; Identified as subunit shared by NuA4, INO80, SWR1, BRM-, SYD-, and MINU1/2-associated SWI/SNF chromatin remodeling complexes(PMID:36471048) | I113: '20.2.1' | J113: '.Cytoskeleton organisation.microfilament network.actin filament protein' | K113: 'actin filament protein (original description: pep chromosome:B73_RefGen_v4:5:23536538:23540265:1 gene:Zm00001d013873 transcript:Zm00001d013873_T001 gene_biotype:protein_coding transcript_biotype:protein_coding description:Actin-2 )'
A114: Zm00001d011086_T005 | B114: 4007 | C114: 0.28 | D114: 0.1337859748 | E114: 2.127760945 | F114: 0.03335690901 | G114: 0.06279551087 | H114: ACTIN-RELATED PROTEIN 4-like, ARP4; Identified as subunit shared by NuA4, INO80, SWR1, BRM-, SYD-, and MINU1/2-associated SWI/SNF chromatin remodeling complexes(PMID:36471048) | I114: '20.2.1' | J114: '.Cytoskeleton organisation.microfilament network.actin filament protein' | K114: 'actin filament protein (original description: pep chromosome:B73_RefGen_v4:8:138468516:138470071:1 gene:Zm00001d011086 transcript:Zm00001d011086_T007 gene_biotype:protein_coding transcript_biotype:protein_coding description:Actin-7)'
A115: Zm00001d011087_T001 | B115: 7180 | C115: 0.27 | D115: 0.09921604924 | E115: 2.696424259 | F115: 0.007008833495 | G115: 0.015734596 | H115: ACTIN-RELATED PROTEIN 4-like, ARP4; Identified as subunit shared by NuA4, INO80, SWR1, BRM-, SYD-, and MINU1/2-associated SWI/SNF chromatin remodeling complexes(PMID:36471048) | I115: '20.2.1' | J115: '.Cytoskeleton organisation.microfilament network.actin filament protein' | K115: 'actin filament protein (original description: pep chromosome:B73_RefGen_v4:8:138475479:138478501:1 gene:Zm00001d011087 transcript:Zm00001d011087_T002 gene_biotype:protein_coding transcript_biotype:protein_coding description:Actin-7)'
A116: Zm00001d053177_T004 | B116: 2743 | C116: 0.41 | D116: 0.1303256202 | E116: 3.168377533 | F116: 0.00153292317 | G116: 0.003979209603 | H116: ACTIN-RELATED PROTEIN 4-like, ARP4; Identified as subunit shared by NuA4, INO80, SWR1, BRM-, SYD-, and MINU1/2-associated SWI/SNF chromatin remodeling complexes(PMID:36471048) | I116: '20.2.1' | J116: '.Cytoskeleton organisation.microfilament network.actin filament protein' | K116: 'actin filament protein (original description: pep chromosome:B73_RefGen_v4:4:218290739:218292797:1 gene:Zm00001d053177 transcript:Zm00001d053177_T003 gene_biotype:protein_coding transcript_biotype:protein_coding description:Actin-7)'
A117: Zm00001d015743_T002 | B117: 137 | C117: 1.78 | D117: 0.3392229417 | E117: 5.251961497 | F117: 1.504879255e-07 | G117: 7.077139372e-07 | H117: photomorphogenesis marker; WT represses HY5 thru phyB photomorphogenesis pathway; lower chromatin incorporations of H2A.Z and H3 at HY5 in atino80 mutant, resulting in OX of HY5 | I117: '15.5.4.1' | J117: '.RNA biosynthesis.transcriptional regulation.bZIP transcription factor superfamily.transcription factor (bZIP)' | K117: 'transcription factor (bZIP) (original description: pep chromosome:B73_RefGen_v4:5:115451296:115456402:1 gene:Zm00001d015743 transcript:Zm00001d015743_T001 gene_biotype:protein_coding transcript_biotype:protein_coding gene_symbol:bZIP-transcription factor 61 description:Transcription factor HY5)'
H118: https://www.nature.com/articles/s41467-018-05710-7
A119: Zm00001d051542_T047 | B119: 631 | C119: 3.40 | D119: 0.158765625 | E119: 21.43093063 | F119: 6.879138538e-102 | G119: 1.622067035e-99 | H119: see Table 2 | I119: '13.2.1.6' | J119: '.Cell cycle organisation.DNA replication.preinitiation.DNA topoisomerase (TOP2)' | K119: 'DNA topoisomerase (TOP2) (original description: pep chromosome:B73_RefGen_v4:4:161946600:161954336:1 gene:Zm00001d051542 transcript:Zm00001d051542_T013 gene_biotype:protein_coding transcript_biotype:protein_coding description:DNA topoisomerase 2)'
A120: Zm00001d023462_T002 | B120: 381 | C120: 4.86 | D120: 0.23700662 | E120: 20.49251986 | F120: 2.510570529e-93 | G120: 4.689713143e-91 | H120: see Table 2 | I120: '13.2.3.1.3' | J120: '.Cell cycle organisation.DNA replication.elongation.DNA polymerase alpha complex.primase component POLA3' | K120: 'primase component POLA3 of DNA polymerase alpha complex (original description: pep chromosome:B73_RefGen_v4:10:6343058:6349138:1 gene:Zm00001d023462 transcript:Zm00001d023462_T002 gene_biotype:protein_coding transcript_biotype:protein_coding description:Probable DNA primase large subunit)'
A121: Zm00001d049190_T002 | B121: 495 | C121: 2.16 | D121: 0.1814232891 | E121: 11.88802013 | F121: 1.366064805e-32 | G121: 3.350177856e-31 | H121: see Table 2 | I121: '13.2.1.2.1' | J121: '.Cell cycle organisation.DNA replication.preinitiation.MCM replicative DNA helicase complex.component MCM2' | K121: 'component MCM2 of MCM replicative DNA helicase complex (original description: pep chromosome:B73_RefGen_v4:4:19769479:19776143:-1 gene:Zm00001d049190 transcript:Zm00001d049190_T003 gene_biotype:protein_coding transcript_biotype:protein_coding gene_symbol:minichromosome maintenance7 description:DNA replication licensing factor MCM2)'
A122: Zm00001d028210_T001 | B122: 94 | C122: 3.83 | D122: 0.3322906277 | E122: 11.5164721 | F122: 1.089823206e-30 | G122: 2.453125521e-29 | H122: see Table 2 | I122: '13.2.3.5.1' | J122: '.Cell cycle organisation.DNA replication.elongation.single-stranded-DNA binding RPA complex.component RPA1' | K122: 'component RPA1 of single-stranded-DNA binding RPA complex (original description: pep chromosome:B73_RefGen_v4:1:26518046:26521206:1 gene:Zm00001d028210 transcript:Zm00001d028210_T002 gene_biotype:protein_coding transcript_biotype:protein_coding description:Replication protein A 70 kDa DNA-binding subunit B)'
A123: Zm00001d045354_T002 | B123: 227 | C123: 2.14 | D123: 0.201687155 | E123: 10.60261491 | F123: 2.897629648e-26 | G123: 5.367425119e-25 | H123: see Table 2 | I123: '13.2.1.3' | J123: '.Cell cycle organisation.DNA replication.preinitiation.helicase auxiliary factor (CDT1)' | K123: 'helicase auxiliary factor (CDT1) (original description: pep chromosome:B73_RefGen_v4:9:19436350:19439284:1 gene:Zm00001d045354 transcript:Zm00001d045354_T002 gene_biotype:protein_coding transcript_biotype:protein_coding description:CDT1-like protein a chloroplastic)'
A124: Zm00001d010611_T002 | B124: 127 | C124: 2.85 | D124: 0.2818384643 | E124: 10.11760006 | F124: 4.61595068e-24 | G124: 7.579169704e-23 | H124: see Table 2 | I124: '13.2.1.2.2' | J124: '.Cell cycle organisation.DNA replication.preinitiation.MCM replicative DNA helicase complex.component MCM3' | K124: 'component MCM3 of MCM replicative DNA helicase complex (original description: pep chromosome:B73_RefGen_v4:8:121835810:121840476:1 gene:Zm00001d010611 transcript:Zm00001d010611_T005 gene_biotype:protein_coding transcript_biotype:protein_coding description:Putative mini-chromosome maintenance (MCM) complex protein family )'
A125: Zm00001d038467_T001 | B125: 249 | C125: 2.18 | D125: 0.2168973146 | E125: 10.02936974 | F125: 1.132370872e-23 | G125: 1.821863136e-22 | H125: see Table 2 | I125: '13.2.1.2.2' | J125: '.Cell cycle organisation.DNA replication.preinitiation.MCM replicative DNA helicase complex.component MCM3' | K125: 'component MCM3 of MCM replicative DNA helicase complex (original description: pep chromosome:B73_RefGen_v4:6:157923451:157927556:1 gene:Zm00001d038467 transcript:Zm00001d038467_T007 gene_biotype:protein_coding transcript_biotype:protein_coding gene_symbol:replication origin activator1 description:DNA replication licensing factor MCM3 homolog 2 )'
A126: Zm00001d048086_T001 | B126: 112 | C126: 2.69 | D126: 0.2695041789 | E126: 9.966696239 | F126: 2.132029467e-23 | G126: 3.376703353e-22 | H126: see Table 2 | I126: '13.2.3.5.1' | J126: '.Cell cycle organisation.DNA replication.elongation.single-stranded-DNA binding RPA complex.component RPA1' | K126: 'component RPA1 of single-stranded-DNA binding RPA complex (original description: pep chromosome:B73_RefGen_v4:9:149842814:149846476:-1 gene:Zm00001d048086 transcript:Zm00001d048086_T001 gene_biotype:protein_coding transcript_biotype:protein_coding gene_symbol:replication factor A homolog1 description:Replication protein A 70 kDa DNA-binding subunit B)'
A127: Zm00001d026469_T002 | B127: 52 | C127: 4.63 | D127: 0.5106853469 | E127: 9.072590167 | F127: 1.162207419e-19 | G127: 1.48065637e-18 | H127: see Table 2 | I127: '13.2.1.3' | J127: '.Cell cycle organisation.DNA replication.preinitiation.helicase auxiliary factor (CDT1)' | K127: 'helicase auxiliary factor (CDT1) (original description: pep chromosome:B73_RefGen_v4:10:146515760:146519848:1 gene:Zm00001d026469 transcript:Zm00001d026469_T001 gene_biotype:protein_coding transcript_biotype:protein_coding description:CDT1-like protein a chloroplastic)'
A128: Zm00001d051995_T001 | B128: 90 | C128: 2.65 | D128: 0.3295827314 | E128: 8.037164539 | F128: 9.194117441e-16 | G128: 9.011488123e-15 | H128: see Table 2 | I128: '13.2.3.4.1' | J128: '.Cell cycle organisation.DNA replication.elongation.DNA-tracking platform.sliding clamp protein (PCNA)' | K128: 'sliding clamp protein (PCNA) (original description: pep chromosome:B73_RefGen_v4:4:176048087:176049833:-1 gene:Zm00001d051995 transcript:Zm00001d051995_T001 gene_biotype:protein_coding transcript_biotype:protein_coding gene_symbol:proliferating cell nuclear antigen2 description: proliferating cell nuclear antigen2)'
A129: Zm00001d035666_T002 | B129: 236 | C129: 1.23 | D129: 0.162053317 | E129: 7.563141713 | F129: 3.934485439e-14 | G129: 3.417371456e-13 | H129: see Table 2 | I129: '13.2.3.5.1' | J129: '.Cell cycle organisation.DNA replication.elongation.single-stranded-DNA binding RPA complex.component RPA1' | K129: 'component RPA1 of single-stranded-DNA binding RPA complex (original description: pep chromosome:B73_RefGen_v4:6:40027149:40033684:-1 gene:Zm00001d035666 transcript:Zm00001d035666_T002 gene_biotype:protein_coding transcript_biotype:protein_coding description:Replication protein A 70 kDa DNA-binding subunit E)'
A130: Zm00001d022619_T001 | B130: 285 | C130: 1.56 | D130: 0.2063835612 | E130: 7.558362013 | F130: 4.081767079e-14 | G130: 3.539145099e-13 | H130: see Table 2 | I130: '13.2.2.3' | J130: '.Cell cycle organisation.DNA replication.initiation.CDC45-recruitment factor (MCM10)' | K130: 'cell cycle CDC45-recruitment factor (MCM10) (original description: pep chromosome:B73_RefGen_v4:7:181212863:181216786:-1 gene:Zm00001d022619 transcript:Zm00001d022619_T001 gene_biotype:protein_coding transcript_biotype:protein_coding description:minichromosome maintenance 10)'
A131: Zm00001d018531_T004 | B131: 37 | C131: 3.34 | D131: 0.473316727 | E131: 7.053321036 | F131: 1.746971547e-12 | G131: 1.322851553e-11 | H131: see Table 2 | I131: '13.2.3.5.2' | J131: '.Cell cycle organisation.DNA replication.elongation.single-stranded-DNA binding RPA complex.component RPA2' | K131: 'component RPA2 of single-stranded-DNA binding RPA complex (original description: pep chromosome:B73_RefGen_v4:5:222542472:222544595:-1 gene:Zm00001d018531 transcript:Zm00001d018531_T003 gene_biotype:protein_coding transcript_biotype:protein_coding description:Replication protein A 32 kDa subunit A)'
A132: Zm00001d041606_T002 | B132: 113 | C132: 1.49 | D132: 0.226435686 | E132: 6.567558174 | F132: 5.114703278e-11 | G132: 3.42811438e-10 | H132: see Table 2 | I132: '13.2.1.2.6' | J132: '.Cell cycle organisation.DNA replication.preinitiation.MCM replicative DNA helicase complex.component MCM7' | K132: 'component MCM7 of MCM replicative DNA helicase complex (original description: pep chromosome:B73_RefGen_v4:3:129567273:129572015:1 gene:Zm00001d041606 transcript:Zm00001d041606_T001 gene_biotype:protein_coding transcript_biotype:protein_coding gene_symbol:minichromosome maintenance2 description:DNA replication licensing factor MCM7)'
A133: Zm00001d039446_T001 | B133: 350 | C133: 0.90 | D133: 0.1478433495 | E133: 6.065528777 | F133: 1.315202177e-09 | G133: 7.724463254e-09 | H133: see Table 2 | I133: '13.2.3.2.3' | J133: '.Cell cycle organisation.DNA replication.elongation.DNA polymerase delta complex.component POLD3' | K133: 'component POLD3 of DNA polymerase delta complex (original description: pep chromosome:B73_RefGen_v4:3:4590953:4596170:-1 gene:Zm00001d039446 transcript:Zm00001d039446_T001 gene_biotype:protein_coding transcript_biotype:protein_coding description:DNA-directed DNA polymerases)'
A134: Zm00001d044540_T001 | B134: 137 | C134: 1.51 | D134: 0.2513636575 | E134: 6.008052012 | F134: 1.877656115e-09 | G134: 1.084847027e-08 | H134: see Table 2 | I134: '13.2.1.2.3' | J134: '.Cell cycle organisation.DNA replication.preinitiation.MCM replicative DNA helicase complex.component MCM4' | K134: 'component MCM4 of MCM replicative DNA helicase complex (original description: pep chromosome:B73_RefGen_v4:3:231327721:231332807:-1 gene:Zm00001d044540 transcript:Zm00001d044540_T001 gene_biotype:protein_coding transcript_biotype:protein_coding gene_symbol:minichromosome maintenance4 description:DNA replication licensing factor MCM4)'
A135: Zm00001d017720_T009 | B135: 566 | C135: 1.15 | D135: 0.1996064949 | E135: 5.779534001 | F135: 7.490781499e-09 | G135: 4.045190752e-08 | H135: see Table 2 | I135: '13.2.1.6' | J135: '.Cell cycle organisation.DNA replication.preinitiation.DNA topoisomerase (TOP2)' | K135: 'DNA topoisomerase (TOP2) (original description: pep chromosome:B73_RefGen_v4:5:205181529:205188957:-1 gene:Zm00001d017720 transcript:Zm00001d017720_T004 gene_biotype:protein_coding transcript_biotype:protein_coding description:DNA topoisomerase 2)'
A136: Zm00001d003308_T001 | B136: 37 | C136: 2.18 | D136: 0.4182120397 | E136: 5.217688552 | F136: 1.811697613e-07 | G136: 8.416893375e-07 | H136: see Table 2 | I136: '13.2.4.1.2' | J136: '.Cell cycle organisation.DNA replication.maturation.ribonuclease H2 complex.subunit B' | K136: 'subunit B of ribonuclease H2 complex (original description: pep chromosome:B73_RefGen_v4:2:39659891:39663833:-1 gene:Zm00001d003308 transcript:Zm00001d003308_T001 gene_biotype:protein_coding transcript_biotype:protein_coding description:Ribonuclease H2 subunit B)'
A137: Zm00001d040276_T001 | B137: 31 | C137: 2.28 | D137: 0.4452480261 | E137: 5.131170894 | F137: 2.879453296e-07 | G137: 1.306311827e-06 | H137: see Table 2 | I137: '13.2.3.5.3' | J137: '.Cell cycle organisation.DNA replication.elongation.single-stranded-DNA binding RPA complex.component RPA3' | K137: 'component RPA3 of single-stranded-DNA binding RPA complex (original description: pep chromosome:B73_RefGen_v4:3:35447344:35450045:-1 gene:Zm00001d040276 transcript:Zm00001d040276_T001 gene_biotype:protein_coding transcript_biotype:protein_coding description:Pollen-specific protein like )'
A138: Zm00001d024128_T004 | B138: 20 | C138: 3.62 | D138: 0.7213276485 | E138: 5.012808639 | F138: 5.364123699e-07 | G138: 2.354436168e-06 | H138: see Table 2 | I138: '13.2.2.5.3' | J138: '.Cell cycle organisation.DNA replication.initiation.GINS DNA replication fork maintenance complex.component PSF3' | K138: 'component PSF3 of GINS DNA replication fork maintenance complex (original description: pep chromosome:B73_RefGen_v4:10:48256777:48269906:1 gene:Zm00001d024128 transcript:Zm00001d024128_T001 gene_biotype:protein_coding transcript_biotype:protein_coding description:GINS complex protein)'
A139: Zm00001d009374_T001 | B139: 37 | C139: 1.75 | D139: 0.4069811249 | E139: 4.308350246 | F139: 1.644767825e-05 | G139: 5.922522972e-05 | H139: see Table 2 | I139: '13.2.1.2.3' | J139: '.Cell cycle organisation.DNA replication.preinitiation.MCM replicative DNA helicase complex.component MCM4' | K139: 'component MCM4 of MCM replicative DNA helicase complex (original description: pep chromosome:B73_RefGen_v4:8:60778336:60784086:1 gene:Zm00001d009374 transcript:Zm00001d009374_T001 gene_biotype:protein_coding transcript_biotype:protein_coding description:DNA replication licensing factor MCM4)'
A140: Zm00001d025234_T001 | B140: 33 | C140: 1.86 | D140: 0.4330609076 | E140: 4.289217504 | F140: 1.793037148e-05 | G140: 6.425850209e-05 | H140: see Table 2 | I140: '13.2.3.1.3' | J140: '.Cell cycle organisation.DNA replication.elongation.DNA polymerase alpha complex.primase component POLA3' | K140: 'primase component POLA3 of DNA polymerase alpha complex (original description: pep chromosome:B73_RefGen_v4:10:110338608:110344763:1 gene:Zm00001d025234 transcript:Zm00001d025234_T001 gene_biotype:protein_coding transcript_biotype:protein_coding description:Probable DNA primase large subunit)'
A141: Zm00001d006788_T001 | B141: 32 | C141: 1.97 | D141: 0.4710719815 | E141: 4.183506117 | F141: 2.870473626e-05 | G141: 9.99696305e-05 | H141: see Table 2 | I141: '13.2.2.5.4' | J141: '.Cell cycle organisation.DNA replication.initiation.GINS DNA replication fork maintenance complex.component SLD5' | K141: 'component SLD5 of GINS DNA replication fork maintenance complex (original description: pep chromosome:B73_RefGen_v4:2:216679787:216681518:1 gene:Zm00001d006788 transcript:Zm00001d006788_T001 gene_biotype:protein_coding transcript_biotype:protein_coding description:DNA replication protein-related)'
A142: Zm00001d002056_T006 | B142: 19 | C142: 2.53 | D142: 0.6739175826 | E142: 3.756646732 | F142: 0.0001722053187 | G142: 0.0005303319134 | H142: see Table 2 | I142: '13.2.1.3' | J142: '.Cell cycle organisation.DNA replication.preinitiation.helicase auxiliary factor (CDT1)' | K142: 'helicase auxiliary factor (CDT1) (original description: pep chromosome:B73_RefGen_v4:2:5042321:5047667:-1 gene:Zm00001d002056 transcript:Zm00001d002056_T001 gene_biotype:protein_coding transcript_biotype:protein_coding description:CDT1-like protein a chloroplastic)'
A143: Zm00001d023578_T001 | B143: 236 | C143: 0.63 | D143: 0.174222845 | E143: 3.613590923 | F143: 0.0003019853888 | G143: 0.000891544918 | H143: see Table 2 | I143: '13.2.3.4.2.4' | J143: '.Cell cycle organisation.DNA replication.elongation.DNA-tracking platform.PCNA sliding clamp loader complex.component RFC4' | K143: 'component RFC4 of PCNA sliding clamp loader complex (original description: pep chromosome:B73_RefGen_v4:10:10639056:10642976:1 gene:Zm00001d023578 transcript:Zm00001d023578_T001 gene_biotype:protein_coding transcript_biotype:protein_coding description:Replication factor C subunit 4)'
A144: Zm00001d012320_T002 | B144: 14 | C144: 2.43 | D144: 0.6750611003 | E144: 3.593320929 | F144: 0.0003264900523 | G144: 0.0009584793688 | H144: see Table 2 | I144: '13.2.1.4' | J144: '.Cell cycle organisation.DNA replication.preinitiation.helicase loading factor (CDC6)' | K144: 'helicase loading factor (CDC6) (original description: pep chromosome:B73_RefGen_v4:8:172365762:172369785:-1 gene:Zm00001d012320 transcript:Zm00001d012320_T004 gene_biotype:protein_coding transcript_biotype:protein_coding description:Cell division control protein 6 homolog B)'
A145: Zm00001d031751_T001 | B145: 17 | C145: 1.98 | D145: 0.5957076446 | E145: 3.331170292 | F145: 0.0008648167984 | G145: 0.00235254703 | H145: see Table 2 | I145: '13.2.3.3.2' | J145: '.Cell cycle organisation.DNA replication.elongation.DNA polymerase epsilon complex.non-catalytic component Dpb2' | K145: 'non-catalytic component Dpb2 of DNA polymerase epsilon complex (original description: pep chromosome:B73_RefGen_v4:1:200708821:200711986:1 gene:Zm00001d031751 transcript:Zm00001d031751_T001 gene_biotype:protein_coding transcript_biotype:protein_coding description:DNA polymerase epsilon subunit B)'
A146: Zm00001d041756_T001 | B146: 6 | C146: 3.76 | D146: 1.255355295 | E146: 2.994406036 | F146: 0.002749797387 | G146: 0.006754625687 | H146: see Table 2 | I146: '13.2.1.3' | J146: '.Cell cycle organisation.DNA replication.preinitiation.helicase auxiliary factor (CDT1)' | K146: 'helicase auxiliary factor (CDT1) (original description: pep chromosome:B73_RefGen_v4:3:136125058:136129955:1 gene:Zm00001d041756 transcript:Zm00001d041756_T001 gene_biotype:protein_coding transcript_biotype:protein_coding description:60S ribosomal protein L6-3)'
A147: Zm00001d025591_T001 | B147: 19 | C147: 1.81 | D147: 0.6150764387 | E147: 2.939208874 | F147: 0.003290512375 | G147: 0.007945120824 | H147: see Table 2 | I147: '13.2.1.3' | J147: '.Cell cycle organisation.DNA replication.preinitiation.helicase auxiliary factor (CDT1)' | K147: 'helicase auxiliary factor (CDT1) (original description: pep chromosome:B73_RefGen_v4:10:123375775:123377519:1 gene:Zm00001d025591 transcript:Zm00001d025591_T001 gene_biotype:protein_coding transcript_biotype:protein_coding description:60S ribosomal protein L6-3)'
A148: Zm00001d026089_T001 | B148: 66 | C148: 1.00 | D148: 0.3436995341 | E148: 2.899028815 | F148: 0.003743204919 | G148: 0.008925793758 | H148: see Table 2 | I148: '13.2.3.4.2.2' | J148: '.Cell cycle organisation.DNA replication.elongation.DNA-tracking platform.PCNA sliding clamp loader complex.component RFC2' | K148: 'component RFC2 of PCNA sliding clamp loader complex (original description: pep chromosome:B73_RefGen_v4:10:138139152:138145141:-1 gene:Zm00001d026089 transcript:Zm00001d026089_T001 gene_biotype:protein_coding transcript_biotype:protein_coding description:Replication factor C subunit 2)'
A150: Zm00001d029997_T002 | B150: 1114 | C150: 2.74 | D150: 0.1302356635 | E150: 21.0345089 | F150: 3.170386939e-98 | G150: 6.755742302e-96 | H150: see Table 2 | I150: '1.2.1.2.3' | J150: 'Photosynthesis.calvin cycle.ribulose-1,5-bisphosphat carboxylase/oxygenase (RuBisCo) activity.RuBisCo assembly.auxiliary co-chaperone (CPN10)' | K150: 'CPN10 auxiliary co-chaperone involved in RuBisCo assembly (original description: pep chromosome:B73_RefGen_v4:1:98382117:98384270:1 gene:Zm00001d029997 transcript:Zm00001d029997_T001 gene_biotype:protein_coding transcript_biotype:protein_coding description:chloroplast chaperonin 10)'
A151: Zm00001d052101_T001 | B151: 1594 | C151: 3.53 | D151: 0.1764376314 | E151: 20.02198861 | F151: 3.542943091e-89 | G151: 5.995284936e-87 | H151: see Table 2 | I151: '1.2.1.2.2' | J151: 'Photosynthesis.calvin cycle.ribulose-1,5-bisphosphat carboxylase/oxygenase (RuBisCo) activity.RuBisCo assembly.auxiliary co-chaperone (CPN20)' | K151: 'CPN20 auxiliary co-chaperone involved in RuBisCo assembly (original description: pep chromosome:B73_RefGen_v4:4:179536713:179538773:1 gene:Zm00001d052101 transcript:Zm00001d052101_T001 gene_biotype:protein_coding transcript_biotype:protein_coding gene_symbol:chaperonin10 description: chaperonin10)'
A152: Zm00001d020437_T001 | B152: 567 | C152: 2.31 | D152: 0.1328945524 | E152: 17.39597086 | F152: 8.851418325e-68 | G152: 7.834730799e-66 | H152: see Table 2 | I152: '1.2.1.3.1' | J152: 'Photosynthesis.calvin cycle.ribulose-1,5-bisphosphat carboxylase/oxygenase (RuBisCo) activity.RuBisCo regulation.lysine N-methyltransferase (RbcMT)' | K152: 'lysine N-methyltransferase involved in RuBisCo regulation (original description: pep chromosome:B73_RefGen_v4:7:114149831:114152030:-1 gene:Zm00001d020437 transcript:Zm00001d020437_T001 gene_biotype:protein_coding transcript_biotype:protein_coding description:[Fructose-bisphosphate aldolase]-lysine N-methyltransferase chloroplastic)'
A153: Zm00001d000164_T001 | B153: 334 | C153: -3.56 | D153: 0.2051224117 | E153: -17.33310024 | F153: 2.646687016e-67 | G153: 2.314201987e-65 | H153: see Table 2 | I153: '1.2.11' | J153: 'Photosynthesis.calvin cycle.phosphoribulokinase' | K153: phosphoribulokinase (original description: pep contig:B73_RefGen_v4:B73V4_ctg50:6747:9235:-1 gene:Zm00001d000164 transcript:Zm00001d000164_T001 gene_biotype:protein_coding transcript_biotype:protein_coding description:Phosphoribulokinase chloroplastic)'
A154: Zm00001d005812_T002 | B154: 2421 | C154: 2.13 | D154: 0.1251251912 | E154: 16.98812931 | F154: 1.005450342e-64 | G154: 8.12466011e-63 | H154: see Table 2 | I154: '1.2.1.2.2' | J154: 'Photosynthesis.calvin cycle.ribulose-1,5-bisphosphat carboxylase/oxygenase (RuBisCo) activity.RuBisCo assembly.auxiliary co-chaperone (CPN20)' | K154: 'CPN20 auxiliary co-chaperone involved in RuBisCo assembly (original description: pep chromosome:B73_RefGen_v4:2:189451026:189456216:-1 gene:Zm00001d005812 transcript:Zm00001d005812_T003 gene_biotype:protein_coding transcript_biotype:protein_coding description:sterile alpha motif (SAM) domain-containing protein)'
A155: Zm00001d000279_T001 | B155: 84617 | C155: -2.75 | D155: 0.1770815072 | E155: -15.50154335 | F155: 3.386584245e-54 | G155: 1.862750841e-52 | H155: see Table 2 | I155: '1.2.1.1.1' | J155: 'Photosynthesis.calvin cycle.ribulose-1,5-bisphosphat carboxylase/oxygenase (RuBisCo) activity.RuBisCo heterodimer.large subunit' | K155: 'large subunit of ribulose-1,5-bisphosphat carboxylase/oxygenase heterodimer (original description: pep contig:B73_RefGen_v4:B73V4_ctg134:52981:54432:1 gene:Zm00001d000279 transcript:Zm00001d000279_T001 gene_biotype:protein_coding transcript_biotype:protein_coding description:Ribulose bisphosphate carboxylase large chain )'
A156: Zm00001d053015_T001 | B156: 179 | C156: -5.21 | D156: 0.3571107398 | E156: -14.59063349 | F156: 3.22191884e-48 | G156: 1.430323137e-46 | H156: see Table 2 | I156: '1.2.5' | J156: 'Photosynthesis.calvin cycle.fructose 1,6-bisphosphate aldolase' | K156: 'fructose 1,6-bisphosphate aldolase (original description: pep chromosome:B73_RefGen_v4:4:209127785:209129931:-1 gene:Zm00001d053015 transcript:Zm00001d053015_T001 gene_biotype:protein_coding transcript_biotype:protein_coding description:Fructose-bisphosphate aldolase )'
A157: Zm00001d047067_T001 | B157: 396 | C157: 2.13 | D157: 0.1571953284 | E157: 13.57941531 | F157: 5.304820939e-42 | G157: 1.905165842e-40 | H157: see Table 2 | I157: '1.2.1.2.3' | J157: 'Photosynthesis.calvin cycle.ribulose-1,5-bisphosphat carboxylase/oxygenase (RuBisCo) activity.RuBisCo assembly.auxiliary co-chaperone (CPN10)' | K157: 'CPN10 auxiliary co-chaperone involved in RuBisCo assembly (original description: pep chromosome:B73_RefGen_v4:9:117137244:117139673:-1 gene:Zm00001d047067 transcript:Zm00001d047067_T002 gene_biotype:protein_coding transcript_biotype:protein_coding description:chloroplast chaperonin 10)'
A158: Zm00001d045025_T007 | B158: 6640 | C158: 1.55 | D158: 0.125517175 | E158: 12.31972354 | F158: 7.093705359e-35 | G158: 1.93426182e-33 | H158: see Table 2 | I158: '1.2.1.2.2' | J158: 'Photosynthesis.calvin cycle.ribulose-1,5-bisphosphat carboxylase/oxygenase (RuBisCo) activity.RuBisCo assembly.auxiliary co-chaperone (CPN20)' | K158: 'CPN20 auxiliary co-chaperone involved in RuBisCo assembly (original description: pep chromosome:B73_RefGen_v4:9:10469812:10471144:-1 gene:Zm00001d045025 transcript:Zm00001d045025_T008 gene_biotype:protein_coding transcript_biotype:protein_coding description:20 kDa chaperonin chloroplastic)'
A159: Zm00001d007366_T003 | B159: 1262 | C159: 1.32 | D159: 0.1135618284 | E159: 11.62897307 | F159: 2.936084365e-31 | G159: 6.805990244e-30 | H159: see Table 2 | I159: '1.2.1.3.3' | J159: 'Photosynthesis.calvin cycle.ribulose-1,5-bisphosphat carboxylase/oxygenase (RuBisCo) activity.RuBisCo regulation.xylulose-1,5-bisphosphate phosphatase (CbbY)' | K159: 'xylulose-1,5-bisphosphate phosphatase (CbbY) (original description: pep chromosome:B73_RefGen_v4:2:229771464:229779665:-1 gene:Zm00001d007366 transcript:Zm00001d007366_T001 gene_biotype:protein_coding transcript_biotype:protein_coding description:Haloacid dehalogenase-like hydrolase domain-containing protein )'
A160: Zm00001d021310_T001 | B160: 2079 | C160: 1.35 | D160: 0.1170096815 | E160: 11.51290942 | F160: 1.135807162e-30 | G160: 2.552637861e-29 | H160: see Table 2 | I160: '1.2.4' | J160: 'Photosynthesis.calvin cycle.triosephosphate isomerase' | K160: 'triosephosphate isomerase (original description: pep chromosome:B73_RefGen_v4:7:148461116:148465035:-1 gene:Zm00001d021310 transcript:Zm00001d021310_T001 gene_biotype:protein_coding transcript_biotype:protein_coding description:Triosephosphate isomerase )'
A161: Zm00001d030786_T002 | B161: 811 | C161: 1.87 | D161: 0.1623111091 | E161: 11.49406897 | F161: 1.412962269e-30 | G161: 3.160706499e-29 | H161: see Table 2 | I161: '1.2.1.2.7' | J161: 'Photosynthesis.calvin cycle.ribulose-1,5-bisphosphat carboxylase/oxygenase (RuBisCo) activity.RuBisCo assembly.assembly factor (BSD2)' | K161: 'BSD2 assembly factor involved in RuBisCo assembly (original description: pep chromosome:B73_RefGen_v4:1:159716363:159727649:1 gene:Zm00001d030786 transcript:Zm00001d030786_T002 gene_biotype:protein_coding transcript_biotype:protein_coding gene_symbol:bundle sheath defective2 description:Bundle sheath defective protein 2 )'
A162: Zm00001d023559_T001 | B162: 10507 | C162: -1.74 | D162: 0.1681332881 | E162: -10.35536187 | F162: 3.956874201e-25 | G162: 6.890278458e-24 | H162: see Table 2 | I162: '1.2.5' | J162: 'Photosynthesis.calvin cycle.fructose 1,6-bisphosphate aldolase' | K162: 'fructose 1,6-bisphosphate aldolase (original description: pep chromosome:B73_RefGen_v4:10:10215795:10217698:-1 gene:Zm00001d023559 transcript:Zm00001d023559_T001 gene_biotype:protein_coding transcript_biotype:protein_coding description:Fructose-bisphosphate aldolase )'
A163: Zm00001d038579_T001 | B163: 2786 | C163: 1.20 | D163: 0.1452378611 | E163: 8.262673904 | F163: 1.424449909e-16 | G163: 1.479319513e-15 | H163: see Table 2 | I163: '1.2.2' | J163: 'Photosynthesis.calvin cycle.phosphoglycerate kinase' | K163: 'phosphoglycerate kinase (original description: pep chromosome:B73_RefGen_v4:6:160393660:160396437:-1 gene:Zm00001d038579 transcript:Zm00001d038579_T001 gene_biotype:protein_coding transcript_biotype:protein_coding description:Phosphoglycerate kinase )'
A164: Zm00001d025747_T002 | B164: 775 | C164: -1.38 | D164: 0.1776752926 | E164: -7.78183651 | F164: 7.147920485e-15 | G164: 6.561079406e-14 | H164: see Table 2 | I164: '1.3.1' | J164: 'Photosynthesis.photorespiration.phosphoglycolate phosphatase' | K164: 'phosphoglycolate phosphatase (original description: pep chromosome:B73_RefGen_v4:10:128273093:128275437:-1 gene:Zm00001d025747 transcript:Zm00001d025747_T002 gene_biotype:protein_coding transcript_biotype:protein_coding description:Phosphoglycolate phosphatase 1A chloroplastic)'
A165: Zm00001d035737_T001 | B165: 720 | C165: 1.42 | D165: 0.1986970138 | E165: 7.160370339 | F165: 8.045940002e-13 | G165: 6.255609622e-12 | H165: see Table 2 | I165: '1.3.7' | J165: 'Photosynthesis.photorespiration.glycerate kinase' | K165: 'glycerate kinase (original description: pep chromosome:B73_RefGen_v4:6:44300291:44304215:-1 gene:Zm00001d035737 transcript:Zm00001d035737_T001 gene_biotype:protein_coding transcript_biotype:protein_coding description:D-glycerate 3-kinase chloroplastic)'
A166: Zm00001d017711_T001 | B166: 3383 | C166: -1.49 | D166: 0.21330222 | E166: -6.995564107 | F166: 2.641937451e-12 | G166: 1.973529334e-11 | H166: see Table 2 | I166: '1.2.11' | J166: 'Photosynthesis.calvin cycle.phosphoribulokinase' | K166: 'phosphoribulokinase (original description: pep chromosome:B73_RefGen_v4:5:204910256:204912526:1 gene:Zm00001d017711 transcript:Zm00001d017711_T001 gene_biotype:protein_coding transcript_biotype:protein_coding description:Phosphoribulokinase )'
A167: Zm00001d045451_T001 | B167: 5636 | C167: -0.71 | D167: 0.1024709179 | E167: -6.95726497 | F167: 3.469420656e-12 | G167: 2.568978739e-11 | H167: see Table 2 | I167: '1.2.7' | J167: 'Photosynthesis.calvin cycle.transketolase' | K167: 'transketolase (original description: pep chromosome:B73_RefGen_v4:9:22640913:22645485:1 gene:Zm00001d045451 transcript:Zm00001d045451_T001 gene_biotype:protein_coding transcript_biotype:protein_coding gene_symbol:transketolase 1 description: transketolase 1)'
A168: Zm00001d040084_T001 | B168: 825 | C168: -1.01 | D168: 0.1564162431 | E168: -6.478407025 | F168: 9.26960213e-11 | G168: 6.05354471e-10 | H168: see Table 2 | I168: '1.2.5' | J168: 'Photosynthesis.calvin cycle.fructose 1,6-bisphosphate aldolase' | K168: 'fructose 1,6-bisphosphate aldolase (original description: pep chromosome:B73_RefGen_v4:3:26931529:26935231:1 gene:Zm00001d040084 transcript:Zm00001d040084_T001 gene_biotype:protein_coding transcript_biotype:protein_coding description:Fructose-bisphosphate aldolase )'
A169: Zm00001d004894_T001 | B169: 1918 | C169: -1.44 | D169: 0.2240912211 | E169: -6.422845991 | F169: 1.337497958e-10 | G169: 8.603712823e-10 | H169: see Table 2 | I169: '1.2.1.1.2' | J169: 'Photosynthesis.calvin cycle.ribulose-1,5-bisphosphat carboxylase/oxygenase (RuBisCo) activity.RuBisCo heterodimer.small subunit' | K169: 'small subunit of ribulose-1,5-bisphosphat carboxylase/oxygenase heterodimer (original description: pep chromosome:B73_RefGen_v4:2:147269761:147270804:1 gene:Zm00001d004894 transcript:Zm00001d004894_T001 gene_biotype:protein_coding transcript_biotype:protein_coding gene_symbol:ribulose bisphosphate carboxylase small subunit2 description: ribulose bisphosphate carboxylase small subunit2)'
A170: Zm00001d052595_T001 | B170: 2860 | C170: -1.10 | D170: 0.1945069212 | E170: -5.65314155 | F170: 1.575414605e-08 | G170: 8.259513748e-08 | H170: see Table 2 | I170: '1.2.1.1.2' | J170: 'Photosynthesis.calvin cycle.ribulose-1,5-bisphosphat carboxylase/oxygenase (RuBisCo) activity.RuBisCo heterodimer.small subunit' | K170: 'small subunit of ribulose-1,5-bisphosphat carboxylase/oxygenase heterodimer (original description: pep chromosome:B73_RefGen_v4:4:194257728:194258862:-1 gene:Zm00001d052595 transcript:Zm00001d052595_T001 gene_biotype:protein_coding transcript_biotype:protein_coding gene_symbol:ribulose bisphosphate carboxylase small subunit1 description:Ribulose bisphosphate carboxylase small chain%2C chloroplastic )'
A171: Zm00001d008491_T001 | B171: 199 | C171: -1.07 | D171: 0.1957835654 | E171: -5.463664587 | F171: 4.664044253e-08 | G171: 2.332995323e-07 | H171: see Table 2 | I171: '1.2.5' | J171: 'Photosynthesis.calvin cycle.fructose 1,6-bisphosphate aldolase' | K171: 'fructose 1,6-bisphosphate aldolase (original description: pep chromosome:B73_RefGen_v4:8:10203372:10207090:-1 gene:Zm00001d008491 transcript:Zm00001d008491_T002 gene_biotype:protein_coding transcript_biotype:protein_coding description:Fructose-bisphosphate aldolase )'
A172: Zm00001d001812_T001 | B172: 36 | C172: 2.49 | D172: 0.5263402178 | E172: 4.724710119 | F172: 2.304438369e-06 | G172: 9.34872071e-06 | H172: see Table 2 | I172: '1.2.1.2.5' | J172: 'Photosynthesis.calvin cycle.ribulose-1,5-bisphosphat carboxylase/oxygenase (RuBisCo) activity.RuBisCo assembly.assembly factor (RAF1)' | K172: 'RAF1 assembly factor involved in RuBisCo assembly (original description: pep chromosome:B73_RefGen_v4:2:1341011:1342402:1 gene:Zm00001d001812 transcript:Zm00001d001812_T001 gene_biotype:protein_coding transcript_biotype:protein_coding gene_symbol:Rubisco Assembly Factor 1 description: Rubisco Assembly Factor 1)'
A173: Zm00001d002454_T002 | B173: 120 | C173: 1.83 | D173: 0.3961787673 | E173: 4.608802458 | F173: 4.049948931e-06 | G173: 1.587043739e-05 | H173: see Table 2 | I173: '1.2.11' | J173: 'Photosynthesis.calvin cycle.phosphoribulokinase' | K173: 'phosphoribulokinase (original description: pep chromosome:B73_RefGen_v4:2:13187123:13189193:1 gene:Zm00001d002454 transcript:Zm00001d002454_T001 gene_biotype:protein_coding transcript_biotype:protein_coding description:Phosphoribulokinase )'
A174: Zm00001d000399_T001 | B174: 9220 | C174: 2.88 | D174: 0.08108552648 | E174: 35.55312989 | F174: 7.433072073e-277 | G174: 1.781893203e-273 | H174: see Table 2 | I174: '1.1.8.1.6.2.1' | J174: 'Photosynthesis.photophosphorylation.chlororespiration.NADH dehydrogenase-like (NDH) complex.assembly and stabilization.Cpn60 chaperonin heterodimer.subunit alpha' | K174: 'subunit alpha of Cpn60 chaperonin complex (original description: pep contig:B73_RefGen_v4:B73V4_ctg4:29832:32885:1 gene:Zm00001d000399 transcript:Zm00001d000399_T003 gene_biotype:protein_coding transcript_biotype:protein_coding gene_symbol:chloroplast protein synthesis2 description: chloroplast protein synthesis2)'
A175: Zm00001d045544_T002 | B175: 10142 | C175: 2.09 | D175: 0.08642454358 | E175: 24.21083605 | F175: 1.710687528e-129 | G175: 8.201891353e-127 | H175: see Table 2 | I175: '1.1.8.1.6.2.2' | J175: 'Photosynthesis.photophosphorylation.chlororespiration.NADH dehydrogenase-like (NDH) complex.assembly and stabilization.Cpn60 chaperonin heterodimer.subunit beta' | K175: 'subunit beta of Cpn60 chaperonin complex (original description: pep chromosome:B73_RefGen_v4:9:25950941:25956055:1 gene:Zm00001d045544 transcript:Zm00001d045544_T001 gene_biotype:protein_coding transcript_biotype:protein_coding description:Chaperonin 60 subunit beta 2 chloroplastic)'
A176: Zm00001d035937_T001 | B176: 8680 | C176: 2.12 | D176: 0.1019232754 | E176: 20.78318071 | F176: 6.144954551e-96 | G176: 1.219116604e-93 | H176: see Table 2 | I176: '1.1.8.1.6.2.2' | J176: 'Photosynthesis.photophosphorylation.chlororespiration.NADH dehydrogenase-like (NDH) complex.assembly and stabilization.Cpn60 chaperonin heterodimer.subunit beta' | K176: 'subunit beta of Cpn60 chaperonin complex (original description: pep chromosome:B73_RefGen_v4:6:61319462:61324306:-1 gene:Zm00001d035937 transcript:Zm00001d035937_T003 gene_biotype:protein_coding transcript_biotype:protein_coding description:Chaperonin 60 subunit beta 2 chloroplastic)'
A177: Zm00001d028409_T001 | B177: 817 | C177: 2.17 | D177: 0.1302370397 | E177: 16.63745395 | F177: 3.731500557e-62 | G177: 2.752412218e-60 | H177: see Table 2 | I177: '1.1.8.1.6.2.2' | J177: 'Photosynthesis.photophosphorylation.chlororespiration.NADH dehydrogenase-like (NDH) complex.assembly and stabilization.Cpn60 chaperonin heterodimer.subunit beta' | K177: 'subunit beta of Cpn60 chaperonin complex (original description: pep chromosome:B73_RefGen_v4:1:33800139:33804188:-1 gene:Zm00001d028409 transcript:Zm00001d028409_T001 gene_biotype:protein_coding transcript_biotype:protein_coding description:Chaperonin 60 subunit beta 4 chloroplastic)'
A178: Zm00001d048422_T001 | B178: 585 | C178: 2.57 | D178: 0.1735366195 | E178: 14.82917256 | F178: 9.489544476e-50 | G178: 4.453274485e-48 | H178: see Table 2 | I178: '1.1.8.1.3.2' | J178: 'Photosynthesis.photophosphorylation.chlororespiration.NADH dehydrogenase-like (NDH) complex.subcomplex B.component PnsB2/NDF2' | K178: 'component PnsB2/NDF2 of NDH subcomplex B (original description: pep chromosome:B73_RefGen_v4:9:155990691:155992275:-1 gene:Zm00001d048422 transcript:Zm00001d048422_T001 gene_biotype:protein_coding transcript_biotype:protein_coding description:Photosynthetic NDH subunit of subcomplex B 2 chloroplastic)'
A179: Zm00001d024241_T001 | B179: 493 | C179: 2.85 | D179: 0.2247657482 | E179: 12.67202649 | F179: 8.450276508e-37 | G179: 2.467909688e-35 | H179: see Table 2 | I179: '1.1.8.1.6.10' | J179: 'Photosynthesis.photophosphorylation.chlororespiration.NADH dehydrogenase-like (NDH) complex.assembly and stabilization.assembly factor (CRR9)' | K179: 'assembly factor CRR9 involved in NDH complex assembly (original description: pep chromosome:B73_RefGen_v4:10:59154381:59155359:1 gene:Zm00001d024241 transcript:Zm00001d024241_T001 gene_biotype:protein_coding transcript_biotype:protein_coding)'
A180: Zm00001d027363_T001 | B180: 555 | C180: 1.99 | D180: 0.1795582386 | E180: 11.0728998 | F180: 1.698150176e-28 | G180: 3.476917161e-27 | H180: see Table 2 | I180: '1.1.8.1.6.3' | J180: 'Photosynthesis.photophosphorylation.chlororespiration.NADH dehydrogenase-like (NDH) complex.assembly and stabilization.assembly factor (CRR1)' | K180: 'assembly factor CRR1 involved in NDH complex assembly (original description: pep chromosome:B73_RefGen_v4:1:3775217:3778050:-1 gene:Zm00001d027363 transcript:Zm00001d027363_T001 gene_biotype:protein_coding transcript_biotype:protein_coding gene_symbol:dihydrodipicolinate reductase1 description: dihydrodipicolinate reductase1)'
A181: Zm00001d028950_T001 | B181: 184 | C181: 2.20 | D181: 0.2007046418 | E181: 10.94520536 | F181: 7.005878106e-28 | G181: 1.394727304e-26 | H181: see Table 2 | I181: '1.1.8.1.6.9' | J181: 'Photosynthesis.photophosphorylation.chlororespiration.NADH dehydrogenase-like (NDH) complex.assembly and stabilization.assembly factor (CRR42)' | K181: 'assembly factor CRR42 involved in NDH complex assembly (original description: pep chromosome:B73_RefGen_v4:1:52644689:52645454:1 gene:Zm00001d028950 transcript:Zm00001d028950_T001 gene_biotype:protein_coding transcript_biotype:protein_coding description:DUF3148 family protein)'
A182: Zm00001d034919_T001 | B182: 3524 | C182: 1.10 | D182: 0.1058984606 | E182: 10.38241005 | F182: 2.981518522e-25 | G182: 5.226651026e-24 | H182: see Table 2 | I182: '1.1.8.1.6.2.1' | J182: 'Photosynthesis.photophosphorylation.chlororespiration.NADH dehydrogenase-like (NDH) complex.assembly and stabilization.Cpn60 chaperonin heterodimer.subunit alpha' | K182: 'subunit alpha of Cpn60 chaperonin complex (original description: pep chromosome:B73_RefGen_v4:1:305598350:305602628:-1 gene:Zm00001d034919 transcript:Zm00001d034919_T001 gene_biotype:protein_coding transcript_biotype:protein_coding description:RuBisCO large subunit-binding protein subunit alpha )'
A183: Zm00001d002815_T001 | B183: 726 | C183: 1.39 | D183: 0.1388579924 | E183: 10.026321 | F183: 1.167873007e-23 | G183: 1.877931962e-22 | H183: see Table 2 | I183: '1.1.8.1.2.6' | J183: 'Photosynthesis.photophosphorylation.chlororespiration.NADH dehydrogenase-like (NDH) complex.subcomplex A.component NdhM' | K183: 'component NdhM of NDH subcomplex A (original description: pep chromosome:B73_RefGen_v4:2:23483486:23484612:-1 gene:Zm00001d002815 transcript:Zm00001d002815_T001 gene_biotype:protein_coding transcript_biotype:protein_coding description:NAD(P)H-quinone oxidoreductase subunit M chloroplastic)'
A184: Zm00001d035761_T001 | B184: 1354 | C184: 1.21 | D184: 0.122621503 | E184: 9.834359742 | F184: 8.007531465e-23 | G184: 1.227892631e-21 | H184: see Table 2 | I184: '1.1.8.1.4.5' | J184: 'Photosynthesis.photophosphorylation.chlororespiration.NADH dehydrogenase-like (NDH) complex.lumen subcomplex L.component PnsL5' | K184: 'component PnsL5 of NDH lumen subcomplex L (original description: pep chromosome:B73_RefGen_v4:6:46130267:46133225:-1 gene:Zm00001d035761 transcript:Zm00001d035761_T001 gene_biotype:protein_coding transcript_biotype:protein_coding description:Peptidyl-prolyl cis-trans isomerase )'
A185: Zm00001d011104_T001 | B185: 1011 | C185: 1.35 | D185: 0.1418233578 | E185: 9.514362874 | F185: 1.828297786e-21 | G185: 2.60886123e-20 | H185: see Table 2 | I185: '1.1.8.1.4.5' | J185: 'Photosynthesis.photophosphorylation.chlororespiration.NADH dehydrogenase-like (NDH) complex.lumen subcomplex L.component PnsL5' | K185: 'component PnsL5 of NDH lumen subcomplex L (original description: pep chromosome:B73_RefGen_v4:8:139082575:139085139:-1 gene:Zm00001d011104 transcript:Zm00001d011104_T001 gene_biotype:protein_coding transcript_biotype:protein_coding description:Photosynthetic NDH subunit of lumenal location 5 chloroplastic)'
A186: Zm00001d024148_T001 | B186: 2803 | C186: 1.95 | D186: 0.2225000102 | E186: 8.76831816 | F186: 1.813547696e-18 | G186: 2.138128138e-17 | H186: see Table 2 | I186: '1.1.8.1.3.1' | J186: 'Photosynthesis.photophosphorylation.chlororespiration.NADH dehydrogenase-like (NDH) complex.subcomplex B.component PnsB1/NDF1' | K186: 'component PnsB1/NDF1 of NDH subcomplex B (original description: pep chromosome:B73_RefGen_v4:10:49667977:49670160:1 gene:Zm00001d024148 transcript:Zm00001d024148_T001 gene_biotype:protein_coding transcript_biotype:protein_coding description:Photosynthetic NDH subunit of subcomplex B 1 chloroplastic)'
A187: Zm00001d014349_T001 | B187: 361 | C187: 2.32 | D187: 0.2667249948 | E187: 8.710677832 | F187: 3.020630374e-18 | G187: 3.499576076e-17 | H187: see Table 2 | I187: '1.1.8.1.5.1' | J187: 'Photosynthesis.photophosphorylation.chlororespiration.NADH dehydrogenase-like (NDH) complex.electron donor-binding subcomplex E.component NdhS' | K187: 'component NdhS of NDH electron donor-binding subcomplex E (original description: pep chromosome:B73_RefGen_v4:5:42157556:42158263:1 gene:Zm00001d014349 transcript:Zm00001d014349_T001 gene_biotype:protein_coding transcript_biotype:protein_coding description:NAD(P)H-quinone oxidoreductase subunit S chloroplastic)'
A188: Zm00001d021515_T001 | B188: 1549 | C188: 1.20 | D188: 0.1401189676 | E188: 8.582489565 | F188: 9.284155684e-18 | G188: 1.040425814e-16 | H188: see Table 2 | I188: '1.1.8.1.3.3' | J188: 'Photosynthesis.photophosphorylation.chlororespiration.NADH dehydrogenase-like (NDH) complex.subcomplex B.component PnsB3/NDF4' | K188: 'component PnsB3/NDF4 of NDH subcomplex B (original description: pep chromosome:B73_RefGen_v4:7:154782638:154784305:1 gene:Zm00001d021515 transcript:Zm00001d021515_T001 gene_biotype:protein_coding transcript_biotype:protein_coding description:Photosynthetic NDH subunit of subcomplex B 3 chloroplastic)'
A189: Zm00001d034007_T001 | B189: 403 | C189: 2.51 | D189: 0.3191364929 | E189: 7.869385392 | F189: 3.563877264e-15 | G189: 3.363584556e-14 | H189: see Table 2 | I189: '1.1.8.1.6.7' | J189: 'Photosynthesis.photophosphorylation.chlororespiration.NADH dehydrogenase-like (NDH) complex.assembly and stabilization.assembly factor (NDF5)' | K189: 'assembly factor NDF5 involved in NDH complex assembly (original description: pep chromosome:B73_RefGen_v4:1:281040471:281042099:-1 gene:Zm00001d034007 transcript:Zm00001d034007_T001 gene_biotype:protein_coding transcript_biotype:protein_coding description:Protein NDH-DEPENDENT CYCLIC ELECTRON FLOW 5)'
A190: Zm00001d049048_T001 | B190: 439 | C190: 2.38 | D190: 0.3631408121 | E190: 6.560753776 | F190: 5.35364583e-11 | G190: 3.57992398e-10 | H190: see Table 2 | I190: '1.1.8.1.5.2' | J190: 'Photosynthesis.photophosphorylation.chlororespiration.NADH dehydrogenase-like (NDH) complex.electron donor-binding subcomplex E.component NdhT' | K190: 'component NdhT of NDH electron donor-binding subcomplex E (original description: pep chromosome:B73_RefGen_v4:4:13883904:13884785:1 gene:Zm00001d049048 transcript:Zm00001d049048_T001 gene_biotype:protein_coding transcript_biotype:protein_coding description:Heat shock protein binding protein )'
A191: Zm00001d023757_T001 | B191: 588 | C191: 1.01 | D191: 0.1627332318 | E191: 6.208400476 | F191: 5.352660413e-10 | G191: 3.265054752e-09 | H191: see Table 2 | I191: '1.1.8.1.5.3' | J191: 'Photosynthesis.photophosphorylation.chlororespiration.NADH dehydrogenase-like (NDH) complex.electron donor-binding subcomplex E.component NdhU' | K191: 'component NdhU of NDH electron donor-binding subcomplex E (original description: pep chromosome:B73_RefGen_v4:10:18993063:18996474:1 gene:Zm00001d023757 transcript:Zm00001d023757_T001 gene_biotype:protein_coding transcript_biotype:protein_coding description:NAD(P)H-quinone oxidoreductase subunit U chloroplastic)'
A192: Zm00001d018623_T001 | B192: 95 | C192: 1.99 | D192: 0.3219631605 | E192: 6.185851014 | F192: 6.176832517e-10 | G192: 3.742395557e-09 | H192: see Table 2 | I192: '1.1.8.1.4.3' | J192: 'Photosynthesis.photophosphorylation.chlororespiration.NADH dehydrogenase-like (NDH) complex.lumen subcomplex L.component PnsL3/PQL2' | K192: 'component PnsL3/PQL2 of NDH lumen subcomplex L (original description: pep chromosome:B73_RefGen_v4:7:1246476:1247258:1 gene:Zm00001d018623 transcript:Zm00001d018623_T001 gene_biotype:protein_coding transcript_biotype:protein_coding description:Photosynthetic NDH subunit of lumenal location 3 chloroplastic)'
A193: Zm00001d049490_T001 | B193: 171 | C193: 1.46 | D193: 0.2440406027 | E193: 5.972458722 | F193: 2.337042894e-09 | G193: 1.337638538e-08 | H193: see Table 2 | I193: '1.1.8.1.6.5' | J193: 'Photosynthesis.photophosphorylation.chlororespiration.NADH dehydrogenase-like (NDH) complex.assembly and stabilization.assembly factor (CRR6)' | K193: 'assembly factor CRR6 involved in NDH complex assembly (original description: pep chromosome:B73_RefGen_v4:4:32210598:32212518:-1 gene:Zm00001d049490 transcript:Zm00001d049490_T002 gene_biotype:protein_coding transcript_biotype:protein_coding description:Protein CHLORORESPIRATORY REDUCTION 6 chloroplastic)'
A194: Zm00001d028670_T001 | B194: 1231 | C194: 1.03 | D194: 0.1792165278 | E194: 5.723315139 | F194: 1.044652274e-08 | G194: 5.560975569e-08 | H194: see Table 2 | I194: '1.1.8.1.4.1' | J194: 'Photosynthesis.photophosphorylation.chlororespiration.NADH dehydrogenase-like (NDH) complex.lumen subcomplex L.component PnsL1' | K194: 'component PnsL1 of NDH lumen subcomplex L (original description: pep chromosome:B73_RefGen_v4:1:42455227:42457109:1 gene:Zm00001d028670 transcript:Zm00001d028670_T001 gene_biotype:protein_coding transcript_biotype:protein_coding description:Photosynthetic NDH subunit of lumenal location 1 chloroplastic)'
A195: Zm00001d050022_T001 | B195: 337 | C195: 1.68 | D195: 0.2997791592 | E195: 5.603777268 | F195: 2.097301851e-08 | G195: 1.088062802e-07 | H195: see Table 2 | I195: '1.1.8.1.3.1' | J195: 'Photosynthesis.photophosphorylation.chlororespiration.NADH dehydrogenase-like (NDH) complex.subcomplex B.component PnsB1/NDF1' | K195: 'component PnsB1/NDF1 of NDH subcomplex B (original description: pep chromosome:B73_RefGen_v4:4:60692710:60696653:1 gene:Zm00001d050022 transcript:Zm00001d050022_T001 gene_biotype:protein_coding transcript_biotype:protein_coding description:Photosynthetic NDH subunit of subcomplex B 1 chloroplastic)'
A196: zemaCp075 | B196: 5716 | C196: -1.38 | D196: 0.277137969 | E196: -4.97212986 | F196: 6.62e-07 | G196: 7.51e-06 | H196: see Table 2 | I196: '1.1.8.1.1.2' | J196: 'Photosynthesis.photophosphorylation.chlororespiration.NADH dehydrogenase-like (NDH) complex.membrane subcomplex M.component NdhB' | K196: 'component NdhB of NDH membrane subcomplex M (original description: pep chromosome:B73_RefGen_v4:Pt:89236:91472:-1 gene:ZemaCp075 transcript:ZemaCp075 gene_biotype:protein_coding transcript_biotype:protein_coding description:ndhB)'
A197: Zm00001d027729_T001 | B197: 118 | C197: 2.31 | D197: 0.4942675107 | E197: 4.673695596 | F197: 2.958276996e-06 | G197: 1.182776294e-05 | H197: see Table 2 | I197: '1.1.8.1.3.2' | J197: 'Photosynthesis.photophosphorylation.chlororespiration.NADH dehydrogenase-like (NDH) complex.subcomplex B.component PnsB2/NDF2' | K197: 'component PnsB2/NDF2 of NDH subcomplex B (original description: pep chromosome:B73_RefGen_v4:1:12340668:12342288:-1 gene:Zm00001d027729 transcript:Zm00001d027729_T001 gene_biotype:protein_coding transcript_biotype:protein_coding description:Photosynthetic NDH subunit of subcomplex B 2 chloroplastic)'
A198: Zm00001d043380_T001 | B198: 123 | C198: 1.38 | D198: 0.3298576753 | E198: 4.197328907 | F198: 2.70081554e-05 | G198: 9.446122874e-05 | H198: see Table 2 | I198: '1.1.8.1.6.6' | J198: 'Photosynthesis.photophosphorylation.chlororespiration.NADH dehydrogenase-like (NDH) complex.assembly and stabilization.assembly factor (CRR7)' | K198: 'assembly factor CRR7 involved in NDH complex assembly (original description: pep chromosome:B73_RefGen_v4:3:198236667:198237919:-1 gene:Zm00001d043380 transcript:Zm00001d043380_T001 gene_biotype:protein_coding transcript_biotype:protein_coding description:Protein CHLORORESPIRATORY REDUCTION 7 chloroplastic)'
A199: zemaCp083 | B199: 12266 | C199: 0.87 | D199: 0.203679769 | E199: 4.293670445 | F199: 1.76e-05 | G199: 0.000154647 | H199: see Table 2 | I199: '1.1.8.1.1.6' | J199: 'Photosynthesis.photophosphorylation.chlororespiration.NADH dehydrogenase-like (NDH) complex.membrane subcomplex M.component NdhF' | K199: 'component NdhF of NDH membrane subcomplex M (original description: pep chromosome:B73_RefGen_v4:Pt:105072:107288:-1 gene:ZemaCp083 transcript:ZemaCp083 gene_biotype:protein_coding transcript_biotype:protein_coding gene_symbol:ndhF description:ndhF)'
A200: Zm00001d018077_T002 | B200: 1040 | C200: 0.81 | D200: 0.1993489076 | E200: 4.04954527 | F200: 5.131725054e-05 | G200: 0.0001718360315 | H200: see Table 2 | I200: '1.1.8.1.4.4' | J200: 'Photosynthesis.photophosphorylation.chlororespiration.NADH dehydrogenase-like (NDH) complex.lumen subcomplex L.component PnsL4' | K200: 'component PnsL4 of NDH lumen subcomplex L (original description: pep chromosome:B73_RefGen_v4:5:213824475:213826077:1 gene:Zm00001d018077 transcript:Zm00001d018077_T001 gene_biotype:protein_coding transcript_biotype:protein_coding description:Photosynthetic NDH subunit of lumenal location 4 chloroplastic)'
A201: Zm00001d020030_T001 | B201: 25 | C201: 1.57 | D201: 0.5111841937 | E201: 3.078331065 | F201: 0.002081635161 | G201: 0.00525053912 | H201: see Table 2 | I201: '1.1.8.1.6.4' | J201: 'Photosynthesis.photophosphorylation.chlororespiration.NADH dehydrogenase-like (NDH) complex.assembly and stabilization.assembly factor (CRR3)' | K201: 'assembly factor CRR3 involved in NDH complex assembly (original description: pep chromosome:B73_RefGen_v4:7:87164118:87164974:-1 gene:Zm00001d020030 transcript:Zm00001d020030_T001 gene_biotype:protein_coding transcript_biotype:protein_coding description:Probable NAD(P)H dehydrogenase subunit CRR3 chloroplastic)'
... 4278 more rows

Sheet Table S3
A1: Table S3: Sequence of the primers used for Indel walking and genotyping alb-605F mutant alleles.
D3: Forward Primer (5' to 3') | E3: Reverse Primer (5' to 3') | F3: Tm (°C) | G3: predicted amplicon sizes | H3: Position on Chr. 9 | I3: Ref | J3: Alt
C4: Primer 1 (P1) | D4: AGAGGCGGGAGACTCATAGC | E4: GCGCCGTTATCGTCATAATC | G4: 339 bp WT; 430 bp alb | H4: 67510 | I4: A | J4: ACCGTGTACCATGGCGTTATAATTCAGACTGCCACGCCAGCATGGTATTGACAACAATTTCTACGATATTGCATCCTTTACATTATCTGCT
C5: Primer 2 (P2) | D5: TATACAATCCACCGCGCTTT | E5: ATGAAGCGAGCAAAATGAGC | G5: 295 bpWT; 361 bp alb | H5: 932490 | I5: T | J5: TGAATAATGCAAAATTGAACTATCCAGCGACAACTAAAAAGAAACGGAGGGAGTAGCTAGCTAGCC
C6: Primer 3 (P3) | D6: GTAGAACCCGCTACCCAGGA | E6: CCGAACCAAGTCTCAGGTTG | G6: 322 bp for WT, 880 bp observed for alb; Sanger sequencing of alb amplicon confirmed the GATK called alt 93 nt insertion maps to left border of a 558 bp TE insertion | H6: 1016218 | I6: G | J6: GGGCCCGTCGGCAAAGCTCCAGCTCCTGCTTCTTCATTCTGATCCTCGTGATGAGCTGATCCTCCTGATTCTCCTAAAAAATCAGAATCATTT
C7: Primer 4 (P4) | D7: TAGACTCCACCGGACGACAG | E7: GCCGGACAGGTAAAGGAAGA | G7: 364 bp WT; 394 bp alb | H7: 1127089 | I7: T | J7: TTGTTTCCCCGTGAGGGCACTCCTAAGTCC
C8: Gene Specific Forward for UFMu-1041912 genotyping | D8: CCCGAGAGCAAGCGAACCAA | F8: 71.7
C9: Gene Specific reverse, for UFMu-1041912 sequencing | E9: GCCAGACGGATGAGGAGGAA | F9: 68.8
C10: TIR8 UFMu primer | D10: CGCCTCCATTTCGTCGAATCCSCTT | F10: 74.1
C11: Gene Specific Forward for Bmu-98370.7 sequencing | D11: GAACCCGCTACCCAGGAATT | F11: 66
C12: Gene Specific Forward for Bmu-98370.7 genotyping complementation test | D12: CGTCGGCGTTTCCTTGAATT | F12: 68.1 | G12: 252 bp
C13: Barkan Mu primer | D13: GCCTCCATTTCGTCGAATCCC | F13: 70.7

Sheet Table S4
A1: Table S4: List of Maize Genetics Co-op and Mutator reverse genetic stock lines tested for alb-605F complementation.
A4: maize GDB lookup | B4: S. No. | C4: CR_Name 2021 field plot | D4: Line name | E4: Mutant phenotype observed in the parent stock screen | F4: Mutant phenotype reported of the parent stock | G4: Phenotype observed of the progeny obtained from 2022 field crosses with albino-605F heterozygote
A5: https://www.maizegdb.org/gene_center/gene/74729 | B5: 1 | C5: 15-A | D5: 3510C w*-N627B/(W23/L317) | E5: Albino seedling | F5: Albino seedling | G5: Albino seedling
A6: https://www.maizegdb.org/gene_center/gene/74658 | B6: 2 | C6: 15-B | D6: 3511I w*- N1830 | E6: No segregation | F6: Albino seedling | G6: No segregation
A7: https://www.maizegdb.org/gene_center/gene/74665 | B7: 3 | C7: 16-A | D7: 3511O w*-N1854/(M14/W23) | E7: Albino seedling | F7: Albino seedling | G7: No segregation
A8: https://www.maizegdb.org/gene_center/gene/74667 | B8: 4 | C8: 16-B | D8: 3511P w*-N1865 | E8: Albino seedling | F8: Albino seedling | G8: No segregation
A9: https://www.maizegdb.org/gene_center/gene/74803 | B9: 5 | C9: 17-A | D9: 4208E wl*-N1803/(W23/L317) | E9: No segregation | F9: White luteus seedling | G9: No segregation
A10: https://www.maizegdb.org/gene_center/gene/74810 | B10: 6 | C10: 17-B | D10: 4208K wl*-N1857/(W23/L317) | E10: Yellowish/greenish white seedling | F10: White luteus seedling/greenish yellowish white mutant seedling | G10: IOJAP/Variagated seedling
A11: https://www.maizegdb.org/gene_center/gene/74569 | B11: 7 | C11: 18-A | D11: 4508D v*-N829A(W23/L317) | E11: Virescent seedling | F11: Virescent seedling, with green at tips | G11: No segregation
A12: https://www.maizegdb.org/gene_center/gene/74444 | B12: 8 | C12: 18-B | D12: 4511D w*-N1893(B73Ht1/Mo17) | E12: Albino seedling | F12: Albino seedling/lethal | G12: Albino seedling
A13: https://www.maizegdb.org/data_center/locus/12575 | B13: 9 | C13: 19-A | D13: 920N pyd1c1-m2 | E13: Albino seedling | F13: pale yellow deficiency; White luteus seedling | G13: No segregation
A14: http://teosinte.uoregon.edu/mu-illumina/# | B14: 11 | C14: 20-A | D14: Bmu-illumina_89370.7 | E14: Two virescent; 2 albino; supporting evidence for novel allele of candidate causal mutation | F14: mistakenly mapped to exon3; see Maize Genome Database refgen_v4 annotation | G14: segregated ~3:1 chlorotic from 2024 cross
A15: https://www.maizegdb.org/uniformmu | B15: 12 | C15: 20-B | D15: UFmu-04588; locus Ufmu_1041912 | E15: No segregation | F15: NA | G15: No segregation
A16: https://www.maizegdb.org/uniformmu | B16: 13 | D16: BonnMu0078882 | E16: not tested; Mu reported to map upstream of transcript
A17: https://www.maizegdb.org/uniformmu | B17: 14 | D17: BonnMu0033912 | E17: not tested; Mu reported to map upstream of transcript

Sheet Table S5
A1: Table S5: List of all the SNPs/Indels for candidate causal alb-605F genes identified by SnpEff software within the fine mapped 10 Mbp interval on short arm of Chr. 9.
A2: Chr | B2: Position | C2: Ref allele | D2: Alt allele | E2: Albino | F2: Albino ref allele reads | G2: Albino alt allele reads | H2: WT hybrid cousin | I2: WT ref allele | J2: WT alt allele | K2: Gene id
A3: 9 | B3: 483572 | C3: G | D3: A | E3: Homozygous alt | F3: 3 | G3: 58 | H3: Homozygous ref | I3: 71 | J3: 0 | K3: Zm00001d044726
A4: 9 | B4: 483808 | C4: G | D4: C | E4: Homozygous alt | F4: 3 | G4: 72 | H4: Homozygous ref | I4: 71 | J4: 0 | K4: Zm00001d044726
A5: 9 | B5: 483835 | C5: T | D5: C | E5: Homozygous alt | F5: 3 | G5: 79 | H5: Homozygous ref | I5: 71 | J5: 0 | K5: Zm00001d044726
A6: 9 | B6: 484006 | C6: C | D6: T | E6: Homozygous alt | F6: 6 | G6: 68 | H6: Homozygous ref | I6: 71 | J6: 0 | K6: Zm00001d044726
A7: 9 | B7: 484036 | C7: C | D7: T | E7: Homozygous alt | F7: 7 | G7: 71 | H7: Homozygous ref | I7: 71 | J7: 0 | K7: Zm00001d044726
A8: 9 | B8: 484062 | C8: T | D8: C | E8: Homozygous alt | F8: 6 | G8: 67 | H8: Homozygous ref | I8: 71 | J8: 0 | K8: Zm00001d044726
A9: 9 | B9: 484664 | C9: A | D9: G | E9: Homozygous alt | F9: 1 | G9: 64 | H9: Homozygous ref | I9: 76 | J9: 0 | K9: Zm00001d044726
A10: 9 | B10: 484665 | C10: A | D10: C | E10: Homozygous alt | F10: 1 | G10: 63 | H10: Homozygous ref | I10: 76 | J10: 0 | K10: Zm00001d044726
A11: 9 | B11: 484741 | C11: C | D11: T | E11: Homozygous alt | F11: 3 | G11: 80 | H11: Homozygous ref | I11: 35 | J11: 0 | K11: Zm00001d044726
A12: 9 | B12: 485161 | C12: G | D12: A | E12: Homozygous alt | F12: 2 | G12: 49 | H12: Homozygous ref | I12: 35 | J12: 0 | K12: Zm00001d044726
A13: 9 | B13: 485222 | C13: T | D13: A | E13: Homozygous alt | F13: 2 | G13: 41 | H13: Homozygous ref | I13: 35 | J13: 0 | K13: Zm00001d044726
A14: 9 | B14: 485380 | C14: C | D14: G | E14: Homozygous alt | F14: 1 | G14: 36 | H14: Homozygous ref | I14: 34 | J14: 0 | K14: Zm00001d044726
A15: 9 | B15: 485393 | C15: C | D15: G | E15: Homozygous alt | F15: 1 | G15: 41 | H15: Homozygous ref | I15: 27 | J15: 0 | K15: Zm00001d044726
A16: 9 | B16: 485605 | C16: A | D16: G | E16: Homozygous alt | F16: 0 | G16: 4 | H16: Homozygous ref | I16: 1 | J16: 0 | K16: Zm00001d044726
A18: 9 | B18: 1016059 | C18: CAT | D18: C | E18: Homozygous alt | F18: 0 | G18: 24 | H18: Homozygous ref | I18: 54 | J18: 0 | K18: Zm00001d044745
A19: 9 | B19: 1016218 | C19: G | D19: GGGCCCGTCGGCAAAGCTCCAGCTCCTGCTTCTTCATTCTGATCCTCGTGATGAGCTGATCCTCCTGATTCTCCTAAAAAATCAGAATCATTT | E19: Homozygous alt | F19: 0 | G19: 20 | H19: Homozygous ref | I19: 54 | J19: 0 | K19: Zm00001d044745
A20: 9 | B20: 1016576 | C20: CACGAGG | D20: C | E20: Homozygous alt | F20: 0 | G20: 42 | H20: Homozygous ref | I20: 54 | J20: 0 | K20: Zm00001d044745
A21: 9 | B21: 1017343 | C21: AG | D21: A | E21: Homozygous alt | F21: 0 | G21: 57 | H21: Homozygous ref | I21: 54 | J21: 0 | K21: Zm00001d044745
A22: 9 | B22: 1018273 | C22: GTA | D22: G | E22: Homozygous alt | F22: 0 | G22: 76 | H22: Homozygous ref | I22: 82 | J22: 0 | K22: Zm00001d044745
A23: 9 | B23: 1018880 | C23: C | D23: T | E23: Homozygous alt | F23: 0 | G23: 3 | H23: Homozygous ref | I23: 22 | J23: 0 | K23: Zm00001d044745
A24: 9 | B24: 1018893 | C24: C | D24: T | E24: Homozygous alt | F24: 0 | G24: 3 | H24: Homozygous ref | I24: 16 | J24: 0 | K24: Zm00001d044745
A25: 9 | B25: 1018923 | C25: A | D25: G | E25: Homozygous alt | F25: 0 | G25: 3 | H25: Homozygous ref | I25: 6 | J25: 0 | K25: Zm00001d044745
A26: 9 | B26: 1020317 | C26: GGGA | D26: G | E26: Homozygous alt | F26: 0 | G26: 5 | H26: Homozygous ref | I26: 0 | J26: 0 | K26: Zm00001d044745
A27: 9 | B27: 1021005 | C27: GAC | D27: G | E27: Homozygous alt | F27: 0 | G27: 58 | H27: Homozygous ref | I27: 72 | J27: 0 | K27: Zm00001d044745
A28: 9 | B28: 1022758 | C28: GA | D28: G | E28: Homozygous alt | F28: 0 | G28: 78 | H28: Homozygous ref | I28: 79 | J28: 0 | K28: Zm00001d044745
A29: 9 | B29: 1023368 | C29: TG | D29: T | E29: Homozygous alt | F29: 0 | G29: 68 | H29: Homozygous ref | I29: 83 | J29: 0 | K29: Zm00001d044745
A30: 9 | B30: 1023437 | C30: GGC | D30: G | E30: Homozygous alt | F30: 0 | G30: 70 | H30: Homozygous ref | I30: 83 | J30: 0 | K30: Zm00001d044745
A31: 9 | B31: 1023442 | C31: ATT | D31: A | E31: Homozygous alt | F31: 0 | G31: 69 | H31: Homozygous ref | I31: 83 | J31: 0 | K31: Zm00001d044745
A32: 9 | B32: 1023447 | C32: GT | D32: G | E32: Homozygous alt | F32: 0 | G32: 71 | H32: Homozygous ref | I32: 83 | J32: 0 | K32: Zm00001d044745
A34: 9 | B34: 1121417 | C34: AT | D34: A | E34: Homozygous alt | F34: 1 | G34: 40 | H34: Homozygous ref | I34: 56 | J34: 0 | K34: Zm00001d044748
A35: 9 | B35: 1121854 | C35: CAGAA | D35: C | E35: Heterozygous | F35: 2 | G35: 12 | H35: Homozygous ref | I35: 56 | J35: 0 | K35: Zm00001d044748
A36: 9 | B36: 1122323 | C36: GA | D36: G | E36: Homozygous alt | F36: 1 | G36: 70 | H36: Homozygous ref | I36: 56 | J36: 0 | K36: Zm00001d044748
A37: 9 | B37: 1122707 | C37: TAAAAA | D37: T | E37: Homozygous alt | F37: 2 | G37: 59 | H37: Homozygous ref | I37: 74 | J37: 0 | K37: Zm00001d044748
A38: 9 | B38: 1123021 | C38: T | D38: TGA | E38: Homozygous alt | F38: 0 | G38: 75 | H38: Homozygous ref | I38: 76 | J38: 0 | K38: Zm00001d044748
A39: 9 | B39: 1123694 | C39: TGC | D39: T | E39: Homozygous alt | F39: 1 | G39: 96 | H39: Homozygous ref | I39: 76 | J39: 0 | K39: Zm00001d044748
A40: 9 | B40: 1124024 | C40: TA | D40: T | E40: Heterozygous | F40: 2 | G40: 55 | H40: Homozygous ref | I40: 82 | J40: 0 | K40: Zm00001d044748
A41: 9 | B41: 1124026 | C41: A | D41: T | E41: Heterozygous | F41: 2 | G41: 55 | H41: Homozygous ref | I41: 82 | J41: 0 | K41: Zm00001d044748
A42: 9 | B42: 1124131 | C42: C | D42: CAGGCGAAGCGAAGGGATCCTCTCCTCTGTTACCGTGTATTTGTTTATCTGGT | E42: Homozygous alt | F42: 1 | G42: 53 | H42: Homozygous ref | I42: 75 | J42: 0 | K42: Zm00001d044748
A43: 9 | B43: 1124220 | C43: T | D43: TTATAGGGCCTGTTTGGTTTACTACCTAACTTGCCACATTTTTCCTAACTTTTCTGCCTAAGGTTAGTTCTTCAATTCGGACGACTAACCTTAGGCAAAGTGTGGCACAGTTAGCCGCGAACCAAACAGGCC | E43: Homozygous alt | F43: 1 | G43: 44 | H43: Homozygous ref | I43: 75 | J43: 0 | K43: Zm00001d044748
A44: 9 | B44: 1124300 | C44: TCTTCTGCTCTACTGCAACA | D44: T | E44: Homozygous alt | F44: 0 | G44: 26 | H44: Homozygous ref | I44: 75 | J44: 0 | K44: Zm00001d044748
A45: 9 | B45: 1124441 | C45: T | D45: TGCACCCAAACATGAAACTAAGCGTGTGTTTGGTTAGCGGGTTGAACCTGTATCAACCTGTGTTTGGTTCAAAACGTTCGCGGGTTAGGTTGGTTCCGG | E45: Homozygous alt | F45: 0 | G45: 17 | H45: Homozygous ref | I45: 75 | J45: 0 | K45: Zm00001d044748
A47: 9 | B47: 1933837 | C47: TCTTCAA | D47: T | E47: Homozygous alt | F47: 1 | G47: 23 | H47: Homozygous ref | I47: 27 | J47: 0 | K47: Zm00001d044768
A49: 9 | B49: 1978011 | C49: A | D49: ACTG | E49: Homozygous alt | F49: 0 | G49: 11 | H49: Homozygous ref | I49: 7 | J49: 0 | K49: Zm00001d044771
A50: 9 | B50: 1978016 | C50: G | D50: GACCAAC | E50: Homozygous alt | F50: 0 | G50: 10 | H50: Homozygous ref | I50: 7 | J50: 0 | K50: Zm00001d044771
A51: 9 | B51: 1979099 | C51: TGGGTTTCGGGGAGAA | D51: T | E51: Homozygous alt | F51: 1 | G51: 21 | H51: Homozygous ref | I51: 30 | J51: 0 | K51: Zm00001d044771
A53: 9 | B53: 3987108 | C53: GCA | D53: G | E53: Homozygous alt | F53: 0 | G53: 17 | H53: Homozygous ref | I53: 6 | J53: 0 | K53: Zm00001d044824
A54: 9 | B54: 3987132 | C54: CG | D54: C | E54: Homozygous alt | F54: 0 | G54: 15 | H54: Homozygous ref | I54: 4 | J54: 0 | K54: Zm00001d044824
A55: 9 | B55: 3987270 | C55: ACT | D55: A | E55: Homozygous alt | F55: 0 | G55: 2 | H55: Homozygous ref | I55: 0 | J55: 0 | K55: Zm00001d044824
A57: 9 | B57: 4090127 | C57: G | D57: GTGATCAAGCTAAGCTAATAATAT | E57: Homozygous alt | F57: 0 | G57: 8 | H57: Homozygous ref | I57: 1 | J57: 0 | K57: Zm00001d044826
A58: 9 | B58: 4090852 | C58: GAGGC | D58: G | E58: Heterozygous | F58: 3 | G58: 29 | H58: Homozygous ref | I58: 33 | J58: 0 | K58: Zm00001d044826
A59: 9 | B59: 4091008 | C59: C | D59: CA | E59: Homozygous ref | F59: 0 | G59: 3 | H59: Heterozygous | I59: 43 | J59: 1 | K59: Zm00001d044826
A60: 9 | B60: 4091559 | C60: T | D60: A | E60: Homozygous alt | F60: 0 | G60: 7 | H60: Homozygous ref | I60: 15 | J60: 0 | K60: Zm00001d044826
A61: 9 | B61: 4091563 | C61: C | D61: CA | E61: Homozygous alt | F61: 0 | G61: 7 | H61: Homozygous ref | I61: 15 | J61: 0 | K61: Zm00001d044826
A62: 9 | B62: 4091565 | C62: C | D62: G | E62: Homozygous alt | F62: 0 | G62: 7 | H62: Homozygous ref | I62: 15 | J62: 0 | K62: Zm00001d044826
A63: 9 | B63: 4091568 | C63: CTTATAT | D63: C | E63: Homozygous alt | F63: 0 | G63: 7 | H63: Homozygous ref | I63: 13 | J63: 0 | K63: Zm00001d044826
A64: 9 | B64: 4091577 | C64: AT | D64: A | E64: Homozygous alt | F64: 0 | G64: 7 | H64: Homozygous ref | I64: 10 | J64: 0 | K64: Zm00001d044826
A65: 9 | B65: 4091579 | C65: CAT | D65: C | E65: Homozygous alt | F65: 0 | G65: 7 | H65: Homozygous ref | I65: 10 | J65: 0 | K65: Zm00001d044826
A66: 9 | B66: 4091662 | C66: T | D66: TAGAGAACAGCTAGTGTGTTGATGATCATGATTCATGCCATCAAGACGCGCGATGGTGGCCATCATGGTACTTACTAGTTAGCGACGGCAGGTGGTGTCGCCGAGACGAG | E66: Homozygous alt | F66: 0 | G66: 0 | H66: Homozygous ref | I66: 1 | J66: 0 | K66: Zm00001d044826
A67: 9 | B67: 4091688 | C67: TA | D67: T | E67: Homozygous alt | F67: 0 | G67: 3 | H67: Homozygous ref | I67: 1 | J67: 0 | K67: Zm00001d044826
A68: 9 | B68: 4091732 | C68: C | D68: CT | E68: Homozygous alt | F68: 0 | G68: 8 | H68: Homozygous ref | I68: 1 | J68: 0 | K68: Zm00001d044826
A69: 9 | B69: 4091856 | C69: GA | D69: G | E69: Homozygous alt | F69: 0 | G69: 9 | H69: Homozygous ref | I69: 5 | J69: 0 | K69: Zm00001d044826
A70: 9 | B70: 4091861 | C70: TGGATCCGTACGTCGGCCCCGCAGGGCTCGA | D70: T | E70: Homozygous alt | F70: 0 | G70: 9 | H70: Homozygous ref | I70: 5 | J70: 0 | K70: Zm00001d044826
A71: 9 | B71: 4091896 | C71: CG | D71: C | E71: Homozygous alt | F71: 0 | G71: 8 | H71: Homozygous ref | I71: 6 | J71: 0 | K71: Zm00001d044826
A72: 9 | B72: 4091909 | C72: G | D72: A | E72: Homozygous alt | F72: 0 | G72: 4 | H72: Homozygous ref | I72: 4 | J72: 0 | K72: Zm00001d044826
A73: 9 | B73: 4091919 | C73: CTTAA | D73: C | E73: Homozygous alt | F73: 0 | G73: 4 | H73: Homozygous ref | I73: 4 | J73: 0 | K73: Zm00001d044826
A74: 9 | B74: 4091954 | C74: TGCAC | D74: T | E74: Homozygous alt | F74: 0 | G74: 5 | H74: Homozygous ref | I74: 4 | J74: 0 | K74: Zm00001d044826
A75: 9 | B75: 4091964 | C75: C | D75: A | E75: Homozygous alt | F75: 0 | G75: 5 | H75: Homozygous ref | I75: 4 | J75: 0 | K75: Zm00001d044826
A76: 9 | B76: 4091973 | C76: TTGTTTTGTTTTG | D76: T | E76: Homozygous alt | F76: 0 | G76: 5 | H76: Homozygous ref | I76: 4 | J76: 0 | K76: Zm00001d044826
A77: 9 | B77: 4092248 | C77: ACATC | D77: A | E77: Heterozygous | F77: 2 | G77: 31 | H77: Homozygous ref | I77: 27 | J77: 0 | K77: Zm00001d044826
A78: 9 | B78: 4092265 | C78: T | D78: TCTGCATG | E78: Heterozygous | F78: 2 | G78: 32 | H78: Homozygous ref | I78: 30 | J78: 0 | K78: Zm00001d044826
A79: 9 | B79: 4092272 | C79: G | D79: GTCGA | E79: Heterozygous | F79: 1 | G79: 36 | H79: Homozygous ref | I79: 30 | J79: 0 | K79: Zm00001d044826
A80: 9 | B80: 4092281 | C80: A | D80: ACC | E80: Heterozygous | F80: 1 | G80: 37 | H80: Homozygous ref | I80: 33 | J80: 0 | K80: Zm00001d044826
A81: 9 | B81: 4092287 | C81: TACC | D81: T | E81: Heterozygous | F81: 1 | G81: 37 | H81: Homozygous ref | I81: 34 | J81: 0 | K81: Zm00001d044826
A82: 9 | B82: 4092297 | C82: TCTAG | D82: T | E82: Heterozygous | F82: 1 | G82: 37 | H82: Homozygous ref | I82: 34 | J82: 0 | K82: Zm00001d044826
A83: 9 | B83: 4092305 | C83: ATTGGCTGTTGCTTCAACTTTGTTTTTTTTTTTAATT | D83: A | E83: Heterozygous | F83: 1 | G83: 38 | H83: Homozygous ref | I83: 37 | J83: 0 | K83: Zm00001d044826
A84: 9 | B84: 4092574 | C84: G | D84: GC | E84: Homozygous alt | F84: 1 | G84: 29 | H84: Homozygous ref | I84: 37 | J84: 0 | K84: Zm00001d044826
A85: 9 | B85: 4092621 | C85: TAG | D85: T | E85: Homozygous alt | F85: 0 | G85: 16 | H85: Homozygous ref | I85: 42 | J85: 0 | K85: Zm00001d044826
A86: 9 | B86: 4092732 | C86: T | D86: A | E86: Homozygous alt | F86: 2 | G86: 40 | H86: Homozygous ref | I86: 47 | J86: 0 | K86: Zm00001d044826
A87: 9 | B87: 4092790 | C87: C | D87: CCTAG | E87: Heterozygous | F87: 3 | G87: 33 | H87: Homozygous ref | I87: 47 | J87: 0 | K87: Zm00001d044826
A88: 9 | B88: 4092797 | C88: C | D88: CTATATATA | E88: Heterozygous | F88: 3 | G88: 30 | H88: Homozygous ref | I88: 45 | J88: 0 | K88: Zm00001d044826
A89: 9 | B89: 4092843 | C89: CTCTAGCAG | D89: C | E89: Heterozygous | F89: 2 | G89: 26 | H89: Homozygous ref | I89: 40 | J89: 0 | K89: Zm00001d044826
A90: 9 | B90: 4093368 | C90: ACG | D90: A | E90: Heterozygous | F90: 6 | G90: 7 | H90: Homozygous ref | I90: 37 | J90: 0 | K90: Zm00001d044826

Sheet Table S6
A1: Supplemental Table S6. Wilcoxon Rank Sum statistics from MapMan analysis
A2: bin | B2: name | C2: elements | D2: p-value (Benjamini-Hochberg corrected)
A3: 12.1 | B3: .Chromatin organisation.histones | C3: 93 | D3: 0.0
A4: 12.1.5 | B4: .Chromatin organisation.histones.histone (H4) | C4: 19 | D4: 5.223863151859331E-6
A5: 12.1.4 | B5: .Chromatin organisation.histones.histone (H3) | C5: 18 | D5: 6.6108539389375665E-6
A6: 12.1.3 | B6: .Chromatin organisation.histones.histone (H2B) | C6: 15 | D6: 4.951989602019519E-4
A7: 12.1.2 | B7: .Chromatin organisation.histones.histone (H2A) | C7: 35 | D7: 5.140005586741214E-4
A8: 12.1.1 | B8: .Chromatin organisation.histones.linker histone (H1) | C8: 6 | D8: 0.22379518582719554
A9: 12.5.1.3 | B9: .Chromatin organisation.DNA methylation.RNA-directed DNA methylation (RdDM) pathway.stabilization factor (SGS3) | C9: 4 | D9: 0.4206053830334554
A10: 12.4.7 | B10: .Chromatin organisation.chromatin remodeling complexes.SWR1/NuA4-shared helicase (RVB) | C10: 4 | D10: 0.473328383368854
A11: 12.5.1.2 | B11: .Chromatin organisation.DNA methylation.RNA-directed DNA methylation (RdDM) pathway.auxiliary factor (MORC) | C11: 10 | D11: 0.6053633049726121
A12: 12.2 | B12: .Chromatin organisation.histone chaperone activities | C12: 29 | D12: 0.6586444792751129
A13: 12.3.3 | B13: .Chromatin organisation.histone modifications.histone lysine methylation | C13: 104 | D13: 0.7337490995971355
A14: 12.4.1 | B14: .Chromatin organisation.chromatin remodeling complexes.ATPase modules | C14: 31 | D14: 0.7993400309128054
A15: 12.5.1.4 | B15: .Chromatin organisation.DNA methylation.RNA-directed DNA methylation (RdDM) pathway.regulatory protein (IDN/IDP) | C15: 7 | D15: 0.8147670739605013
A16: 12.4.5 | B16: .Chromatin organisation.chromatin remodeling complexes.NuA4 histone acetyltransferase complex | C16: 6 | D16: 0.8188810507268994
A17: 12.3.2 | B17: .Chromatin organisation.histone modifications.histone deacetylation | C17: 33 | D17: 0.8217400685631935
A18: 12.4.4 | B18: .Chromatin organisation.chromatin remodeling complexes.SWR1 histone variant exchanging complex | C18: 5 | D18: 0.8399443123377904
A19: 12.5.1.1 | B19: .Chromatin organisation.DNA methylation.RNA-directed DNA methylation (RdDM) pathway.methyl-DNA-binding factor (SUVH2|9) | C19: 1 | D19: 0.8772318735782576
A20: 12.3.4 | B20: .Chromatin organisation.histone modifications.histone arginine methylation | C20: 5 | D20: 0.8868144022045754
A21: 12.4.6 | B21: .Chromatin organisation.chromatin remodeling complexes.SWR1/NuA4-shared subcomplex | C21: 3 | D21: 0.9350981095839339
A22: 12.3.1 | B22: .Chromatin organisation.histone modifications.histone acetylation | C22: 6 | D22: 0.9550633335474957
A23: 12.4.3 | B23: .Chromatin organisation.chromatin remodeling complexes.INO80 chromatin remodeling complex | C23: 10 | D23: 0.977678820691749
A24: 12.4.2 | B24: .Chromatin organisation.chromatin remodeling complexes.additional core components | C24: 12 | D24: 0.9905949679276073
A25: 17 | B25: .Protein biosynthesis | C25: 924 | D25: 0.0
A26: 17.1 | B26: .Protein biosynthesis.ribosome biogenesis | C26: 493 | D26: 0.0
A27: 17.1.2 | B27: .Protein biosynthesis.ribosome biogenesis.large ribosomal subunit (LSU) | C27: 252 | D27: 0.0
A28: 17.1.2.1 | B28: .Protein biosynthesis.ribosome biogenesis.large ribosomal subunit (LSU).LSU proteome | C28: 198 | D28: 0.0
A29: 17.1.3.1 | B29: .Protein biosynthesis.ribosome biogenesis.small ribosomal subunit (SSU).SSU proteome | C29: 127 | D29: 0.0
A30: 17.7 | B30: .Protein biosynthesis.organelle machinery | C30: 182 | D30: 0.0
A31: 17.7.2 | B31: .Protein biosynthesis.organelle machinery.plastidial ribosome | C31: 80 | D31: 0.0
A32: 17.7.2.1 | B32: .Protein biosynthesis.organelle machinery.plastidial ribosome.large ribosomal subunit proteome | C32: 45 | D32: 0.0
A33: 24 | B33: .Solute transport | C33: 1439 | D33: 2.8380073734187246E-15
A34: 19.1 | B34: .Protein homeostasis.protein quality control | C34: 172 | D34: 1.1501910535116622E-13
A35: 1.1 | B35: Photosynthesis.photophosphorylation | C35: 275 | D35: 2.108683598104714E-13
A36: 24.2 | B36: .Solute transport.carrier-mediated transport | C36: 999 | D36: 8.007690170723326E-12
A37: 22 | B37: .Vesicle trafficking | C37: 647 | D37: 1.1679319308951386E-10
A38: 17.1.3 | B38: .Protein biosynthesis.ribosome biogenesis.small ribosomal subunit (SSU) | C38: 179 | D38: 3.205199069119165E-10
A39: 1 | B39: Photosynthesis | C39: 360 | D39: 5.667192604086324E-9
A40: 15.5.14 | B40: .RNA biosynthesis.transcriptional regulation.transcription factor (MADS/AGL) | C40: 72 | D40: 4.913607501483193E-7
A41: 7.12 | B41: .Coenzyme metabolism.tetrapyrrole biosynthesis | C41: 75 | D41: 6.302337944358922E-7
A42: 18.8 | B42: .Protein modification.S-glutathionylation | C42: 83 | D42: 1.3494303380677166E-6
A43: 15.6.1.2 | B43: .RNA biosynthesis.organelle machinery.RNA polymerase activities.plastid-encoded RNA polymerase (PEP) complex | C43: 25 | D43: 1.4674058615105069E-6
A44: 13 | B44: .Cell cycle organisation | C44: 598 | D44: 1.6666366405478545E-6
A45: 1.1.8.1 | B45: Photosynthesis.photophosphorylation.chlororespiration.NADH dehydrogenase-like (NDH) complex | C45: 54 | D45: 2.817513985675646E-6
A46: 1.1.8 | B46: Photosynthesis.photophosphorylation.chlororespiration | C46: 56 | D46: 4.413555597592301E-6
A47: 24.2.1 | B47: .Solute transport.carrier-mediated transport.DMT superfamily | C47: 152 | D47: 4.49308673678317E-6
A48: 23.1 | B48: .Protein translocation.chloroplast | C48: 56 | D48: 4.49308673678317E-6
A49: 19.1.8 | B49: .Protein homeostasis.protein quality control.smallHsp holdase chaperone activities | C49: 22 | D49: 5.223863151859331E-6
A50: 18.4.24.2.1 | B50: .Protein modification.phosphorylation.serine/threonine protein phosphatase superfamily.PPM/PP2C Mn/Mg-dependent phosphatase families.clade A phosphatase | C50: 13 | D50: 8.334922008948277E-6
A51: 17.7.2.2 | B51: .Protein biosynthesis.organelle machinery.plastidial ribosome.small ribosomal subunit proteome | C51: 31 | D51: 9.315115867636337E-6
A52: 21.2.2.1.3 | B52: .Cell wall organisation.hemicellulose.xylan.biosynthesis.xylosyltransferase activities | C52: 31 | D52: 1.856793764691655E-5
A53: 17.2 | B53: .Protein biosynthesis.aminoacyl-tRNA synthetase activities | C53: 68 | D53: 1.900787549075078E-5
A54: 13.2 | B54: .Cell cycle organisation.DNA replication | C54: 114 | D54: 2.1009057493248662E-5
A55: 15.6.1 | B55: .RNA biosynthesis.organelle machinery.RNA polymerase activities | C55: 38 | D55: 2.1544682914963934E-5
A56: 15.6 | B56: .RNA biosynthesis.organelle machinery | C56: 73 | D56: 2.7995408281711322E-5
A57: 19 | B57: .Protein homeostasis | C57: 1349 | D57: 5.370782014790798E-5
A58: 7 | B58: .Coenzyme metabolism | C58: 262 | D58: 6.658491612787643E-5
A59: 18.4 | B59: .Protein modification.phosphorylation | C59: 1245 | D59: 1.3221732910443423E-4
A60: 19.1.7 | B60: .Protein homeostasis.protein quality control.Hsp60 chaperone system | C60: 20 | D60: 1.565111308241722E-4
A61: 15.5.3.4 | B61: .RNA biosynthesis.transcriptional regulation.Homeobox transcription factor superfamily.transcription factor (KNOX) | C61: 15 | D61: 2.0368372612069192E-4
A62: 18.8.1.5 | B62: .Protein modification.S-glutathionylation.glutathione S-transferase activities.class phi glutathione S-transferase | C62: 12 | D62: 2.9505357323484483E-4
A63: 1.1.1.3 | B63: Photosynthesis.photophosphorylation.photosystem II.assembly and maintenance | C63: 40 | D63: 3.6452878934471283E-4
A64: 15.5.51.1 | B64: .RNA biosynthesis.transcriptional regulation.NF-Y transcription factor complex.component NF-YA | C64: 14 | D64: 5.840275171561421E-4
A65: 9.1.4 | B65: .Secondary metabolism.terpenoids.terpene biosynthesis | C65: 47 | D65: 5.840275171561421E-4
A66: 20.2 | B66: .Cytoskeleton organisation.microfilament network | C66: 176 | D66: 6.551052213510231E-4
A67: 21.2.2 | B67: .Cell wall organisation.hemicellulose.xylan | C67: 81 | D67: 9.001781188400968E-4
A68: 15.6.1.2.2 | B68: .RNA biosynthesis.organelle machinery.RNA polymerase activities.plastid-encoded RNA polymerase (PEP) complex.essential co-factor components | C68: 11 | D68: 9.97762242123493E-4
A69: 16.12.2.1 | B69: .RNA processing.organelle machinery.pre-mRNA splicing.plastidial RNA splicing | C69: 21 | D69: 0.0010595719207668263
A70: 13.1.1.1 | B70: .Cell cycle organisation.cell cycle control.cyclin-dependent regulation.cyclin activities | C70: 57 | D70: 0.0011306761893265728
A71: 1.1.8.1.6 | B71: Photosynthesis.photophosphorylation.chlororespiration.NADH dehydrogenase-like (NDH) complex.assembly and stabilization | C71: 17 | D71: 0.0011306761893265728
A72: 19.2.6 | B72: .Protein homeostasis.ubiquitin-proteasome system.26S proteasome | C72: 85 | D72: 0.0011729267955881495
A73: 18.4.5 | B73: .Protein modification.phosphorylation.CAMK protein kinase superfamily | C73: 114 | D73: 0.001305331345833074
A74: 18.1 | B74: .Protein modification.glycosylation | C74: 87 | D74: 0.0014161089871371534
A75: 50.2.4 | B75: .Enzyme classification.EC_2 transferases.EC_2.4 glycosyltransferase | C75: 227 | D75: 0.001559462778803089
A76: 5.1 | B76: .Lipid metabolism.fatty acid biosynthesis | C76: 151 | D76: 0.0017988815244190178
A77: 24.2.1.1 | B77: .Solute transport.carrier-mediated transport.DMT superfamily.NST-TPT group | C77: 65 | D77: 0.001856983816508485
A78: 18.8.2 | B78: .Protein modification.S-glutathionylation.glutaredoxin | C78: 26 | D78: 0.0018727582842866625
A79: 13.2.1 | B79: .Cell cycle organisation.DNA replication.preinitiation | C79: 36 | D79: 0.0018727582842866625
A80: 24.2.1.5 | B80: .Solute transport.carrier-mediated transport.DMT superfamily.solute transporter (UmamiT) | C80: 47 | D80: 0.0018727582842866625
A81: 7.12.6 | B81: .Coenzyme metabolism.tetrapyrrol biosynthesis.chlorophyll metabolism | C81: 35 | D81: 0.002143241410469184
A82: 18.8.1 | B82: .Protein modification.S-glutathionylation.glutathione S-transferase activities | C82: 57 | D82: 0.0025404350995426287
A83: 19.2.6.1 | B83: .Protein homeostasis.ubiquitin-proteasome system.26S proteasome.20S core particle | C83: 33 | D83: 0.0029098617453183206
A84: 15.5.7 | B84: .RNA biosynthesis.transcriptional regulation.AP2/ERF transcription factor superfamily | C84: 170 | D84: 0.0038480520784538418
A85: 5.1.6.1 | B85: .Lipid metabolism.fatty acid biosynthesis.endoplasmic reticulum-localized fatty acid elongase (FAE) system.fatty acid elongation complex | C85: 35 | D85: 0.004296327330141292
A86: 22.1 | B86: .Vesicle trafficking.clathrin coated vesicle (CCV) machinery | C86: 73 | D86: 0.0044593507007723516
A87: 19.1.8.1 | B87: .Protein homeostasis.protein quality control.smallHsp holdase chaperone activities.class-C-I protein | C87: 7 | D87: 0.004662239751539062
A88: 5.1.6.1.1 | B88: .Lipid metabolism.fatty acid biosynthesis.endoplasmic reticulum-localized fatty acid elongase (FAE) system.fatty acid elongation complex.3-ketoacyl-CoA synthase (KCS) | C88: 29 | D88: 0.00622842717990486
A89: 16.12.2.1.1 | B89: .RNA processing.organelle machinery.pre-mRNA splicing.plastidial RNA splicing.group-II intron splicing | C89: 15 | D89: 0.00638146337551442
A90: 5.1.6 | B90: .Lipid metabolism.fatty acid biosynthesis.endoplasmic reticulum-localized fatty acid elongase (FAE) system | C90: 37 | D90: 0.00638146337551442
A91: 24.2.2.2 | B91: .Solute transport.carrier-mediated transport.MFS superfamily.DHA-1 family | C91: 23 | D91: 0.006436445746108368
A92: 13.3 | B92: .Cell cycle organisation.mitosis and meiosis | C92: 187 | D92: 0.006529056698326041
A93: 1.1.1 | B93: Photosynthesis.photophosphorylation.photosystem II | C93: 115 | D93: 0.006718080619304789
A94: 13.1.1 | B94: .Cell cycle organisation.cell cycle control.cyclin-dependent regulation | C94: 94 | D94: 0.00731760852564662
A95: 21.2.2.1.3.1 | B95: .Cell wall organisation.hemicellulose.xylan.biosynthesis.xylosyltransferase activities.xylosyltransferase (IRX9) | C95: 12 | D95: 0.008549510200379936
A96: 15.5.7.1 | B96: .RNA biosynthesis.transcriptional regulation.AP2/ERF transcription factor superfamily.transcription factor (ERF) | C96: 82 | D96: 0.010183386781370096
A97: 24.2.2 | B97: .Solute transport.carrier-mediated transport.MFS superfamily | C97: 291 | D97: 0.010205775054916672
A98: 24.2.10.1 | B98: .Solute transport.carrier-mediated transport.OPT family.iron chelator transporter (YSL) | C98: 21 | D98: 0.011325114160936617
A99: 20.2.2 | B99: .Cytoskeleton organisation.microfilament network.actin polymerisation | C99: 100 | D99: 0.011325114160936617
A100: 25.4.3.2 | B100: .Nutrient uptake.iron uptake.chelation-based strategy uptake.ferric cation-chelator transporter (YSL) | C100: 20 | D100: 0.011325114160936617
A101: 24.1.2 | B101: .Solute transport.primary active transport.P-type ATPase superfamily | C101: 77 | D101: 0.011477856308364346
A102: 24.2.10 | B102: .Solute transport.carrier-mediated transport.OPT family | C102: 29 | D102: 0.0125604680416807
A103: 18.1.1 | B103: .Protein modification.glycosylation.N-linked glycosylation | C103: 58 | D103: 0.01286073061112753
A104: 19.1.5.1 | B104: .Protein homeostasis.protein quality control.cytosolic Hsp70 chaperone system.chaperone (Hsp70) | C104: 8 | D104: 0.013612822033812713
A105: 20.2.4.3 | B105: .Cytoskeleton organisation.microfilament network.myosin microfilament-based motor protein activities.myosin receptor (MyoB) | C105: 7 | D105: 0.015920575863076245
A106: 27 | B106: .Multi-process regulation | C106: 356 | D106: 0.016520904308321527
A107: 21.9.5 | B107: .Cell wall organisation.cutin and suberin.cutin polyester biosynthesis | C107: 11 | D107: 0.017496219357368115
A108: 1.2.1.2 | B108: Photosynthesis.calvin cycle.ribulose-1,5-bisphosphat carboxylase/oxygenase (RuBisCo) activity.RuBisCo assembly | C108: 19 | D108: 0.01874962294254517
A109: 19.1.4 | B109: .Protein homeostasis.protein quality control.plastidial Hsp70 chaperone system | C109: 12 | D109: 0.018943779718993786
A110: 13.4.3 | B110: .Cell cycle organisation.cytokinesis.phragmoplast microtubule organization | C110: 15 | D110: 0.020501402450696034
A111: 13.2.3.5 | B111: .Cell cycle organisation.DNA replication.elongation.single-stranded-DNA binding RPA complex | C111: 11 | D111: 0.022076200869498425
A112: 19.1.8.2 | B112: .Protein homeostasis.protein quality control.smallHsp holdase chaperone activities.class-C-II protein | C112: 5 | D112: 0.022076200869498425
A113: 16.12.5.5 | B113: .RNA processing.organelle machinery.RNA editing.plastidial RNA editing factor activities (PPR-type) | C113: 13 | D113: 0.02251520738282176
A114: 15.5.5.1 | B114: .RNA biosynthesis.transcriptional regulation.B3 transcription factor superfamily.transcription factor (ARF) | C114: 39 | D114: 0.02396822143138411
A115: 12 | B115: .Chromatin organisation | C115: 438 | D115: 0.02435536181694142
A116: 18.8.1.4 | B116: .Protein modification.S-glutathionylation.glutathione S-transferase activities.class tau glutathione S-transferase | C116: 35 | D116: 0.02987952918076267
A117: 35 | B117: not assigned | C117: 22673 | D117: 0.02987952918076267
A118: 18.4.24.2 | B118: .Protein modification.phosphorylation.serine/threonine protein phosphatase superfamily.PPM/PP2C Mn/Mg-dependent phosphatase families | C118: 71 | D118: 0.03130532182346457
A119: 50.3.4 | B119: .Enzyme classification.EC_3 hydrolases.EC_3.4 hydrolase acting on peptide bond (peptidase) | C119: 79 | D119: 0.03184407602125116
A120: 13.2.1.2 | B120: .Cell cycle organisation.DNA replication.preinitiation.MCM replicative DNA helicase complex | C120: 13 | D120: 0.03272077216547787
A121: 16.12 | B121: .RNA processing.organelle machinery | C121: 109 | D121: 0.03310485129584806
A122: 15.5.3.1 | B122: .RNA biosynthesis.transcriptional regulation.Homeobox transcription factor superfamily.transcription factor (HD-ZIP I/II) | C122: 39 | D122: 0.03432578247824729
A123: 15.5.4.2 | B123: .RNA biosynthesis.transcriptional regulation.bZIP transcription factor superfamily.transcription factor (bZIP9|10|25) | C123: 7 | D123: 0.034522096291907896
A124: 13.1 | B124: .Cell cycle organisation.cell cycle control | C124: 113 | D124: 0.03511971812840413
A125: 22.7.2 | B125: .Vesicle trafficking.SNARE target membrane recognition and fusion complexes.Qb-type SNARE components | C125: 17 | D125: 0.03511971812840413
A126: 22.7 | B126: .Vesicle trafficking.SNARE target membrane recognition and fusion complexes | C126: 76 | D126: 0.0356893132368836
A127: 21.2 | B127: .Cell wall organisation.hemicellulose | C127: 159 | D127: 0.03571722188874605
A128: 5.1.2.2 | B128: .Lipid metabolism.fatty acid biosynthesis.acetyl-CoA generation.plastidial pyruvate dehydrogenase complex | C128: 10 | D128: 0.03674303913122658
A129: 1.1.2 | B129: Photosynthesis.photophosphorylation.cytochrome b6/f complex | C129: 21 | D129: 0.03674303913122658
A130: 13.3.6.4 | B130: .Cell cycle organisation.mitosis and meiosis.meiotic recombination.DNA strand exchange | C130: 19 | D130: 0.0381924643248602
A131: 1.1.5.1 | B131: Photosynthesis.photophosphorylation.linear electron flow.ferredoxin electron carrier | C131: 10 | D131: 0.03998402190149982
A132: 18.12 | B132: .Protein modification.protein folding | C132: 79 | D132: 0.03998402190149982
A133: 21.2.2.2 | B133: .Cell wall organisation.hemicellulose.xylan.modification and degradation | C133: 30 | D133: 0.03998402190149982
A134: 10.1.1 | B134: .Redox homeostasis.reactive oxygen generation.NADPH-oxidase (Rboh) | C134: 14 | D134: 0.040048754436982366
A135: 19.4.2.9 | B135: .Protein homeostasis.proteolysis.serine-type peptidase activities.chloroplast Clp-type protease complex | C135: 18 | D135: 0.040048754436982366
A136: 10.1 | B136: .Redox homeostasis.reactive oxygen generation | C136: 15 | D136: 0.041123148779736066
A137: 9.1.4.2 | B137: .Secondary metabolism.terpenoids.terpene biosynthesis.mono-/sesquiterpene-/diterpene synthase | C137: 29 | D137: 0.04139243505890832
A138: 24.1.3.1.1 | B138: .Solute transport.primary active transport.ABC superfamily.ABC1 family.subfamily ABCB transporter | C138: 29 | D138: 0.04212100717046001
A139: 13.1.1.1.2 | B139: .Cell cycle organisation.cell cycle control.cyclin-dependent regulation.cyclin activities.cyclin (CYCB) | C139: 10 | D139: 0.04268015948559699
A140: 19.1.6 | B140: .Protein homeostasis.protein quality control.Hsp90 chaperone system | C140: 18 | D140: 0.042768439406975875
A141: 15.6.1.2.3 | B141: .RNA biosynthesis.organelle machinery.RNA polymerase activities.plastid-encoded RNA polymerase (PEP) complex.regulatory co-factor components | C141: 9 | D141: 0.04294346124304459
A142: 22.6 | B142: .Vesicle trafficking.target membrane tethering | C142: 138 | D142: 0.04481503103858257
A144: 24.2.2.2.2 | B144: .Solute transport.carrier-mediated transport.MFS superfamily.DHA-1 family.metal chelator transporter (TCR) | C144: 5 | D144: 0.05163631021475177
A145: 25.4.6.3 | B145: .Nutrient uptake.iron uptake.long-distance iron transport.metal chelator nicotianamine transporter (TCR) | C145: 5 | D145: 0.05163631021475177
A146: 18.4.1.25 | B146: .Protein modification.phosphorylation.TKL protein kinase superfamily.protein kinase (WAK/WAKL) | C146: 43 | D146: 0.052507105589288984
A147: 11.1.2.1.1.2 | B147: .Phytohormone action.abscisic acid.perception and signalling.PYR/PYL-receptor.cytoplasm-localized receptor complex.regulatory phosphatase component | C147: 5 | D147: 0.052507105589288984
A148: 19.1.5 | B148: .Protein homeostasis.protein quality control.cytosolic Hsp70 chaperone system | C148: 53 | D148: 0.052507105589288984
A149: 19.2.6.1.1 | B149: .Protein homeostasis.ubiquitin-proteasome system.26S proteasome.20S core particle.alpha-type components | C149: 16 | D149: 0.052507105589288984
A150: 9.3 | B150: .Secondary metabolism.alkaloids | C150: 8 | D150: 0.052507105589288984
A151: 9.3.1 | B151: .Secondary metabolism.alkaloids.indole alkaloid biosynthesis | C151: 8 | D151: 0.052507105589288984
A152: 9.3.1.1 | B152: .Secondary metabolism.alkaloids.indole alkaloid biosynthesis.aromatic L-amino acid decarboxylase | C152: 8 | D152: 0.052507105589288984
A153: 9.1.4.3 | B153: .Secondary metabolism.terpenoids.terpene biosynthesis.triterpenoid synthase | C153: 17 | D153: 0.05399090163694882
A154: 20.1.3.10 | B154: .Cytoskeleton organisation.microtubular network.Kinesin microtubule-based motor protein activities.motor protein (Kinesin-12) | C154: 4 | D154: 0.05641982751343187
A155: 24.2.11.1 | B155: .Solute transport.carrier-mediated transport.ZIP family.metal cation transporter (ZIP) | C155: 15 | D155: 0.05641982751343187
A156: 24.1.3.1 | B156: .Solute transport.primary active transport.ABC superfamily.ABC1 family | C156: 49 | D156: 0.05652172139674527
A157: 18.1.1.6 | B157: .Protein modification.glycosylation.N-linked glycosylation.complex N-glycan maturation | C157: 19 | D157: 0.056615803181540594
A158: 16.12.1 | B158: .RNA processing.organelle machinery.ribonuclease activities | C158: 13 | D158: 0.056615803181540594
A159: 22.4 | B159: .Vesicle trafficking.Coat protein II (COPII) coatomer machinery | C159: 37 | D159: 0.056647974388284394
A160: 13.1.1.1.1 | B160: .Cell cycle organisation.cell cycle control.cyclin-dependent regulation.cyclin activities.cyclin (CYCA) | C160: 8 | D160: 0.05743928736589741
A161: 24.1 | B161: .Solute transport.primary active transport | C161: 228 | D161: 0.060826169303230114
A162: 13.3.6.4.4 | B162: .Cell cycle organisation.mitosis and meiosis.meiotic recombination.DNA strand exchange.RPA presynaptic filament assembly factor complex | C162: 13 | D162: 0.060826169303230114
A163: 22.7.5.1 | B163: .Vesicle trafficking.SNARE target membrane recognition and fusion complexes.R-type SNARE longin components.VAMP7-group component | C163: 14 | D163: 0.060826169303230114
A164: 50.1.10 | B164: .Enzyme classification.EC_1 oxidoreductases.EC_1.10 oxidoreductase acting on diphenol or related substance as donor | C164: 34 | D164: 0.063084413662705
A165: 15.5.41 | B165: .RNA biosynthesis.transcriptional regulation.transcription factor (LIM) | C165: 8 | D165: 0.06354770809285884
A166: 20.2.2.5 | B166: .Cytoskeleton organisation.microfilament network.actin polymerisation.villin actin-crosslinking factor | C166: 16 | D166: 0.06545743556387323
A167: 3.13.5 | B167: .Carbohydrate metabolism.nucleotide sugar biosynthesis.UDP-D-xylose biosynthesis | C167: 13 | D167: 0.06727113544950628
A168: 3.13.5.1 | B168: .Carbohydrate metabolism.nucleotide sugar biosynthesis.UDP-D-xylose biosynthesis.UDP-D-glucuronic acid decarboxylase | C168: 13 | D168: 0.06727113544950628
A169: 21.2.2.2.2 | B169: .Cell wall organisation.hemicellulose.xylan.modification and degradation.xylan O-acetyltransferase (XOAT) | C169: 16 | D169: 0.068323966622401
A170: 5.1.4 | B170: .Lipid metabolism.fatty acid biosynthesis.plastidial fatty acid synthase (ptFAS) system | C170: 31 | D170: 0.07093130793318468
A171: 16.12.4 | B171: .RNA processing.organelle machinery.RNA stability | C171: 8 | D171: 0.07383260937349793
A172: 19.1.7.1 | B172: .Protein homeostasis.protein quality control.Hsp60 chaperone system.chaperone (Hsp60) | C172: 9 | D172: 0.0766272572077688
A173: 21.2.2.1 | B173: .Cell wall organisation.hemicellulose.xylan.biosynthesis | C173: 51 | D173: 0.08019335552162499
A174: 16.4 | B174: .RNA processing.pre-mRNA splicing | C174: 212 | D174: 0.08019335552162499
A175: 18.4.3.1.8 | B175: .Protein modification.phosphorylation.CMGC protein kinase superfamily.CDK protein kinase families.protein kinase (CDK9) | C175: 15 | D175: 0.08135340782477275
A176: 22.7.2.4 | B176: .Vesicle trafficking.SNARE target membrane recognition and fusion complexes.Qb-type SNARE components.NPSN-group component | C176: 8 | D176: 0.08135340782477275
A177: 22.1.6 | B177: .Vesicle trafficking.clathrin coated vesicle (CCV) machinery.CCV accessory factors | C177: 20 | D177: 0.08161895625160671
A178: 11.2.1 | B178: .Phytohormone action.auxin.biosynthesis | C178: 22 | D178: 0.08188515938294223
A179: 11.2.1.1 | B179: .Phytohormone action.auxin.biosynthesis.indole-3-pyruvic acid (IPyA) pathway | C179: 21 | D179: 0.0837070622012859
A180: 11.10 | B180: .Phytohormone action.signalling peptides | C180: 177 | D180: 0.0852574512982601
A181: 24.3 | B181: .Solute transport.channels | C181: 192 | D181: 0.08620327268227196
A182: 21.1 | B182: .Cell wall organisation.cellulose | C182: 49 | D182: 0.08620327268227196
A183: 23.1.7 | B183: .Protein translocation.chloroplast.thylakoid membrane SRP insertion system | C183: 11 | D183: 0.08620327268227196
A184: 7.12.4 | B184: .Coenzyme metabolism.tetrapyrrol biosynthesis.protoporphyrin IX formation | C184: 8 | D184: 0.08825453653340568
A185: 20.2.4 | B185: .Cytoskeleton organisation.microfilament network.myosin microfilament-based motor protein activities | C185: 32 | D185: 0.08825453653340568
A186: 11.2 | B186: .Phytohormone action.auxin | C186: 73 | D186: 0.09094510428593253
A187: 11.10.2.3 | B187: .Phytohormone action.signalling peptides.CRP (cysteine-rich-peptide) category.EPF/EPFL-peptide activity | C187: 20 | D187: 0.09612141942856682
A188: 3.2.2.3 | B188: .Carbohydrate metabolism.starch metabolism.biosynthesis.ADP-glucose pyrophosphorylase | C188: 7 | D188: 0.09612141942856682
A189: 15.5.3.5 | B189: .RNA biosynthesis.transcriptional regulation.Homeobox transcription factor superfamily.transcription factor (BEL) | C189: 16 | D189: 0.09879107076343208
A190: 15.5.3 | B190: .RNA biosynthesis.transcriptional regulation.Homeobox transcription factor superfamily | C190: 161 | D190: 0.10012814480869138
A191: 13.3.4.1.2 | B191: .Cell cycle organisation.mitosis and meiosis.metaphase to anaphase transition.Anaphase-Promoting Complex/Cyclosome (APC/C)-dependent ubiquitination.E2 ubiquitin conjugating protein (APC/C) | C191: 3 | D191: 0.10012814480869138
A192: 18 | B192: .Protein modification | C192: 1645 | D192: 0.10012814480869138
A193: 3.4.5 | B193: .Carbohydrate metabolism.oligosaccharide metabolism.galactinol-sucrose galactosyltransferase | C193: 3 | D193: 0.10419716105794753
A194: 15.5.51 | B194: .RNA biosynthesis.transcriptional regulation.NF-Y transcription factor complex | C194: 42 | D194: 0.10434714511363634
A195: 13.2.3 | B195: .Cell cycle organisation.DNA replication.elongation | C195: 52 | D195: 0.10465248496415644
A196: 22.4.1 | B196: .Vesicle trafficking.Coat protein II (COPII) coatomer machinery.coat protein complex | C196: 25 | D196: 0.10473123036184928
A197: 4.1.3 | B197: .Amino acid metabolism.biosynthesis.pyruvate family | C197: 27 | D197: 0.10473123036184928
A198: 11.1.2.1.1.1 | B198: .Phytohormone action.abscisic acid.perception and signalling.PYR/PYL-receptor.cytoplasm-localized receptor complex.receptor component PYL/RCAR | C198: 13 | D198: 0.10627691799547678
A199: 17.7.2.1.24 | B199: .Protein biosynthesis.organelle machinery.plastidial ribosome.large ribosomal subunit proteome.component psRPL28 | C199: 4 | D199: 0.10989854834788536
A200: 23.1.3 | B200: .Protein translocation.chloroplast.inner envelope TIC translocation system | C200: 17 | D200: 0.10994632845032229
A201: 21.6.1 | B201: .Cell wall organisation.lignin.monolignol biosynthesis | C201: 17 | D201: 0.10994632845032229
... 5500 more rows
